Workbook

Sheet NH-SPEC
A1: New York State Department of Health
A2: Division of Finance and Rate Setting
A3: 04/01/2025-03/31/26 One Time Lump Sum Payment for Nursing Homes
D7: =SUM(D9:D684) -> 373050817 | E7: =SUM(E9:E684) -> 59206014.69 | F7: =SUM(F9:F684) -> 432256831.7 | G7: =SUM(G9:G684) -> 216128415.9
A8: TYPE | B8: OPCERT | C8: NAME | D8: $ Per Diem Payment | E8: % Revenue Payment | F8: Gross Total | G8: State Share
A9: NF | B9: 295030230 | C9: A Holly Patterson Extended Care Facility | D9: 2201045.49 | E9: 347476.55 | F9: =D9+E9 -> 2548522.04 | G9: =F9/2 -> 1274261.02
A10: AIDS | B10: 295030231 | C10: A Holly Patterson Extended Care Facility | D10: 70088.13 | E10: 21168.46 | F10: =E10+D10 -> 91256.59 | G10: 45628.295
A11: VENT | B11: 295030232 | C11: A Holly Patterson Extended Care Facility | D11: 27574.47 | E11: 10547.13 | F11: =E11+D11 -> 38121.6 | G11: 19060.8
A12: NF | B12: 272530110 | C12: Aaron Manor Rehabilitation and Nursing Center | D12: 457043.58 | E12: 56230.28 | F12: =D12+E12 -> 513273.86 | G12: 256636.93
A13: NF | B13: 042030210 | C13: Absolut Center for Nursing and Rehabilitation at Allega | D13: 115282.44 | E13: 12138.78 | F13: 127421.22 | G13: 63710.61
A14: NF | B14: 142230310 | C14: Absolut Center for Nursing and Rehabilitation at Auror | D14: 718617.06 | E14: 87352.63 | F14: 805969.69 | G14: 402984.845
A15: NF | B15: 030230310 | C15: Absolut Center for Nursing and Rehabilitation at Endic | D15: 690361.56 | E15: 78533.6 | F15: 768895.16 | G15: 384447.58
A16: NF | B16: 315830210 | C16: Absolut Center for Nursing and Rehabilitation at Gaspo | D16: 318664.08 | E16: 37107.13 | F16: 355771.21 | G16: 177885.605
A17: NF | B17: 502630110 | C17: Absolut Center for Nursing and Rehabilitation at Three | D17: 434642.04 | E17: 49897.77 | F17: 484539.81 | G17: 242269.905
A18: NF | B18: 067530210 | C18: Absolut Center for Nursing and Rehabilitation at Westfi | D18: 454087.62 | E18: 51453.71 | F18: 505541.33 | G18: 252770.665
A19: NF | B19: 515530110 | C19: Acadia Center for Nursing and Rehabilitation | D19: 385535.43 | E19: 48745.55 | F19: 434280.98 | G19: 217140.49
A20: NF | B20: 522030310 | C20: Achieve Rehab and Nursing Facility | D20: 426730.5 | E20: 60540.14 | F20: 487270.64 | G20: 243635.32
A21: NF | B21: 590731810 | C21: Adira at Riverside Rehabilitation and Nursing | D21: 301797.72 | E21: 69180.31 | F21: 370978.03 | G21: 185489.015
A22: VENT | B22: 590731812 | C22: Adira at Riverside Rehabilitation and Nursing | D22: 36268.47 | E22: 12278.26 | F22: =E22+D22 -> 48546.73 | G22: 24273.365
A23: NF | B23: 515432310 | C23: Affinity Skilled Living and Rehabilitation Center | D23: 889888.86 | E23: 162647.12 | F23: =D23+E23 -> 1052535.98 | G23: 526267.99
A24: VENT | B24: 515432312 | C24: Affinity Skilled Living and Rehabilitation Center | D24: 42223.86 | E24: 16886.18 | F24: =E24+D24 -> 59110.04 | G24: 29555.02
A25: NF | B25: 162400030 | C25: Alice Hyde Medical Center | D25: 553431.06 | E25: 64824.1 | F25: =D25+E25 -> 618255.16 | G25: 309127.58
A26: NF | B26: 212930310 | C26: Alpine Rehabilitation and Nursing Center | D26: 319794.3 | E26: 40442.43 | F26: 360236.73 | G26: 180118.365
A27: NF | B27: 700235610 | C27: Amsterdam Nursing Home Corp (amsterdam House) | D27: 1197786.87 | E27: 197057.38 | F27: 1394844.25 | G27: 697422.125
A28: NF | B28: 592630010 | C28: Andrus On Hudson | D28: 796776.12 | E28: 111355.16 | F28: 908131.28 | G28: 454065.64
A29: NF | B29: 515331110 | C29: Apex Rehabilitation & Care Center | D29: 621635.49 | E29: 99016.86 | F29: 720652.35 | G29: 360326.175
A30: NF | B30: 700137810 | C30: Atrium Center for Rehabilitation and Nursing | D30: 1462577.13 | E30: 260708.09 | F30: 1723285.22 | G30: 861642.61
A31: NF | B31: 050131010 | C31: Auburn Rehabilitation and Nursing Center | D31: 339413.76 | E31: 34273.14 | F31: 373686.9 | G31: 186843.45
A32: NF | B32: 380100030 | C32: Aurelia Osborn Fox Memorial Hospital | D32: 298682.37 | E32: 29939.93 | F32: 328622.3 | G32: 164311.15
A33: NF | B33: 143030110 | C33: Autumn View Health Care Facility LLC | D33: 675929.52 | E33: 84385.31 | F33: 760314.83 | G33: 380157.415
A34: NF | B34: 252030110 | C34: Avon Nursing Home LLC | D34: 156955.68 | E34: 17197.2 | F34: 174152.88 | G34: 87076.44
A35: NF | B35: 700031910 | C35: Bainbridge Nursing And Rehabilitation Center | D35: 871530.03 | E35: 120785.72 | F35: 992315.75 | G35: 496157.875
A36: NF | B36: 462030010 | C36: Baptist Health Nursing And Rehabilitation Center Inc | D36: 690202.17 | E36: 72970.33 | F36: 763172.5 | G36: 381586.25
A37: NF | B37: 590431710 | C37: Bayberry Nursing Home | D37: 110080.53 | E37: 11862.21 | F37: 121942.74 | G37: 60971.37
A38: NF | B38: 700341210 | C38: Beach Gardens Rehab and Nursing Center | D38: 716023.35 | E38: 118402.43 | F38: 834425.78 | G38: 417212.89
A39: NF | B39: 290230310 | C39: Beach Terrace Care Center | D39: 786908.43 | E39: 111643.21 | F39: 898551.64 | G39: 449275.82
A40: NF | B40: 700340110 | C40: Beacon Rehabilitation and Nursing Center | D40: 478619.19 | E40: 77357.43 | F40: 555976.62 | G40: 277988.31
A41: NF | B41: 700180510 | C41: Bedford Center for Nursing and Rehabilitation | D41: 770129.01 | E41: 134890.83 | F41: 905019.84 | G41: 452509.92
A42: NF | B42: 540131210 | C42: Beechtree Center for Rehabilitation and Nursing | D42: 431700.57 | E42: 54101.6 | F42: 485802.17 | G42: 242901.085
A43: NF | B43: 145130610 | C43: Beechwood Homes | D43: 566225.73 | E43: 60434.36 | F43: 626660.09 | G43: 313330.045
A44: NF | B44: 295030110 | C44: Belair Care Center Inc | D44: 71508.15 | E44: 10115.01 | F44: 81623.16 | G44: 40811.58
A45: NF | B45: 515132110 | C45: Bellhaven Center For Rehabilitation and Nursing Care | D45: 921390.12 | E45: 170103.44 | F45: 1091493.56 | G45: 545746.78
A46: NF | B46: 700139610 | C46: Bensonhurst Center for Rehabilitation and Healthcare | D46: 552865.95 | E46: 119010.16 | F46: 671876.11 | G46: 335938.055
A47: NF | B47: 510130110 | C47: Berkshire Nursing & Rehabilitation Center | D47: 535101.21 | E47: 88507.53 | F47: 623608.74 | G47: 311804.37
A48: NF | B48: 700039910 | C48: Beth Abraham Center for Rehabilitation and Nursing | D48: 1962540.09 | E48: 385911.78 | F48: 2348451.87 | G48: 1174225.935
A49: NF | B49: 320130810 | C49: Bethany Gardens Skilled Living Center | D49: 360221.4 | E49: 45686.71 | F49: 405908.11 | G49: 202954.055
A50: NF | B50: 072230110 | C50: Bethany Nursing Home & Health Related Facility Inc | D50: 346195.08 | E50: 33523.1 | F50: 379718.18 | G50: 189859.09
A51: NF | B51: 592130310 | C51: Bethel Nursing and Rehabilitation Center | D51: 688535.82 | E51: 86778.57 | F51: 775314.39 | G51: 387657.195
A52: NF | B52: 590530310 | C52: Bethel Nursing Home Company Inc | D52: 114311.61 | E52: 17276.18 | F52: 131587.79 | G52: 65793.895
A53: NF | B53: 015130010 | C53: Bethlehem Commons Care Center | D53: 380971.08 | E53: 47307.7 | F53: 428278.78 | G53: 214139.39
A54: NF | B54: 320130710 | C54: Betsy Ross Rehabilitation Center Inc | D54: 355106.43 | E54: 43172.92 | F54: 398279.35 | G54: 199139.675
A55: NF | B55: 700335210 | C55: Bezalel Rehabilitation and Nursing Center | D55: 482357.61 | E55: 66264.03 | F55: 548621.64 | G55: 274310.82
A56: NF | B56: 330133010 | C56: Bishop Rehabilitation and Nursing Center | D56: 1243184.04 | E56: 172337.75 | F56: 1415521.79 | G56: 707760.895
A57: VENT | B57: 330133012 | C57: Bishop Rehabilitation and Nursing Center | D57: 0 | E57: 0 | F57: =E57+D57 -> 0 | G57: 0
A58: NF | B58: 700139410 | C58: Boro Park Center for Rehabilitation and Healthcare | D58: 1615635 | E58: 355509.43 | F58: =D58+E58 -> 1971144.43 | G58: 985572.215
A59: NF | B59: 593130210 | C59: Briarcliff Manor Center for Rehabilitation and Nursing Care | D59: 375899.58 | E59: 57422.92 | F59: =D59+E59 -> 433322.5 | G59: 216661.25
A60: NF | B60: 700330910 | C60: Bridge View Nursing Home | D60: 881426.7 | E60: 110153.75 | F60: =D60+E60 -> 991580.45 | G60: 495790.225
A61: NF | B61: 030130810 | C61: Bridgewater Center for Rehabilitation & Nursing LLC | D61: 1333065.51 | E61: 167400.94 | F61: =D61+E61 -> 1500466.45 | G61: 750233.225
A62: VENT | B62: 030130812 | C62: Bridgewater Center for Rehabilitation & Nursing LLC | D62: 43426.53 | E62: 11155.79 | F62: =E62+D62 -> 54582.32 | G62: 27291.16
A63: NF | B63: 270135410 | C63: Brighton Manor | D63: 307188 | E63: 32582.36 | F63: =D63+E63 -> 339770.36 | G63: 169885.18
A64: NF | B64: 700038110 | C64: Bronx Center For Rehabilitation and Health | D64: 845549.46 | E64: 131082.12 | F64: =D64+E64 -> 976631.58 | G64: 488315.79
A65: NF | B65: 700039710 | C65: Bronx Gardens Rehabilitation and Nursing Center | D65: 615129.48 | E65: 118121.56 | F65: =D65+E65 -> 733251.04 | G65: 366625.52
A66: AIDS | B66: 700039711 | C66: Bronx Gardens Rehabilitation and Nursing Center | D66: 123976.44 | E66: 29254.06 | F66: =E66+D66 -> 153230.5 | G66: 76615.25
A67: VENT | B67: 700039712 | C67: Bronx Gardens Rehabilitation and Nursing Center | D67: 63727.02 | E67: 20377.06 | F67: =E67+D67 -> 84104.08 | G67: 42052.04
A68: NF | B68: 700038010 | C68: Bronx Park Rehabilitation & Nursing Center | D68: 1139725.44 | E68: 192744.38 | F68: =D68+E68 -> 1332469.82 | G68: 666234.91
A69: NF | B69: 700036410 | C69: BronxCare Special Care Center | D69: 484820.91 | E69: 68665.68 | F69: =D69+E69 -> 553486.59 | G69: 276743.295
A70: AIDS | B70: 700036411 | C70: BronxCare Special Care Center | D70: 535985.1 | E70: 132856.51 | F70: =E70+D70 -> 668841.61 | G70: 334420.805
A71: NF | B71: 512330410 | C71: Brookhaven Health Care Facility LLC | D71: 287046.9 | E71: 45015.85 | F71: =D71+E71 -> 332062.75 | G71: 166031.375
A72: NF | B72: 700339910 | C72: Brookhaven Rehabilitation & Health Care Center | D72: 1431032.4 | E72: 219321.44 | F72: 1650353.84 | G72: 825176.92
A73: NF | B73: 700138810 | C73: Brooklyn Center for Rehabilitation and Residential Hea | D73: 994622.58 | E73: 171931.36 | F73: 1166553.94 | G73: =F73/2 -> 583276.97
A74: NF | B74: 700180010 | C74: Brooklyn Gardens Nursing & Rehabilitation Center | D74: 997607.52 | E74: 140623.43 | F74: 1138230.95 | G74: 569115.475
A75: NF | B75: 700130810 | C75: Brooklyn United Methodist Church Home | D75: 520756.11 | E75: 69485.37 | F75: 590241.48 | G75: 295120.74
A76: NF | B76: 700138210 | C76: Brooklyn-Queens Nursing Home | D76: 525074.13 | E76: 102491.9 | F76: 627566.03 | G76: 313783.015
A77: NF | B77: 515731810 | C77: Brookside Multicare Nursing Center | D77: 1239764.4 | E77: 210574.74 | F77: 1450339.14 | G77: 725169.57
A78: PEDS | B78: 515731815 | C78: Brookside Multicare Nursing Center | D78: 165867.03 | E78: 97186.41 | F78: =E78+D78 -> 263053.44 | G78: 131526.72
A79: NF | B79: 145630010 | C79: Brothers Of Mercy Nursing & Rehabilitation Center | D79: 495905.76 | E79: 49660.35 | F79: =D79+E79 -> 545566.11 | G79: 272783.055
A80: NF | B80: 700103510 | C80: Buena Vida Continuing Care & Rehab Ctr | D80: 933996.42 | E80: 160636.3 | F80: 1094632.72 | G80: 547316.36
A81: NF | B81: 140134110 | C81: Buffalo Center for Rehabilitation and Nursing | D81: 853272.63 | E81: 144914.82 | F81: 998187.45 | G81: 499093.725
A82: NF | B82: 700136410 | C82: Bushwick Center for Rehabilitation and Health Care | D82: 930489.84 | E82: 162151.33 | F82: 1092641.17 | G82: 546320.585
A83: NF | B83: 355730210 | C83: Campbell Hall Rehabilitation Center Inc | D83: 476025.48 | E83: 51755.81 | F83: 527781.29 | G83: 263890.645
A84: NF | B84: 142130510 | C84: Canterbury Woods | D84: 0 | E84: 0 | F84: 0 | G84: 0
A85: NF | B85: 285030110 | C85: Capstone Center for Rehabilitation and Nursing | D85: 520640.19 | E85: 58801.64 | F85: 579441.83 | G85: 289720.915
A86: NF | B86: 515330610 | C86: Carillon Nursing and Rehabilitation Center | D86: 888671.7 | E86: 136390.29 | F86: 1025061.99 | G86: 512530.995
A87: NF | B87: 700337310 | C87: Caring Family Nursing and Rehabilitation Center | D87: 853489.98 | E87: 132922.44 | F87: 986412.42 | G87: 493206.21
A88: NF | B88: 700431010 | C88: Carmel Richmond Healthcare and Rehabilitation Center | D88: 1092690.9 | E88: 168659.79 | F88: 1261350.69 | G88: 630675.345
A89: NF | B89: 223830410 | C89: Carthage Center for Rehabilitation and Nursing | D89: 318316.32 | E89: 34495.5 | F89: 352811.82 | G89: 176405.91
A90: AIDS | B90: 700037311 | C90: Casa Promesa | D90: 321098.4 | E90: 70991.82 | F90: =E90+D90 -> 392090.22 | G90: 196045.11
A91: NF | B91: 700136610 | C91: Caton Park Nursing Home | D91: 502976.88 | E91: 74929.36 | F91: =D91+E91 -> 577906.24 | G91: 288953.12
A92: NF | B92: 540131110 | C92: Cayuga Ridge Extended Care | D92: 404879.58 | E92: 49326.36 | F92: 454205.94 | G92: 227102.97
A93: NF | B93: 590530910 | C93: Cedar Manor Nursing & Rehabilitation Center | D93: 419818.77 | E93: 54336.51 | F93: 474155.28 | G93: 237077.64
A94: NF | B94: 295230810 | C94: Central Island Healthcare | D94: 537463.08 | E94: 74674.34 | F94: 612137.42 | G94: 306068.71
A95: NF | B95: 330132610 | C95: Central Park Rehabilitation and Nursing Center | D95: 749683.62 | E95: 85373.48 | F95: 835057.1 | G95: 417528.55
A96: NF | B96: 090100130 | C96: Champlain Valley Physicians Hospital Medical Center Snf | D96: 113963.85 | E96: 13048.86 | F96: 127012.71 | G96: 63506.355
A97: NF | B97: 700335110 | C97: Chapin Home For The Aging | D97: 720747.09 | E97: 84867.88 | F97: 805614.97 | G97: 402807.485
A98: NF | B98: 322730410 | C98: Charles T Sitrin Health Care Center Inc | D98: 457970.94 | E98: 54668.14 | F98: 512639.08 | G98: 256319.54
A99: ND | B99: 322730416 | C99: Charles T Sitrin Health Care Center Inc | D99: 125831.16 | E99: 21991.77 | F99: =E99+D99 -> 147822.93 | G99: 73911.465
A100: NF | B100: 082330010 | C100: ChaseHealth Rehab and Residential Care | D100: 309506.4 | E100: 30113.38 | F100: =D100+E100 -> 339619.78 | G100: 169809.89
A101: NF | B101: 060130410 | C101: Chautauqua Nursing and Rehabilitation Center | D101: 807803.01 | E101: 111158.61 | F101: 918961.62 | G101: 459480.81
A102: NF | B102: 070130110 | C102: Chemung County Health Center-nursing Facility | D102: 490037.31 | E102: 51298.03 | F102: 541335.34 | G102: 270667.67
A103: NF | B103: 380130410 | C103: Chestnut Park Rehabilitation and Nursing Center | D103: 248286.15 | E103: 28762.42 | F103: 277048.57 | G103: 138524.285
A104: NF | B104: 270133910 | C104: Church Home Of The Protestant Episcopal Church | D104: 418195.89 | E104: 44034.35 | F104: 462230.24 | G104: 231115.12
A105: NF | B105: 700338010 | C105: Cliffside Rehabilitation and Residential Health Care Center | D105: 758131.29 | E105: 100869.17 | F105: 859000.46 | G105: 429500.23
A106: VENT | B106: 700338012 | C106: Cliffside Rehabilitation and Residential Health Care Center | D106: 124295.22 | E106: 44954.75 | F106: =E106+D106 -> 169249.97 | G106: 84624.985
A107: NF | B107: 342100030 | C107: Clifton Springs Hospital And Clinic Extended Care | D107: 376450.2 | E107: 48153.12 | F107: =D107+E107 -> 424603.32 | G107: 212301.66
A108: VENT | B108: 342100032 | C108: Clifton Springs Hospital And Clinic Extended Care | D108: 57583.26 | E108: 16917.78 | F108: =E108+D108 -> 74501.04 | G108: 37250.52
A109: NF | B109: 095230010 | C109: Clinton County Nursing Home | D109: 186399.36 | E109: 17088.94 | F109: =D109+E109 -> 203488.3 | G109: 101744.15
A110: NF | B110: 700432110 | C110: Clove Lakes Health Care and Rehabilitation Center | D110: 1436176.35 | E110: 238036.67 | F110: =D110+E110 -> 1674213.02 | G110: 837106.51
A111: NF | B111: 700132310 | C111: Cobble Hill Health Center Inc | D111: 1586234.79 | E111: 287533.5 | F111: =D111+E111 -> 1873768.29 | G111: 936884.145
A112: NF | B112: 295231010 | C112: Cold Spring Hills Center for Nursing and Rehabilitation | D112: 1819987.47 | E112: 303652.88 | F112: =D112+E112 -> 2123640.35 | G112: 1061820.175
A113: VENT | B113: 295231012 | C113: Cold Spring Hills Center for Nursing and Rehabilitation | D113: 48671.91 | E113: 20177.52 | F113: =E113+D113 -> 68849.43 | G113: 34424.715
A114: NF | B114: 700233630 | C114: Coler Rehabilitation and Nursing Care Center | D114: 1711008.18 | E114: 324114.97 | F114: =D114+E114 -> 2035123.15 | G114: 1017561.575
A115: NF | B115: 320131110 | C115: Colonial Park Rehabilitation and Nursing Center | D115: 295161.3 | E115: 32533.29 | F115: =D115+E115 -> 327694.59 | G115: 163847.295
A116: NF | B116: 142130810 | C116: Comprehensive Rehabilitation and Nursing Center at Williamsville | D116: 391230 | E116: 52216.72 | F116: =D116+E116 -> 443446.72 | G116: 221723.36
A117: NF | B117: 700134810 | C117: Concord Nursing and Rehabilitation Center | D117: 564139.17 | E117: 89244.96 | F117: =D117+E117 -> 653384.13 | G117: 326692.065
A118: VENT | B118: 700134812 | C118: Concord Nursing and Rehabilitation Center | D118: 59539.41 | E118: 17234.79 | F118: =E118+D118 -> 76774.2 | G118: 38387.1
A119: NF | B119: 700037510 | C119: Concourse Rehabilitation and Nursing Center | D119: 851881.59 | E119: 158256.8 | F119: =D119+E119 -> 1010138.39 | G119: 505069.195
A120: VENT | B120: 700037512 | C120: Concourse Rehabilitation and Nursing Center | D120: 98256.69 | E120: 34650.21 | F120: =E120+D120 -> 132906.9 | G120: 66453.45
A121: NF | B121: 252530110 | C121: Conesus Lake Nursing Home LLC | D121: 155202.39 | E121: 19026.19 | F121: =D121+E121 -> 174228.58 | G121: 87114.29
A122: NF | B122: 382430110 | C122: Cooperstown Center for Rehabilitation and Nursing | D122: 676914.84 | E122: 100544.6 | F122: 777459.44 | G122: 388729.72
A123: NF | B123: 500130010 | C123: Corning Center for Rehabilitation and Healthcare | D123: 511989.66 | E123: 67749.47 | F123: 579739.13 | G123: 289869.565
A124: NF | B124: 110131010 | C124: Cortland Park Rehabilitation and Nursing Center | D124: 485255.61 | E124: 47534.81 | F124: 532790.42 | G124: 266395.21
A125: NF | B125: 110130630 | C125: Cortland Regional Nursing and Rehabilitation Center | D125: 226594.62 | E125: 27299.07 | F125: 253893.69 | G125: 126946.845
A126: NF | B126: 590130710 | C126: Cortlandt Healthcare | D126: 359453.43 | E126: 55865.71 | F126: 415319.14 | G126: 207659.57
A127: NF | B127: 276230210 | C127: Crest Manor Living and Rehabilitation Center | D127: 225261.54 | E127: 24580.27 | F127: 249841.81 | G127: 124920.905
A128: NF | B128: 262330010 | C128: Crouse Community Center Inc | D128: 365090.04 | E128: 41209.52 | F128: 406299.56 | G128: 203149.78
A129: NF | B129: 700139810 | C129: Crown Heights Center for Nursing and Rehabilitation | D129: 1208016.81 | E129: 204524.71 | F129: 1412541.52 | G129: 706270.76
A130: NF | B130: 110131210 | C130: Crown Park Rehabilitation and Nursing Center | D130: 809005.68 | E130: 84017.46 | F130: 893023.14 | G130: 446511.57
A131: NF | B131: 022600030 | C131: Cuba Memorial Hospital Inc Snf | D131: 199005.66 | E131: 20097.06 | F131: 219102.72 | G131: 109551.36
A132: NF | B132: 700341310 | C132: Cypress Garden Center for Nursing and Rehabilitation | D132: 1036672.56 | E132: 162537.26 | F132: 1199209.82 | G132: 599604.91
A133: NF | B133: 515030210 | C133: Daleview Care Center | D133: 423397.8 | E133: 64354.47 | F133: 487752.27 | G133: 243876.135
A134: NF | B134: 010131210 | C134: Daughters Of Sarah Nursing Center | D134: 558777.87 | E134: 60063.23 | F134: 618841.1 | G134: 309420.55
A135: NF | B135: 310300030 | C135: Degraff Memorial Hospital-skilled Nursing Facility | D135: 267456.42 | E135: 42333.28 | F135: 309789.7 | G135: 154894.85
A136: NF | B136: 125430210 | C136: Delhi Rehabilitation and Nursing Center | D136: 763637.49 | E136: 109833.74 | F136: 873471.23 | G136: 436735.615
A137: NF | B137: 416100010 | C137: Diamond Hill Nursing and Rehabilitation Center | D137: 522813.69 | E137: 68355.09 | F137: 591168.78 | G137: =F137/2 -> 295584.39
A138: NF | B138: 700139310 | C138: Ditmas Park Care Center | D138: 272948.13 | E138: 53765.21 | F138: 326713.34 | G138: 163356.67
A139: PEDS | B139: 700139315 | C139: Ditmas Park Care Center | D139: 98865.27 | E139: 132305.36 | F139: =E139+D139 -> 231170.63 | G139: 115585.315
A140: VENT | B140: 700139312 | C140: Ditmas Park Care Center | D140: 101314.08 | E140: 53695.07 | F140: =E140+D140 -> 155009.15 | G140: 77504.575
A141: NF | B141: 700180910 | C141: Downtown Brooklyn Nursing & Rehabilitation Center | D141: 1209697.65 | E141: 212888.65 | F141: =D141+E141 -> 1422586.3 | G141: 711293.15
A142: NF | B142: 700138010 | C142: Dr Susan Smith Mckinney Nursing and Rehabilitation Center | D142: 1341194.4 | E142: 239766.12 | F142: =D142+E142 -> 1580960.52 | G142: 790480.26
A143: NF | B143: 700335910 | C143: Dry Harbor Nursing Home | D143: 1138609.71 | E143: 198151.21 | F143: =D143+E143 -> 1336760.92 | G143: 668380.46
A144: NF | B144: 590432110 | C144: Dumont Center for Rehabilitation and Nursing Care | D144: 488718.72 | E144: 97024.78 | F144: =D144+E144 -> 585743.5 | G144: 292871.75
A145: VENT | B145: 590432112 | C145: Dumont Center for Rehabilitation and Nursing Care | D145: 67943.61 | E145: 22647.87 | F145: =E145+D145 -> 90591.48 | G145: 45295.74
A146: NF | B146: 060130510 | C146: Dunkirk Rehabilitation & Nursing Center | D146: 173952.45 | E146: 20159.89 | F146: =D146+E146 -> 194112.34 | G146: 97056.17
A147: NF | B147: 700036010 | C147: East Haven Nursing And Rehabilitation Center | D147: 919028.25 | E147: 124464.72 | F147: =D147+E147 -> 1043492.97 | G147: 521746.485
A148: NF | B148: 515030310 | C148: East Neck Nursing and Rehabilitation Center | D148: 912493.26 | E148: 146907.71 | F148: =D148+E148 -> 1059400.97 | G148: 529700.485
A149: NF | B149: 602730410 | C149: East Side Nursing Home | D149: 294132.51 | E149: 33583.63 | F149: =D149+E149 -> 327716.14 | G149: 163858.07
A150: NF | B150: 700038310 | C150: Eastchester Rehabilitation and Health Care Center | D150: 559140.12 | E150: 91356.11 | F150: =D150+E150 -> 650496.23 | G150: 325248.115
A151: VENT | B151: 700038312 | C151: Eastchester Rehabilitation and Health Care Center | D151: 83085.66 | E151: 33696.75 | F151: =E151+D151 -> 116782.41 | G151: 58391.205
A152: NF | B152: 323930010 | C152: Eastern Star Home & Infirmary | D152: 162867.6 | E152: 17194.6 | F152: =D152+E152 -> 180062.2 | G152: 90031.1
A153: NF | B153: 410231110 | C153: Eddy Heritage House Nursing Center | D153: 296204.58 | E153: 34911.05 | F153: 331115.63 | G153: 165557.815
A154: NF | B154: 410230910 | C154: Eddy Memorial Geriatric Center | D154: 273614.67 | E154: 28684.13 | F154: 302298.8 | G154: 151149.4
A155: NF | B155: 010200110 | C155: Eddy Village Green | D155: 617245.02 | E155: 80237.72 | F155: 697482.74 | G155: 348741.37
A156: NF | B156: 015130110 | C156: Eddy Village Green at Beverwyck | D156: 52381.35 | E156: 6937.81 | F156: 59319.16 | G156: 29659.58
A157: NF | B157: 146130310 | C157: Eden Rehabilitation & Nursing Center | D157: 140770.35 | E157: 16222.02 | F157: 156992.37 | G157: 78496.185
A158: NF | B158: 275430410 | C158: Edna Tina Wilson Living Center | D158: 493616.34 | E158: 53709.14 | F158: 547325.48 | G158: 273662.74
A159: NF | B159: 700430310 | C159: Eger Health Care and Rehabilitation Center | D159: 1105731.9 | E159: 185496.15 | F159: 1291228.05 | G159: 645614.025
A160: NF | B160: 072230410 | C160: Elcor Nursing and Rehabilitation Center | D160: 1253616.84 | E160: 189733.8 | F160: 1443350.64 | G160: 721675.32
A161: NF | B161: 145130710 | C161: Elderwood at Amherst | D161: 270354.42 | E161: 32554.51 | F161: 302908.93 | G161: 151454.465
A162: NF | B162: 145530310 | C162: Elderwood at Cheektowaga | D162: 550083.87 | E162: 64924.2 | F162: 615008.07 | G162: 307504.035
A163: NF | B163: 146430210 | C163: Elderwood at Grand Island | D163: 203106.33 | E163: 22450.16 | F163: 225556.49 | G163: 112778.245
A164: NF | B164: 143030310 | C164: Elderwood at Hamburg | D164: 453696.39 | E164: 53899.16 | F164: 507595.55 | G164: 253797.775
A165: NF | B165: 503430030 | C165: Elderwood at Hornell | D165: 318084.48 | E165: 37360.33 | F165: 355444.81 | G165: 177722.405
A166: VENT | B166: 503430032 | C166: Elderwood at Hornell | D166: 0 | E166: 0 | F166: =E166+D166 -> 0 | G166: 0
A167: NF | B167: 140630310 | C167: Elderwood at Lancaster | D167: 201715.29 | E167: 23982.82 | F167: =D167+E167 -> 225698.11 | G167: 112849.055
A168: NF | B168: 333130110 | C168: Elderwood at Liverpool | D168: 325112.13 | E168: 38271.34 | F168: 363383.47 | G168: 181691.735
A169: NF | B169: 310130810 | C169: Elderwood at Lockport | D169: 349643.7 | E169: 43062.36 | F169: 392706.06 | G169: 196353.03
A170: NF | B170: 565530310 | C170: Elderwood at North Creek | D170: 266065.38 | E170: 29193.04 | F170: 295258.42 | G170: 147629.21
A171: NF | B171: 152730110 | C171: Elderwood at Ticonderoga | D171: 311375.61 | E171: 34783.09 | F171: 346158.7 | G171: 173079.35
A172: NF | B172: 532030210 | C172: Elderwood at Waverly | D172: 653788.8 | E172: 78475.43 | F172: 732264.23 | G172: 366132.115
A173: NF | B173: 312130410 | C173: Elderwood at Wheatfield | D173: 340283.16 | E173: 39240.95 | F173: 379524.11 | G173: 189762.055
A174: NF | B174: 142130710 | C174: Elderwood at Williamsville | D174: 463752.45 | E174: 55881.92 | F174: 519634.37 | G174: 259817.185
A175: VENT | B175: 142130712 | C175: Elderwood at Williamsville | D175: 49831.11 | E175: 13638.88 | F175: =E175+D175 -> 63469.99 | G175: 31734.995
A176: NF | B176: 272830010 | C176: Elderwood of Lakeside at Brockport | D176: 338413.95 | E176: 41403.66 | F176: =D176+E176 -> 379817.61 | G176: 189908.805
A177: NF | B177: 156030210 | C177: Elderwood of Uihlein at Lake Placid | D177: 519437.52 | E177: 65496.38 | F177: =D177+E177 -> 584933.9 | G177: 292466.95
A178: NF | B178: 030130710 | C178: Elizabeth Church Manor Nursing Home | D178: 385767.27 | E178: 38029.4 | F178: =D178+E178 -> 423796.67 | G178: 211898.335
A179: PEDS | B179: 700234615 | C179: Elizabeth Seton Childrens Center | D179: 848824.2 | E179: 823337.17 | F179: =E179+D179 -> 1672161.37 | G179: 836080.685
A180: NF | B180: 140133710 | C180: Ellicott Center for Rehabilitation and Nursing for Waterfront Operations | D180: 707575.68 | E180: 94678.27 | F180: =D180+E180 -> 802253.95 | G180: 401126.975
A181: NF | B181: 460100130 | C181: Ellis Residential & Rehabilitation Center | D181: 84056.49 | E181: 13960.24 | F181: 98016.73 | G181: 49008.365
A182: NF | B182: 342930510 | C182: Elm Manor Nursing and Rehabilitation Center | D182: 127569.96 | E182: 15238.33 | F182: 142808.29 | G182: 71404.145
A183: NF | B183: 700339610 | C183: Elmhurst Care Center Inc | D183: 984914.28 | E183: 155579.1 | F183: 1140493.38 | G183: 570246.69
A184: NF | B184: 290130410 | C184: Emerge Nursing and Rehabilitation at Glen Cove | D184: 181588.68 | E184: 25603.21 | F184: 207191.89 | G184: 103595.945
A185: NF | B185: 590231910 | C185: EPIC Rehabilitation and Nursing at White Plains | D185: 407965.95 | E185: 69072.7 | F185: 477038.65 | G185: 238519.325
A186: NF | B186: 155230010 | C186: Essex Center for Rehabilitation and Healthcare | D186: 421832.88 | E186: 71337.85 | F186: 493170.73 | G186: 246585.365
A187: NF | B187: 415230510 | C187: Evergreen Commons Rehabilitation and Nursing Center | D187: 1033803.54 | E187: 122919.22 | F187: 1156722.76 | G187: 578361.38
A188: NF | B188: 295230910 | C188: Excel at Woodbury for Rehabilitation and Nursing LLC | D188: 180009.27 | E188: 24875.88 | F188: 204885.15 | G188: 102442.575
A189: NF | B189: 272530010 | C189: Fairport Baptist Homes | D189: 362757.15 | E189: 40477.77 | F189: 403234.92 | G189: 201617.46
A190: NF | B190: 700337510 | C190: Fairview Nursing Care Center Inc | D190: 500238.27 | E190: 116015.32 | F190: 616253.59 | G190: 308126.795
A191: NF | B191: 700341610 | C191: Far Rockaway Center for Rehabilitation and Nursing | D191: 482314.14 | E191: 65695.37 | F191: 548009.51 | G191: 274004.755
A192: NF | B192: 143530210 | C192: Father Baker Manor | D192: 447291.81 | E192: 46225.46 | F192: 493517.27 | G192: 246758.635
A193: NF | B193: 132730010 | C193: Ferncliff Nursing Home Co Inc | D193: 921897.27 | E193: 119754.07 | F193: 1041651.34 | G193: 520825.67
A194: ND | B194: 132730016 | C194: Ferncliff Nursing Home Co Inc | D194: 261674.91 | E194: 52989.74 | F194: =E194+D194 -> 314664.65 | G194: 157332.325
A195: NF | B195: 142730310 | C195: Fiddlers Green Manor Rehabilitation and Nursing Center | D195: 307564.74 | E195: 32421.13 | F195: =D195+E195 -> 339985.87 | G195: 169992.935
A196: NF | B196: 700038510 | C196: Fieldston Lodge Care Center | D196: 839536.11 | E196: 146777.74 | F196: =D196+E196 -> 986313.85 | G196: 493156.925
A197: VENT | B197: 700038512 | C197: Fieldston Lodge Care Center | D197: 16750.44 | E197: 5989.89 | F197: =E197+D197 -> 22740.33 | G197: 11370.165
A198: NF | B198: 050100030 | C198: Finger Lakes Center for Living | D198: 207989.46 | E198: 24404.27 | F198: =D198+E198 -> 232393.73 | G198: 116196.865
A199: NF | B199: 130130210 | C199: Fishkill Center for Rehabilitation and Nursing | D199: 596205.54 | E199: 78324.47 | F199: 674530.01 | G199: 337265.005
A200: NF | B200: 212430010 | C200: Foltsbrook Center for Nursing and Rehabilitation | D200: 500875.83 | E200: 53205.4 | F200: 554081.23 | G200: 277040.615
A201: NF | B201: 700039510 | C201: Fordham Nursing and Rehabilitation Center | D201: 966917.7 | E201: 141796.12 | F201: 1108713.82 | G201: =F201/2 -> 554356.91
A202: NF | B202: 700339410 | C202: Forest Hills Care Center | D202: 295248.24 | E202: 46418.67 | F202: 341666.91 | G202: 170833.455
A203: NF | B203: 700338710 | C203: Forest View Center for Rehabilitation & Nursing | D203: 522263.07 | E203: 64930.54 | F203: 587193.61 | G203: 293596.805
... 490 more rows

Sheet 2024 UPL (hidden)
A1: OpCert | B1: short opcert | C1: Name | D1: 2024 UPL Demo | E1: $280.5M NH ATB | F1: Base 2025 UPL Room (one time ATB out) | G1: Type
A2: 2950302A | B2: =LEFT(A2,7) -> 2950302 | C2: A Holly Patterson Extended Care Facility | D2: -37967.80096 | E2: 0 | F2: =D2+E2 -> -37967.80096 | G2: NSG
A3: 2950302N | B3: 2950302 | C3: A Holly Patterson Extended Care Facility | D3: 29383971.81 | E3: 1637639.45 | F3: 31021611.26 | G3: NSG
A4: 2950302V | B4: 2950302 | C4: A Holly Patterson Extended Care Facility | D4: -33211.60248 | E4: 0 | F4: -33211.60248 | G4: NSG
A5: 2725301N | B5: 2725301 | C5: Aaron Manor Rehabilitation and Nursing Center | D5: 682809.349 | E5: 368343.2 | F5: 1051152.549 | G5: Private
A6: 0420302N | B6: 0420302 | C6: Absolut Center for Nursing and Rehabilitation at Allega | D6: 313586.8751 | E6: 118101.8 | F6: 431688.6751 | G6: Private
A7: 1422303N | B7: 1422303 | C7: Absolut Center for Nursing and Rehabilitation at Auror | D7: 4542501.14 | E7: 744735.1 | F7: 5287236.24 | G7: Private
A8: 0302303N | B8: 0302303 | C8: Absolut Center for Nursing and Rehabilitation at Endic | D8: 1351069.679 | E8: 529777.9 | F8: 1880847.579 | G8: Private
A9: 3158302N | B9: 3158302 | C9: Absolut Center for Nursing and Rehabilitation at Gaspo | D9: 827291.5994 | E9: 246488.05 | F9: 1073779.649 | G9: Private
A10: 5026301N | B10: 5026301 | C10: Absolut Center for Nursing and Rehabilitation at Three | D10: 1504290.765 | E10: 319847.75 | F10: 1824138.515 | G10: Private
A11: 0675302N | B11: 0675302 | C11: Absolut Center for Nursing and Rehabilitation at Westfi | D11: 940537.3718 | E11: 299427.9 | F11: 1239965.272 | G11: Private
A12: 5155301N | B12: 5155301 | C12: Acadia Center for Nursing and Rehabilitation | D12: 1719372.694 | E12: 343397.65 | F12: 2062770.344 | G12: Private
A13: 5220303N | B13: 5220303 | C13: Achieve Rehab and Nursing Facility | D13: 1509397.575 | E13: 334657.9 | F13: 1844055.475 | G13: Private
A14: 5907318N | B14: 5907318 | C14: Adira at Riverside Rehabilitation and Nursing | D14: 1661330.939 | E14: 280688.25 | F14: 1942019.189 | G14: Private
A15: 5907318V | B15: 5907318 | C15: Adira at Riverside Rehabilitation and Nursing | D15: -84122.53895 | E15: 0 | F15: -84122.53895 | G15: Private
A16: 5154323N | B16: 5154323 | C16: Affinity Skilled Living and Rehabilitation Center | D16: 5225338.397 | E16: 625847.4 | F16: 5851185.797 | G16: Private
A17: 5154323V | B17: 5154323 | C17: Affinity Skilled Living and Rehabilitation Center | D17: -203127.5377 | E17: 0 | F17: -203127.5377 | G17: Private
A18: 1624000N | B18: 1624000 | C18: Alice Hyde Medical Center | D18: 6549234.556 | E18: 465293.45 | F18: 7014528.006 | G18: Private
A19: 2129303N | B19: 2129303 | C19: Alpine Rehabilitation and Nursing Center | D19: 173135.3439 | E19: 257477.1 | F19: 430612.4439 | G19: Private
A20: 7002356N | B20: 7002356 | C20: Amsterdam Nursing Home Corp (amsterdam House) | D20: 3794653.255 | E20: 1129582.2 | F20: 4924235.455 | G20: Private
A21: 5926300N | B21: 5926300 | C21: Andrus On Hudson | D21: 3837796.278 | E21: 641836.4 | F21: 4479632.678 | G21: Private
A22: 5153311N | B22: 5153311 | C22: Apex Rehabilitation & Care Center | D22: 1345323.076 | E22: 457217.65 | F22: 1802540.726 | G22: Private
A23: 7001378N | B23: 7001378 | C23: Atrium Center for Rehabilitation and Nursing | D23: 1343511.228 | E23: 1029298.65 | F23: 2372809.878 | G23: Private
A24: 0501310N | B24: 0501310 | C24: Auburn Rehabilitation and Nursing Center | D24: 799881.3078 | E24: 277612.4 | F24: 1077493.708 | G24: Private
A25: 3801000N | B25: 3801000 | C25: Aurelia Osborn Fox Memorial Hospital | D25: 4306577.107 | E25: 296894.05 | F25: 4603471.157 | G25: Private
A26: 1430301N | B26: 1430301 | C26: Autumn View Health Care Facility LLC | D26: 4903210.072 | E26: 466729.75 | F26: 5369939.822 | G26: Private
A27: 2520301N | B27: 2520301 | C27: Avon Nursing Home LLC | D27: 473455.0157 | E27: 124470.3 | F27: 597925.3157 | G27: Private
A28: 7000319N | B28: 7000319 | C28: Bainbridge Nursing And Rehabilitation Center | D28: -1072252.22 | E28: 620820.35 | F28: -451431.8695 | G28: Private
A29: 4620300N | B29: 4620300 | C29: Baptist Health Nursing And Rehabilitation Center Inc | D29: 3616314.67 | E29: 644207.65 | F29: 4260522.32 | G29: Private
A30: 5904317N | B30: 5904317 | C30: Bayberry Nursing Home | D30: 955557.8712 | E30: 113738.7 | F30: 1069296.571 | G30: Private
A31: 7003412N | B31: 7003412 | C31: Beach Gardens Rehab and Nursing Center | D31: 185480.7814 | E31: 263926.9 | F31: 449407.6814 | G31: Private
A32: 2902303N | B32: 2902303 | C32: Beach Terrace Care Center | D32: 2160225.498 | E32: 527230.5 | F32: 2687455.998 | G32: Private
A33: 7003401N | B33: 7003401 | C33: Beacon Rehabilitation and Nursing Center | D33: 1805638.605 | E33: 362056 | F33: 2167694.605 | G33: Private
A34: 7001805N | B34: 7001805 | C34: Bedford Center for Nursing and Rehabilitation | D34: 3242378.961 | E34: 558178.7 | F34: 3800557.661 | G34: Private
A35: 5401312N | B35: 5401312 | C35: Beechtree Center for Rehabilitation and Nursing | D35: 2235954.512 | E35: 372597.9 | F35: 2608552.412 | G35: Private
A36: 1451306N | B36: 1451306 | C36: Beechwood Homes | D36: 4649953.558 | E36: 523084.2 | F36: 5173037.758 | G36: Private
A37: 2950301N | B37: 2950301 | C37: Belair Care Center Inc | D37: 1473258.113 | E37: 67235.1 | F37: 1540493.213 | G37: Private
A38: 5151321N | B38: 5151321 | C38: Bellhaven Center For Rehabilitation and Nursing Care | D38: -2987820.597 | E38: 799070.6 | F38: -2188749.997 | G38: Private
A39: 7001396N | B39: 7001396 | C39: Bensonhurst Center for Rehabilitation and Healthcare | D39: 1353733.423 | E39: 318086.25 | F39: 1671819.673 | G39: Private
A40: 5101301N | B40: 5101301 | C40: Berkshire Nursing & Rehabilitation Center | D40: 3622503.075 | E40: 461743.35 | F40: 4084246.425 | G40: Private
A41: 7000399N | B41: 7000399 | C41: Beth Abraham Center for Rehabilitation and Nursing | D41: -536187.5887 | E41: 1389267.95 | F41: 853080.3613 | G41: Private
A42: 3201308N | B42: 3201308 | C42: Bethany Gardens Skilled Living Center | D42: 1787793.525 | E42: 292463.2 | F42: 2080256.725 | G42: Private
A43: 0722301N | B43: 0722301 | C43: Bethany Nursing Home & Health Related Facility Inc | D43: 1648872.629 | E43: 291839.9 | F43: 1940712.529 | G43: Private
A44: 5921303N | B44: 5921303 | C44: Bethel Nursing and Rehabilitation Center | D44: 2515096.612 | E44: 356297.25 | F44: 2871393.862 | G44: Private
A45: 5905303N | B45: 5905303 | C45: Bethel Nursing Home Company Inc | D45: 915067.5243 | E45: 81720.05 | F45: 996787.5743 | G45: Private
A46: 0151300N | B46: 0151300 | C46: Bethlehem Commons Care Center | D46: 2157443.615 | E46: 264143.7 | F46: 2421587.315 | G46: Private
A47: 3201307N | B47: 3201307 | C47: Betsy Ross Rehabilitation Center Inc | D47: 2831073.651 | E47: 232477.35 | F47: 3063551.001 | G47: Private
A48: 7003352N | B48: 7003352 | C48: Bezalel Rehabilitation and Nursing Center | D48: 1840248.64 | E48: 376405.45 | F48: 2216654.09 | G48: Private
A49: 3301330N | B49: 3301330 | C49: Bishop Rehabilitation and Nursing Center | D49: 9242727.317 | E49: 973513.3 | F49: 10216240.62 | G49: Private
A50: 3301330V | B50: 3301330 | C50: Bishop Rehabilitation and Nursing Center | D50: 0 | E50: 0 | F50: 0 | G50: Private
A51: 7001394N | B51: 7001394 | C51: Boro Park Center for Rehabilitation and Healthcare | D51: 6988326.223 | E51: 1077902.5 | F51: 8066228.723 | G51: Private
A52: 5931302N | B52: 5931302 | C52: Briarcliff Manor Center for Rehabilitation and Nursing Care | D52: 2156204.135 | E52: 340836.7 | F52: 2497040.835 | G52: Private
A53: 7003309N | B53: 7003309 | C53: Bridge View Nursing Home | D53: 1397681.016 | E53: 711510.5 | F53: 2109191.516 | G53: Private
A54: 0301308N | B54: 0301308 | C54: Bridgewater Center for Rehabilitation & Nursing LLC | D54: 3164573.008 | E54: 941223.65 | F54: 4105796.658 | G54: Private
A55: 0301308V | B55: 0301308 | C55: Bridgewater Center for Rehabilitation & Nursing LLC | D55: -151306.4503 | E55: 0 | F55: -151306.4503 | G55: Private
A56: 2701354N | B56: 2701354 | C56: Brighton Manor | D56: 1633582.576 | E56: 219835.2 | F56: 1853417.776 | G56: Private
A57: 7000381N | B57: 7000381 | C57: Bronx Center For Rehabilitation and Health | D57: 2118003.024 | E57: 604831.35 | F57: 2722834.374 | G57: Private
A58: 7000397A | B58: 7000397 | C58: Bronx Gardens Rehabilitation and Nursing Center | D58: -26308.37964 | E58: 0 | F58: -26308.37964 | G58: Private
A59: 7000397N | B59: 7000397 | C59: Bronx Gardens Rehabilitation and Nursing Center | D59: 1601623.2 | E59: 482258.05 | F59: 2083881.25 | G59: Private
A60: 7000397V | B60: 7000397 | C60: Bronx Gardens Rehabilitation and Nursing Center | D60: -199209.5497 | E60: 0 | F60: -199209.5497 | G60: Private
A61: 7000380N | B61: 7000380 | C61: Bronx Park Rehabilitation & Nursing Center | D61: 2343858.661 | E61: 750168.65 | F61: 3094027.311 | G61: Private
A62: 7000364A | B62: 7000364 | C62: BronxCare Special Care Center | D62: -1013681.674 | E62: 0 | F62: -1013681.674 | G62: Private
A63: 7000364N | B63: 7000364 | C63: BronxCare Special Care Center | D63: 2185106.547 | E63: 613069.75 | F63: 2798176.297 | G63: Private
A64: 5123304N | B64: 5123304 | C64: Brookhaven Health Care Facility LLC | D64: 2737593.781 | E64: 218818.95 | F64: 2956412.731 | G64: Private
A65: 7003399N | B65: 7003399 | C65: Brookhaven Rehabilitation & Health Care Center | D65: 917308.1489 | E65: 835343.95 | F65: 1752652.099 | G65: Private
A66: 7001388N | B66: =LEFT(A66,7) -> 7001388 | C66: Brooklyn Center for Rehabilitation and Residential Hea | D66: 5968115.475 | E66: 665670.85 | F66: =D66+E66 -> 6633786.325 | G66: Private
A67: 7001800N | B67: 7001800 | C67: Brooklyn Gardens Nursing & Rehabilitation Center | D67: 1696020.644 | E67: 625657.7 | F67: 2321678.344 | G67: Private
A68: 7001308N | B68: 7001308 | C68: Brooklyn United Methodist Church Home | D68: 36782.19075 | E68: 400212.8 | F68: 436994.9907 | G68: Private
A69: 7001382N | B69: 7001382 | C69: Brooklyn-Queens Nursing Home | D69: -1494886.099 | E69: 368221.25 | F69: -1126664.849 | G69: Private
A70: 5157318N | B70: 5157318 | C70: Brookside Multicare Nursing Center | D70: 4506260.576 | E70: 1135828.75 | F70: 5642089.326 | G70: Private
A71: 5157318S | B71: 5157318 | C71: Brookside Multicare Nursing Center | D71: -8316508.106 | E71: 0 | F71: -8316508.106 | G71: Private
A72: 1456300N | B72: 1456300 | C72: Brothers Of Mercy Nursing & Rehabilitation Center | D72: 4629823.085 | E72: 490157.7 | F72: 5119980.785 | G72: Private
A73: 7001035N | B73: 7001035 | C73: Buena Vida Continuing Care & Rehab Ctr | D73: 2687471.426 | E73: 733746.05 | F73: 3421217.476 | G73: Private
A74: 1401341N | B74: 1401341 | C74: Buffalo Center for Rehabilitation and Nursing | D74: 56552.25161 | E74: 568368.3 | F74: 624920.5516 | G74: Private
A75: 7001364N | B75: 7001364 | C75: Bushwick Center for Rehabilitation and Health Care | D75: 6668481.326 | E75: 654072.05 | F75: 7322553.376 | G75: Private
A76: 3557302N | B76: 3557302 | C76: Campbell Hall Rehabilitation Center Inc | D76: 1594846.489 | E76: 412014.85 | F76: 2006861.339 | G76: Private
A77: 1421305N | B77: 1421305 | C77: Canterbury Woods | D77: 738904.6344 | E77: 0 | F77: 738904.6344 | G77: Private
A78: 2850301N | B78: 2850301 | C78: Capstone Center for Rehabilitation and Nursing | D78: -541374.0391 | E78: 426581.1 | F78: -114792.9391 | G78: Private
A79: 5153306N | B79: 5153306 | C79: Carillon Nursing and Rehabilitation Center | D79: 1479632.915 | E79: 700521.45 | F79: 2180154.365 | G79: Private
A80: 7003373N | B80: 7003373 | C80: Caring Family Nursing and Rehabilitation Center | D80: 942089.016 | E80: 531932.35 | F80: 1474021.366 | G80: Private
A81: 7004310N | B81: 7004310 | C81: Carmel Richmond Healthcare and Rehabilitation Center | D81: 6081283.829 | E81: 909679.25 | F81: 6990963.079 | G81: Private
A82: 2238304N | B82: 2238304 | C82: Carthage Center for Rehabilitation and Nursing | D82: 1594042.506 | E82: 255702.05 | F82: 1849744.556 | G82: Private
A83: 7000373A | B83: 7000373 | C83: Casa Promesa | D83: -1846507.69 | E83: 206678.15 | F83: -1639829.54 | G83: Private
A84: 7001366N | B84: 7001366 | C84: Caton Park Nursing Home | D84: -754131.5794 | E84: 331582.05 | F84: -422549.5294 | G84: Private
A85: 5401311N | B85: 5401311 | C85: Cayuga Ridge Extended Care | D85: 1265767.143 | E85: 330728.4 | F85: 1596495.543 | G85: Private
A86: 5905309N | B86: 5905309 | C86: Cedar Manor Nursing & Rehabilitation Center | D86: 1894389.98 | E86: 338790.65 | F86: 2233180.63 | G86: Private
A87: 2952308N | B87: 2952308 | C87: Central Island Healthcare | D87: 2406127.059 | E87: 378668.3 | F87: 2784795.359 | G87: Private
A88: 3301326N | B88: 3301326 | C88: Central Park Rehabilitation and Nursing Center | D88: 912064.9234 | E88: 459548.25 | F88: 1371613.173 | G88: Private
A89: 0901001N | B89: 0901001 | C89: Champlain Valley Physicians Hospital Medical Center Snf | D89: 1829026.346 | E89: 93887.95 | F89: 1922914.296 | G89: Private
A90: 7003351N | B90: 7003351 | C90: Chapin Home For The Aging | D90: 4893130.966 | E90: 462326 | F90: 5355456.966 | G90: Private
A91: 3227304D | B91: 3227304 | C91: Charles T Sitrin Health Care Center Inc | D91: -68577.54087 | E91: 0 | F91: -68577.54087 | G91: Private
A92: 3227304N | B92: 3227304 | C92: Charles T Sitrin Health Care Center Inc | D92: 1014496.787 | E92: 529561.1 | F92: 1544057.887 | G92: Private
A93: 0823300N | B93: 0823300 | C93: ChaseHealth Rehab and Residential Care | D93: -8336.410705 | E93: 275200.5 | F93: 266864.0893 | G93: Private
A94: 0601304N | B94: 0601304 | C94: Chautauqua Nursing and Rehabilitation Center | D94: -244840.1049 | E94: 610075.2 | F94: 365235.0951 | G94: Private
A95: 0701301N | B95: 0701301 | C95: Chemung County Health Center-nursing Facility | D95: 5874014.267 | E95: 465157.95 | F95: 6339172.217 | G95: NSG
A96: 0824000N | B96: 0824000 | C96: Chenango Memorial Hospital Inc Snf | D96: 2390345.587 | E96: 0 | F96: 2390345.587 | G96: Private
A97: 3801304N | B97: 3801304 | C97: Chestnut Park Rehabilitation and Nursing Center | D97: 1032955.857 | E97: 172830.25 | F97: 1205786.107 | G97: Private
A98: 2701339N | B98: 2701339 | C98: Church Home Of The Protestant Episcopal Church | D98: -1923588.412 | E98: 305891.25 | F98: -1617697.162 | G98: Private
A99: 7003380N | B99: 7003380 | C99: Cliffside Rehabilitation and Residential Health Care Center | D99: 2603220.474 | E99: 479222.85 | F99: 3082443.324 | G99: Private
A100: 7003380V | B100: 7003380 | C100: Cliffside Rehabilitation and Residential Health Care Center | D100: -469349.4582 | E100: 0 | F100: -469349.4582 | G100: Private
A101: 3421000N | B101: 3421000 | C101: Clifton Springs Hospital And Clinic Extended Care | D101: 6464623.343 | E101: 320552.35 | F101: 6785175.693 | G101: Private
A102: 3421000V | B102: 3421000 | C102: Clifton Springs Hospital And Clinic Extended Care | D102: -25181.27653 | E102: 0 | F102: -25181.27653 | G102: Private
A103: 0952300N | B103: 0952300 | C103: Clinton County Nursing Home | D103: 3825969.66 | E103: 238778.1 | F103: 4064747.76 | G103: NSG
A104: 7004321N | B104: 7004321 | C104: Clove Lakes Health Care and Rehabilitation Center | D104: 2260239.358 | E104: 902145.45 | F104: 3162384.808 | G104: Private
A105: 7001323N | B105: 7001323 | C105: Cobble Hill Health Center Inc | D105: 8749130.799 | E105: 1051507.1 | F105: 9800637.899 | G105: Private
A106: 2952310N | B106: 2952310 | C106: Cold Spring Hills Center for Nursing and Rehabilitation | D106: 12330035.61 | E106: 1613073.3 | F106: 13943108.91 | G106: Private
A107: 2952310V | B107: 2952310 | C107: Cold Spring Hills Center for Nursing and Rehabilitation | D107: -438109.9972 | E107: 0 | F107: -438109.9972 | G107: Private
A108: 7002336N | B108: 7002336 | C108: Coler Rehabilitation and Nursing Care Center | D108: 30009098.78 | E108: 1133999.5 | F108: 31143098.28 | G108: NSG
A109: 3201311N | B109: 3201311 | C109: Colonial Park Rehabilitation and Nursing Center | D109: 767680.1765 | E109: 231881.15 | F109: 999561.3265 | G109: Private
A110: 1421308N | B110: 1421308 | C110: Comprehensive Rehabilitation and Nursing Center at Williamsville | D110: 930260.4736 | E110: 331202.65 | F110: 1261463.124 | G110: Private
A111: 7001348N | B111: 7001348 | C111: Concord Nursing and Rehabilitation Center | D111: 2126830.163 | E111: 441635.15 | F111: 2568465.313 | G111: Private
A112: 7001348V | B112: 7001348 | C112: Concord Nursing and Rehabilitation Center | D112: -44927.62256 | E112: 0 | F112: -44927.62256 | G112: Private
A113: 7000375N | B113: 7000375 | C113: Concourse Rehabilitation and Nursing Center | D113: 1924882.323 | E113: 618029.05 | F113: 2542911.373 | G113: Private
A114: 7000375V | B114: 7000375 | C114: Concourse Rehabilitation and Nursing Center | D114: -102324.2898 | E114: 0 | F114: -102324.2898 | G114: Private
A115: 2525301N | B115: 2525301 | C115: Conesus Lake Nursing Home LLC | D115: 553743.832 | E115: 150147.55 | F115: 703891.382 | G115: Private
A116: 3824301N | B116: 3824301 | C116: Cooperstown Center for Rehabilitation and Nursing | D116: 5084811.275 | E116: 460578.05 | F116: 5545389.325 | G116: Private
A117: 5001300N | B117: 5001300 | C117: Corning Center for Rehabilitation and Healthcare | D117: 1854421.213 | E117: 394332.1 | F117: 2248753.313 | G117: Private
A118: 1101310N | B118: 1101310 | C118: Cortland Park Rehabilitation and Nursing Center | D118: 2390705.635 | E118: 307503.7 | F118: 2698209.335 | G118: Private
A119: 1101306N | B119: 1101306 | C119: Cortland Regional Nursing and Rehabilitation Center | D119: 2501637.026 | E119: 154131.25 | F119: 2655768.276 | G119: Private
A120: 5901307N | B120: 5901307 | C120: Cortlandt Healthcare | D120: 2416118.87 | E120: 290755.9 | F120: 2706874.77 | G120: Private
A121: 2762302N | B121: 2762302 | C121: Crest Manor Living and Rehabilitation Center | D121: 1548127.621 | E121: 194970.95 | F121: 1743098.571 | G121: Private
A122: 2623300N | B122: 2623300 | C122: Crouse Community Center Inc | D122: 2798064.478 | E122: 284387.4 | F122: 3082451.878 | G122: Private
A123: 7001398N | B123: 7001398 | C123: Crown Heights Center for Nursing and Rehabilitation | D123: 2438081.882 | E123: 905045.15 | F123: 3343127.032 | G123: Private
A124: 1101312N | B124: 1101312 | C124: Crown Park Rehabilitation and Nursing Center | D124: 1481065.956 | E124: 514940.65 | F124: 1996006.606 | G124: Private
A125: 0226000N | B125: 0226000 | C125: Cuba Memorial Hospital Inc Snf | D125: 1229113.517 | E125: 172328.9 | F125: 1401442.417 | G125: Private
A126: 7003413N | B126: 7003413 | C126: Cypress Garden Center for Nursing and Rehabilitation | D126: 1215824.872 | E126: 796170.9 | F126: 2011995.772 | G126: Private
A127: 5150302N | B127: 5150302 | C127: Daleview Care Center | D127: 1566667.229 | E127: 301148.75 | F127: 1867815.979 | G127: Private
A128: 0101312N | B128: 0101312 | C128: Daughters Of Sarah Nursing Center - NF | D128: 3184607.734 | E128: 482149.65 | F128: 3666757.384 | G128: Private
A129: 3103000N | B129: 3103000 | C129: Degraff Memorial Hospital-skilled Nursing Facility | D129: 3306203.639 | E129: 207735.05 | F129: 3513938.689 | G129: Private
A130: 1254302N | B130: =LEFT(A130,7) -> 1254302 | C130: Delhi Rehabilitation and Nursing Center | D130: 1920470.994 | E130: 536038 | F130: =D130+E130 -> 2456508.994 | G130: Private
A131: 4161000N | B131: 4161000 | C131: Diamond Hill Nursing and Rehabilitation Center | D131: 2272520.195 | E131: 383126.25 | F131: 2655646.445 | G131: Private
A132: 7001393N | B132: 7001393 | C132: Ditmas Park Care Center | D132: 10933613.83 | E132: 398803.6 | F132: 11332417.43 | G132: Private
A133: 7001393S | B133: 7001393 | C133: Ditmas Park Care Center | D133: -3799047.114 | E133: 0 | F133: -3799047.114 | G133: Private
A134: 7001393V | B134: 7001393 | C134: Ditmas Park Care Center | D134: -199868.4466 | E134: 0 | F134: -199868.4466 | G134: Private
A135: 7001809N | B135: 7001809 | C135: Downtown Brooklyn Nursing & Rehabilitation Center | D135: 3092185.485 | E135: 820493.15 | F135: 3912678.635 | G135: Private
A136: 7001380N | B136: 7001380 | C136: Dr Susan Smith Mckinney Nursing and Rehabilitation Center | D136: 19535769.98 | E136: 859679.75 | F136: 20395449.73 | G136: NSG
A137: 7003359N | B137: 7003359 | C137: Dry Harbor Nursing Home | D137: -564653.7482 | E137: 762282.35 | F137: 197628.6018 | G137: Private
A138: 5904321N | B138: 5904321 | C138: Dumont Center for Rehabilitation and Nursing Care | D138: 1491441.415 | E138: 600156.6 | F138: 2091598.015 | G138: Private
A139: 5904321V | B139: 5904321 | C139: Dumont Center for Rehabilitation and Nursing Care | D139: -186330.8939 | E139: 0 | F139: -186330.8939 | G139: Private
A140: 0601305N | B140: 0601305 | C140: Dunkirk Rehabilitation & Nursing Center | D140: 532363.699 | E140: 116218.35 | F140: 648582.049 | G140: Private
A141: 7000360N | B141: 7000360 | C141: East Haven Nursing And Rehabilitation Center | D141: 87369.19979 | E141: 635698.25 | F141: 723067.4498 | G141: Private
A142: 5150303N | B142: 5150303 | C142: East Neck Nursing and Rehabilitation Center | D142: 2482786.067 | E142: 698082.45 | F142: 3180868.517 | G142: Private
A143: 6027304N | B143: 6027304 | C143: East Side Nursing Home | D143: 1212671.991 | E143: 185716.3 | F143: 1398388.291 | G143: Private
A144: 7000383N | B144: 7000383 | C144: Eastchester Rehabilitation and Health Care Center | D144: 2403597.822 | E144: 546837.35 | F144: 2950435.172 | G144: Private
A145: 7000383V | B145: 7000383 | C145: Eastchester Rehabilitation and Health Care Center | D145: -949821.6608 | E145: 0 | F145: -949821.6608 | G145: Private
A146: 3239300N | B146: 3239300 | C146: Eastern Star Home & Infirmary | D146: 1973996.41 | E146: 93034.3 | F146: 2067030.71 | G146: Private
A147: 4102311N | B147: 4102311 | C147: Eddy Heritage House Nursing Center | D147: 1702245.432 | E147: 243208.95 | F147: 1945454.382 | G147: Private
A148: 4102309N | B148: 4102309 | C148: Eddy Memorial Geriatric Center | D148: 2243054.89 | E148: 206989.8 | F148: 2450044.69 | G148: Private
A149: 0102001N | B149: 0102001 | C149: Eddy Village Green | D149: 4642969.3 | E149: 392055.7 | F149: 5035025 | G149: Private
A150: 0151301N | B150: 0151301 | C150: Eddy Village Green at Beverwyck | D150: 4279409.212 | E150: 50880.25 | F150: 4330289.462 | G150: Private
A151: 1461303N | B151: 1461303 | C151: Eden Rehabilitation & Nursing Center | D151: 568091.4716 | E151: 125879.5 | F151: 693970.9716 | G151: Private
A152: 2754304N | B152: 2754304 | C152: Edna Tina Wilson Living Center | D152: 3773960.573 | E152: 349982.95 | F152: 4123943.523 | G152: Private
A153: 7004303N | B153: 7004303 | C153: Eger Health Care and Rehabilitation Center | D153: 4537181.941 | E153: 843501.05 | F153: 5380682.991 | G153: Private
A154: 0722304N | B154: 0722304 | C154: Elcor Nursing and Rehabilitation Center | D154: -4616593.305 | E154: 889422 | F154: -3727171.305 | G154: Private
A155: 1451307N | B155: 1451307 | C155: Elderwood at Amherst | D155: 2259563.66 | E155: 188128.2 | F155: 2447691.86 | G155: Private
A156: 1455303N | B156: 1455303 | C156: Elderwood at Cheektowaga | D156: 4674582.363 | E156: 399494.65 | F156: 5074077.013 | G156: Private
A157: 1464302N | B157: 1464302 | C157: Elderwood at Grand Island | D157: 1363352.125 | E157: 191380.2 | F157: 1554732.325 | G157: Private
A158: 1430303N | B158: 1430303 | C158: Elderwood at Hamburg | D158: 2026794.23 | E158: 307097.2 | F158: 2333891.43 | G158: Private
A159: 5034300N | B159: 5034300 | C159: Elderwood at Hornell | D159: 609298.6572 | E159: 290728.8 | F159: 900027.4572 | G159: Private
A160: 5034300V | B160: 5034300 | C160: Elderwood at Hornell | D160: 0 | E160: 0 | F160: 0 | G160: Private
A161: 1406303N | B161: 1406303 | C161: Elderwood at Lancaster | D161: 1832280.411 | E161: 207436.95 | F161: 2039717.361 | G161: Private
A162: 3331301N | B162: 3331301 | C162: Elderwood at Liverpool | D162: 1526038.507 | E162: 340592.8 | F162: 1866631.307 | G162: Private
A163: 3101308N | B163: 3101308 | C163: Elderwood at Lockport | D163: 2384853.617 | E163: 283506.65 | F163: 2668360.267 | G163: Private
A164: 5655303N | B164: 5655303 | C164: Elderwood at North Creek | D164: 1966142.251 | E164: 189564.5 | F164: 2155706.751 | G164: Private
A165: 1527301N | B165: 1527301 | C165: Elderwood at Ticonderoga | D165: 849331.3762 | E165: 273046.05 | F165: 1122377.426 | G165: Private
A166: 5320302N | B166: 5320302 | C166: Elderwood at Waverly | D166: 1599531.515 | E166: 605319.15 | F166: 2204850.665 | G166: Private
A167: 3121304N | B167: 3121304 | C167: Elderwood at Wheatfield | D167: 2507847.214 | E167: 294373.75 | F167: 2802220.964 | G167: Private
A168: 1421307N | B168: 1421307 | C168: Elderwood at Williamsville | D168: 3916716.066 | E168: 410551.45 | F168: 4327267.516 | G168: Private
A169: 1421307V | B169: 1421307 | C169: Elderwood at Williamsville | D169: -18048.7381 | E169: 0 | F169: -18048.7381 | G169: Private
A170: 2728300N | B170: 2728300 | C170: Elderwood of Lakeside at Brockport | D170: 2040163.186 | E170: 261054.3 | F170: 2301217.486 | G170: Private
A171: 1560302N | B171: 1560302 | C171: Elderwood of Uihlein at Lake Placid | D171: 4801682.231 | E171: 297070.2 | F171: 5098752.431 | G171: Private
A172: 0301307N | B172: 0301307 | C172: Elizabeth Church Manor Nursing Home | D172: 4813550.36 | E172: 262571.9 | F172: 5076122.26 | G172: Private
A173: 7002346S | B173: 7002346 | C173: Elizabeth Seton Childrens Center | D173: -77979726 | E173: 789409.45 | F173: -77190316.55 | G173: Private
A174: 1401337N | B174: 1401337 | C174: Ellicott Center for Rehabilitation and Nursing for Waterfront Operations | D174: 2331378.231 | E174: 404724.95 | F174: 2736103.181 | G174: Private
A175: 4601001N | B175: 4601001 | C175: Ellis Residential & Rehabilitation Center | D175: 3444016.328 | E175: 186705.45 | F175: 3630721.778 | G175: Private
A176: 3429305N | B176: 3429305 | C176: Elm Manor Nursing and Rehabilitation Center | D176: 310611.4533 | E176: 107898.65 | F176: 418510.1033 | G176: Private
A177: 7003396N | B177: 7003396 | C177: Elmhurst Care Center Inc | D177: 1118818.393 | E177: 711307.25 | F177: 1830125.643 | G177: Private
A178: 2901304N | B178: 2901304 | C178: Emerge Nursing and Rehabilitation at Glen Cove | D178: 1373871.104 | E178: 159320.9 | F178: 1533192.004 | G178: Private
A179: 5902319N | B179: 5902319 | C179: EPIC Rehabilitation and Nursing at White Plains | D179: 5726625.007 | E179: 319170.25 | F179: 6045795.257 | G179: Private
A180: 1552300N | B180: 1552300 | C180: Essex Center for Rehabilitation and Healthcare | D180: 1023711.292 | E180: 301758.5 | F180: 1325469.792 | G180: Private
A181: 4152305N | B181: 4152305 | C181: Evergreen Commons Rehabilitation and Nursing Center | D181: -1761674.976 | E181: 867023.85 | F181: -894651.1262 | G181: Private
A182: 2952309N | B182: 2952309 | C182: Excel at Woodbury for Rehabilitation and Nursing LLC | D182: 1383241.459 | E182: 147762.75 | F182: 1531004.209 | G182: Private
A183: 2725300N | B183: 2725300 | C183: Fairport Baptist Homes | D183: 2771828.21 | E183: 247030.05 | F183: 3018858.26 | G183: Private
A184: 7003375N | B184: 7003375 | C184: Fairview Nursing Care Center Inc | D184: 364181.3105 | E184: 239496.25 | F184: 603677.5605 | G184: Private
A185: 7003416N | B185: 7003416 | C185: Far Rockaway Center for Rehabilitation and Nursing | D185: 1055240.61 | E185: 327097 | F185: 1382337.61 | G185: Private
A186: 1435302N | B186: 1435302 | C186: Father Baker Manor | D186: 4138897.303 | E186: 365023.45 | F186: 4503920.753 | G186: Private
A187: 1327300D | B187: 1327300 | C187: Ferncliff Nursing Home Co Inc | D187: -47825.32164 | E187: 0 | F187: -47825.32164 | G187: Private
A188: 1327300N | B188: 1327300 | C188: Ferncliff Nursing Home Co Inc | D188: 4875024.918 | E188: 963337.25 | F188: 5838362.168 | G188: Private
A189: 1427303N | B189: 1427303 | C189: Fiddlers Green Manor Rehabilitation and Nursing Center | D189: 1555479.445 | E189: 261501.45 | F189: 1816980.895 | G189: Private
A190: 7000385N | B190: 7000385 | C190: Fieldston Lodge Care Center | D190: 2339727.071 | E190: 586308.5 | F190: 2926035.571 | G190: Private
A191: 7000385V | B191: 7000385 | C191: Fieldston Lodge Care Center | D191: -286548.5228 | E191: 0 | F191: -286548.5228 | G191: Private
A192: 0501000N | B192: 0501000 | C192: Finger Lakes Center for Living | D192: 1867275.178 | E192: 230200.95 | F192: 2097476.128 | G192: Private
A193: 1301302N | B193: 1301302 | C193: Fishkill Center for Rehabilitation and Nursing | D193: 2709077.182 | E193: 477840.75 | F193: 3186917.932 | G193: Private
A194: 2124300N | B194: =LEFT(A194,7) -> 2124300 | C194: Foltsbrook Center for Nursing and Rehabilitation | D194: 1336816.998 | E194: 534872.7 | F194: =D194+E194 -> 1871689.698 | G194: Private
A195: 7000395N | B195: 7000395 | C195: Fordham Nursing and Rehabilitation Center | D195: -362218.878 | E195: 644288.95 | F195: 282070.072 | G195: Private
A196: 7003394N | B196: 7003394 | C196: Forest Hills Care Center | D196: 1606302.932 | E196: 263262.95 | F196: 1869565.882 | G196: Private
A197: 7003387N | B197: 7003387 | C197: Forest View Center for Rehabilitation & Nursing | D197: 2037830.634 | E197: 352205.15 | F197: 2390035.784 | G197: Private
A198: 5724302N | B198: 5724302 | C198: Fort Hudson Nursing Center Inc | D198: 1248469.993 | E198: 616321.75 | F198: 1864791.743 | G198: Private
A199: 7002359N | B199: 7002359 | C199: Fort Tryon Center for Rehabilitation and Nursing | D199: 947283.3612 | E199: 590278.65 | F199: 1537562.011 | G199: Private
A200: 7001808N | B200: 7001808 | C200: Four Seasons Nursing and Rehabilitation Center | D200: 3678842.225 | E200: 725765.1 | F200: 4404607.325 | G200: Private
... 492 more rows

Sheet 2024 Cost report days-NH (hidden)
E1: A | F1: B | G1: C | H1: D | I1: E | J1: F | K1: G | L1: H | M1: I | N1: J | O1: K | P1: L | Q1: M | R1: N | S1: O | T1: P
B2: Organization | C2: Name | D2: Date | E2: 410/9 N | F2: 410/10 N | G2: 410/17 N | H2: 410/22 N | I2: 410/23 N | J2: 410/24 N | K2: 410/32 N | L2: 437/1 N | M2: 437/2 N
E3: Part I - 3) Bed Capacity - Patient Days ;RHCF ;Medicaid Days Paid by: 1. Health ; | F3: Part I - 3) Bed Capacity - Patient Days ;RHCF ;Of Which How Many Patient Days Were: Part B Medicare Eligible ; | G3: Part I - 3) Bed Capacity - Patient Days ;RHCF ;Of Which How Many Patient Days Were: 7. TOTAL (Sum of 009, 012-016, 031-033) ; | H3: Part I - 3) Bed Capacity - Patient Days | I3: Part I - 3) Bed Capacity - Patient Days | J3: Part I - 3) Bed Capacity - Patient Days | K3: Part I - 3) Bed Capacity - Patient Days ;RHCF ;Medicaid Days Paid by: 1A. Managed Care Provider ; | L3: Part I - 4) Report Period and Medicare Information ; ;Report Period Beginning Date of Report () ; | M3: Part I - 4) Report Period and Medicare Information ; ;Report Period Ending Date of Report () ;
O4: (D+F) | P4: (B+E) | Q4: (K+L) | R4: (K / A) * J | S4: (L / A) * J
B5: Organization | C5: Name | D5: Date | E5: 410/9 N | F5: 410/10 N | G5: 410/17 N | H5: 410/22 N | I5: 410/23 N | J5: 410/24 N | K5: 410/32 N | L5: 437/1 N | M5: 437/2 N | O5: FFS | R5: MC
E6: Total Medicaid FFS | F6: Part B | G6: Total ALL Days | H6: Part D | I6: Part B&D | J6: Ineligible | K6: MC | L6: CR Begin Date | M6: CR End Date | N6: Days in CR | O6: Ineligible + Part D | P6: Part B + Part B&D | Q6: Total FFS | R6: Ineligible + Part D | S6: Part B + Part B&D | T6: Total Medicaid FFS | U6: Total Days
A7: =B7&"N" -> 2950302N | B7: 2950302 | C7: A Holly Patterson Extended Care Facility | D7: 01/01/2024 | E7: 119405 | F7: 125 | G7: 160172 | H7: 3127 | I7: 82191 | J7: 33962 | K7: 32496 | L7: 2024-01-01 | M7: 2024-12-31 | N7: =(M7-L7)+1 -> 366 | O7: =IF(N7=366,(H7+J7),ROUND((H7+J7)/N7*366,0)) -> 37089 | P7: =IF(N7=365,(F7+I7),ROUND((F7+I7)/N7*366,0)) -> 82316 | Q7: =O7+P7 -> 119405 | R7: =IFERROR(ROUND((O7/E7)*K7,0),0) -> 10094 | S7: =IFERROR(ROUND((P7/E7)*K7,0),0) -> 22402 | T7: =R7+S7 -> 32496 | U7: =Q7+T7 -> 151901
A8: =B8&"N" -> 2725301N | B8: 2725301 | C8: Aaron Manor Rehabilitation and Nursing Center | D8: 01/01/2024 | E8: 30097 | F8: 0 | G8: 47092 | H8: 586 | I8: 29511 | J8: 0 | K8: 1445 | L8: 2024-01-01 | M8: 2024-12-31 | N8: =(M8-L8)+1 -> 366 | O8: =IF(N8=366,(H8+J8),ROUND((H8+J8)/N8*366,0)) -> 586 | P8: =IF(N8=365,(F8+I8),ROUND((F8+I8)/N8*366,0)) -> 29511 | Q8: =O8+P8 -> 30097 | R8: 28 | S8: 1417 | T8: =R8+S8 -> 1445 | U8: =Q8+T8 -> 31542
A9: 0420302N | B9: 0420302 | C9: Absolut Center for Nursing and Rehabilitation at Allega | D9: 01/01/2024 | E9: 7617 | F9: 0 | G9: 12579 | H9: 0 | I9: 7617 | J9: 0 | K9: 339 | L9: 2024-01-01 | M9: 2024-12-31 | N9: 366 | O9: 0 | P9: 7617 | Q9: 7617 | R9: 0 | S9: 339 | T9: 339 | U9: 7956
A10: 1422303N | B10: 1422303 | C10: Absolut Center for Nursing and Rehabilitation at Auror | D10: 01/01/2024 | E10: 44153 | F10: 342 | G10: 64787 | H10: 68 | I10: 43586 | J10: 157 | K10: 5441 | L10: 2024-01-01 | M10: 2024-12-31 | N10: 366 | O10: 225 | P10: 43928 | Q10: 44153 | R10: 28 | S10: 5413 | T10: 5441 | U10: 49594
A11: 0302303N | B11: 0302303 | C11: Absolut Center for Nursing and Rehabilitation at Endic | D11: 01/01/2024 | E11: 43717 | F11: 557 | G11: 56644 | H11: 336 | I11: 41625 | J11: 1199 | K11: 3927 | L11: 2024-01-01 | M11: 2024-12-31 | N11: 366 | O11: 1535 | P11: 42182 | Q11: 43717 | R11: 138 | S11: 3789 | T11: 3927 | U11: 47644
A12: 3158302N | B12: 3158302 | C12: Absolut Center for Nursing and Rehabilitation at Gaspo | D12: 01/01/2024 | E12: 18497 | F12: 0 | G12: 28074 | H12: 0 | I12: 18497 | J12: 0 | K12: 3495 | L12: 2024-01-01 | M12: 2024-12-31 | N12: 366 | O12: 0 | P12: 18497 | Q12: 18497 | R12: 0 | S12: 3495 | T12: 3495 | U12: 21992
A13: 5026301N | B13: 5026301 | C13: Absolut Center for Nursing and Rehabilitation at Three | D13: 01/01/2024 | E13: 28104 | F13: 0 | G13: 36739 | H13: 0 | I13: 28104 | J13: 0 | K13: 1892 | L13: 2024-01-01 | M13: 2024-12-31 | N13: 366 | O13: 0 | P13: 28104 | Q13: 28104 | R13: 0 | S13: 1892 | T13: 1892 | U13: 29996
A14: 0675302N | B14: 0675302 | C14: Absolut Center for Nursing and Rehabilitation at Westfi | D14: 01/01/2024 | E14: 28904 | F14: 0 | G14: 36367 | H14: 122 | I14: 28751 | J14: 31 | K14: 2434 | L14: 2024-01-01 | M14: 2024-12-31 | N14: 366 | O14: 153 | P14: 28751 | Q14: 28904 | R14: 13 | S14: 2421 | T14: 2434 | U14: 31338
A15: 5155301N | B15: 5155301 | C15: Acadia Center for Nursing and Rehabilitation | D15: 01/01/2024 | E15: 25402 | F15: 0 | G15: 42467 | H15: 0 | I15: 25026 | J15: 376 | K15: 1205 | L15: 2024-01-01 | M15: 2024-12-31 | N15: 366 | O15: 376 | P15: 25026 | Q15: 25402 | R15: 18 | S15: 1187 | T15: 1205 | U15: 26607
A16: 5220303N | B16: 5220303 | C16: Achieve Rehab and Nursing Facility | D16: 01/01/2024 | E16: 25290 | F16: 0 | G16: 47097 | H16: 0 | I16: 25290 | J16: 0 | K16: 4160 | L16: 2024-01-01 | M16: 2024-12-31 | N16: 366 | O16: 0 | P16: 25290 | Q16: 25290 | R16: 0 | S16: 4160 | T16: 4160 | U16: 29450
A17: 5907318N | B17: 5907318 | C17: Adira at Riverside Rehabilitation and Nursing | D17: 01/01/2024 | E17: 17575 | F17: 446 | G17: 38110 | H17: 330 | I17: 16799 | J17: 0 | K17: 3253 | L17: 2024-01-01 | M17: 2024-12-31 | N17: 366 | O17: 330 | P17: 17245 | Q17: 17575 | R17: 61 | S17: 3192 | T17: 3253 | U17: 20828
A18: 5154323N | B18: 5154323 | C18: Affinity Skilled Living and Rehabilitation Center | D18: 01/01/2024 | E18: 49407 | F18: 0 | G18: 86451 | H18: 0 | I18: 47088 | J18: 2319 | K18: 12007 | L18: 2024-01-01 | M18: 2024-12-31 | N18: 366 | O18: 2319 | P18: 47088 | Q18: 49407 | R18: 564 | S18: 11443 | T18: 12007 | U18: 61414
A19: 1624000N | B19: 1624000 | C19: Alice Hyde Medical Center | D19: 01/01/2024 | E19: 37486 | F19: 0 | G19: 43846 | H19: 0 | I19: 37486 | J19: 0 | K19: 708 | L19: 2024-01-01 | M19: 2024-12-31 | N19: 366 | O19: 0 | P19: 37486 | Q19: 37486 | R19: 0 | S19: 708 | T19: 708 | U19: 38194
A20: 5151323N | B20: 5151323 | C20: Allegria Nursing & Rehabilitation Center of Port Jefferson | D20: 01/01/2024 | E20: 32823 | F20: 0 | G20: 47656 | H20: 0 | I20: 32823 | J20: 0 | K20: 2068 | L20: 2024-01-01 | M20: 2024-12-31 | N20: 366 | O20: 0 | P20: 32823 | Q20: 32823 | R20: 0 | S20: 2068 | T20: 2068 | U20: 34891
A21: 2129303N | B21: 2129303 | C21: Alpine Rehabilitation and Nursing Center | D21: 01/01/2024 | E21: 20635 | F21: 603 | G21: 27703 | H21: 413 | I21: 19619 | J21: 0 | K21: 1435 | L21: 2024-01-01 | M21: 2024-12-31 | N21: 366 | O21: 413 | P21: 20222 | Q21: 20635 | R21: 29 | S21: 1406 | T21: 1435 | U21: 22070
A22: 7002356N | B22: 7002356 | C22: Amsterdam Nursing Home Corp (amsterdam House) | D22: 01/01/2024 | E22: 71565 | F22: 450 | G22: 145650 | H22: 402 | I22: 69616 | J22: 1097 | K22: 11098 | L22: 2024-01-01 | M22: 2024-12-31 | N22: 366 | O22: 1499 | P22: 70066 | Q22: 71565 | R22: 232 | S22: 10866 | T22: 11098 | U22: 82663
A23: 5926300N | B23: 5926300 | C23: Andrus On Hudson | D23: 01/01/2024 | E23: 51246 | F23: 45452 | G23: 70895 | H23: 1559 | I23: 4215 | J23: 20 | K23: 3742 | L23: 2024-01-01 | M23: 2024-12-31 | N23: 366 | O23: 1579 | P23: 49667 | Q23: 51246 | R23: 115 | S23: 3627 | T23: 3742 | U23: 54988
A24: 5153311N | B24: 5153311 | C24: Apex Rehabilitation & Care Center | D24: 01/01/2024 | E24: 42498 | F24: 0 | G24: 65870 | H24: 0 | I24: 38529 | J24: 3969 | K24: 403 | L24: 2024-01-01 | M24: 2024-12-31 | N24: 366 | O24: 3969 | P24: 38529 | Q24: 42498 | R24: 38 | S24: 365 | T24: 403 | U24: 42901
A25: 7000306N | B25: 7000306 | C25: ArchCare at Providence Rest | D25: 01/01/2024 | E25: 49705 | F25: 697 | G25: 70628 | H25: 0 | I25: 49008 | J25: 0 | K25: 4055 | L25: 2024-01-01 | M25: 2024-12-31 | N25: 366 | O25: 0 | P25: 49705 | Q25: 49705 | R25: 0 | S25: 4055 | T25: 4055 | U25: 53760
A26: 7001378N | B26: 7001378 | C26: Atrium Center for Rehabilitation and Nursing | D26: 01/01/2024 | E26: 86190 | F26: 0 | G26: 136127 | H26: 0 | I26: 82488 | J26: 3702 | K26: 14747 | L26: 2024-01-01 | M26: 2024-12-31 | N26: 366 | O26: 3702 | P26: 82488 | Q26: 86190 | R26: 633 | S26: 14114 | T26: 14747 | U26: 100937
A27: 0501310N | B27: 0501310 | C27: Auburn Rehabilitation and Nursing Center | D27: 01/01/2024 | E27: 20298 | F27: 952 | G27: 28915 | H27: 367 | I27: 17915 | J27: 1064 | K27: 3126 | L27: 2024-01-01 | M27: 2024-12-31 | N27: 366 | O27: 1431 | P27: 18867 | Q27: 20298 | R27: 220 | S27: 2906 | T27: 3126 | U27: 23424
A28: 3801000N | B28: 3801000 | C28: Aurelia Osborn Fox Memorial Hospital | D28: 01/01/2024 | E28: 18793 | F28: 0 | G28: 37335 | H28: 0 | I28: 18793 | J28: 0 | K28: 1820 | L28: 2024-01-01 | M28: 2024-12-31 | N28: 366 | O28: 0 | P28: 18793 | Q28: 18793 | R28: 0 | S28: 1820 | T28: 1820 | U28: 20613
A29: 1430301N | B29: 1430301 | C29: Autumn View Health Care Facility LLC | D29: 01/01/2024 | E29: 44059 | F29: 0 | G29: 78257 | H29: 365 | I29: 43694 | J29: 0 | K29: 2589 | L29: 2024-01-01 | M29: 2024-12-31 | N29: 366 | O29: 365 | P29: 43694 | Q29: 44059 | R29: 21 | S29: 2568 | T29: 2589 | U29: 46648
A30: 2520301N | B30: 2520301 | C30: Avon Nursing Home LLC | D30: 01/01/2024 | E30: 10832 | F30: 0 | G30: 13482 | H30: 0 | I30: 10832 | J30: 0 | K30: 0 | L30: 2024-01-01 | M30: 2024-12-31 | N30: 366 | O30: 0 | P30: 10832 | Q30: 10832 | R30: 0 | S30: 0 | T30: 0 | U30: 10832
A31: 7000319N | B31: 7000319 | C31: Bainbridge Nursing And Rehabilitation Center | D31: 01/01/2024 | E31: 44257 | F31: 401 | G31: 70704 | H31: 1103 | I31: 31307 | J31: 11446 | K31: 15890 | L31: 2024-01-01 | M31: 2024-12-31 | N31: 366 | O31: 12549 | P31: 31708 | Q31: 44257 | R31: 4506 | S31: 11384 | T31: 15890 | U31: 60147
A32: 4620300N | B32: 4620300 | C32: Baptist Health Nursing And Rehabilitation Center Inc | D32: 01/01/2024 | E32: 45624 | F32: 0 | G32: 67083 | H32: 0 | I32: 45624 | J32: 0 | K32: 2009 | L32: 2024-01-01 | M32: 2024-12-31 | N32: 366 | O32: 0 | P32: 45624 | Q32: 45624 | R32: 0 | S32: 2009 | T32: 2009 | U32: 47633
A33: 5904317N | B33: 5904317 | C33: Bayberry Nursing Home | D33: 01/01/2024 | E33: 7597 | F33: 0 | G33: 18866 | H33: 0 | I33: 7597 | J33: 0 | K33: 0 | L33: 2024-01-01 | M33: 2024-12-31 | N33: 366 | O33: 0 | P33: 7597 | Q33: 7597 | R33: 0 | S33: 0 | T33: 0 | U33: 7597
A34: 7003412N | B34: 7003412 | C34: Beach Gardens Rehab and Nursing Center | D34: 01/01/2024 | E34: 32303 | F34: 1138 | G34: 57482 | H34: 231 | I34: 17329 | J34: 13605 | K34: 17112 | L34: 2024-01-01 | M34: 2024-12-31 | N34: 366 | O34: 13836 | P34: 18467 | Q34: 32303 | R34: 7329 | S34: 9783 | T34: 17112 | U34: 49415
A35: 2902303N | B35: 2902303 | C35: Beach Terrace Care Center | D35: 01/01/2024 | E35: 46622 | F35: 116 | G35: 63388 | H35: 1038 | I35: 34292 | J35: 11176 | K35: 7685 | L35: 2024-01-01 | M35: 2024-12-31 | N35: 366 | O35: 12214 | P35: 34408 | Q35: 46622 | R35: 2013 | S35: 5672 | T35: 7685 | U35: 54307
A36: 7003401N | B36: 7003401 | C36: Beacon Rehabilitation and Nursing Center | D36: 01/01/2024 | E36: 29249 | F36: 0 | G36: 41742 | H36: 0 | I36: 28891 | J36: 358 | K36: 3782 | L36: 2024-01-01 | M36: 2024-12-31 | N36: 366 | O36: 358 | P36: 28891 | Q36: 29249 | R36: 46 | S36: 3736 | T36: 3782 | U36: 33031
A37: 7001805N | B37: 7001805 | C37: Bedford Center for Nursing and Rehabilitation | D37: 01/01/2024 | E37: 44731 | F37: 370 | G37: 70655 | H37: 261 | I37: 41960 | J37: 2140 | K37: 8418 | L37: 2024-01-01 | M37: 2024-12-31 | N37: 366 | O37: 2401 | P37: 42330 | Q37: 44731 | R37: 452 | S37: 7966 | T37: 8418 | U37: 53149
A38: 5401312N | B38: 5401312 | C38: Beechtree Center for Rehabilitation and Nursing | D38: 01/01/2024 | E38: 27787 | F38: 437 | G38: 42075 | H38: 126 | I38: 27193 | J38: 31 | K38: 2006 | L38: 2024-01-01 | M38: 2024-12-31 | N38: 366 | O38: 157 | P38: 27630 | Q38: 27787 | R38: 11 | S38: 1995 | T38: 2006 | U38: 29793
A39: 1451306N | B39: 1451306 | C39: Beechwood Homes | D39: 01/01/2024 | E39: 38516 | F39: 0 | G39: 76488 | H39: 26 | I39: 38490 | J39: 0 | K39: 561 | L39: 2024-01-01 | M39: 2024-12-31 | N39: 366 | O39: 26 | P39: 38490 | Q39: 38516 | R39: 0 | S39: 561 | T39: 561 | U39: 39077
A40: 2950301N | B40: 2950301 | C40: Belair Care Center Inc | D40: 01/01/2024 | E40: 4932 | F40: 0 | G40: 35998 | H40: 0 | I40: 4932 | J40: 0 | K40: 3 | L40: 2024-01-01 | M40: 2024-12-31 | N40: 366 | O40: 0 | P40: 4932 | Q40: 4932 | R40: 0 | S40: 3 | T40: 3 | U40: 4935
A41: 5151321N | B41: 5151321 | C41: Bellhaven Center For Rehabilitation and Nursing Care | D41: 01/01/2024 | E41: 60287 | F41: 0 | G41: 85325 | H41: 67 | I41: 59066 | J41: 1154 | K41: 3301 | L41: 2024-01-01 | M41: 2024-12-31 | N41: 366 | O41: 1221 | P41: 59066 | Q41: 60287 | R41: 67 | S41: 3234 | T41: 3301 | U41: 63588
A42: 7001396N | B42: 7001396 | C42: Bensonhurst Center for Rehabilitation and Healthcare | D42: 01/01/2024 | E42: 30517 | F42: 566 | G42: 71928 | H42: 42 | I42: 29081 | J42: 828 | K42: 7638 | L42: 2024-01-01 | M42: 2024-12-31 | N42: 366 | O42: 870 | P42: 29647 | Q42: 30517 | R42: 218 | S42: 7420 | T42: 7638 | U42: 38155
A43: 5101301N | B43: 5101301 | C43: Berkshire Nursing & Rehabilitation Center | D43: 01/01/2024 | E43: 34067 | F43: 0 | G43: 58064 | H43: 0 | I43: 33297 | J43: 770 | K43: 2862 | L43: 2024-01-01 | M43: 2024-12-31 | N43: 366 | O43: 770 | P43: 33297 | Q43: 34067 | R43: 65 | S43: 2797 | T43: 2862 | U43: 36929
A44: 7000399N | B44: 7000399 | C44: Beth Abraham Center for Rehabilitation and Nursing | D44: 01/01/2024 | E44: 98394 | F44: 79 | G44: 159907 | H44: 224 | I44: 79958 | J44: 18133 | K44: 37047 | L44: 2024-01-01 | M44: 2024-12-31 | N44: 366 | O44: 18357 | P44: 80037 | Q44: 98394 | R44: 6912 | S44: 30135 | T44: 37047 | U44: 135441
A45: 3201308N | B45: 3201308 | C45: Bethany Gardens Skilled Living Center | D45: 01/01/2024 | E45: 24432 | F45: 0 | G45: 34961 | H45: 0 | I45: 18355 | J45: 6077 | K45: 428 | L45: 2024-01-01 | M45: 2024-12-31 | N45: 366 | O45: 6077 | P45: 18355 | Q45: 24432 | R45: 106 | S45: 322 | T45: 428 | U45: 24860
A46: 0722301N | B46: 0722301 | C46: Bethany Nursing Home & Health Related Facility Inc | D46: 01/01/2024 | E46: 23772 | F46: 0 | G46: 35724 | H46: 0 | I46: 23772 | J46: 0 | K46: 120 | L46: 2024-01-01 | M46: 2024-12-31 | N46: 366 | O46: 0 | P46: 23772 | Q46: 23772 | R46: 0 | S46: 120 | T46: 120 | U46: 23892
A47: 5905303N | B47: 5905303 | C47: Bethel Nursing Home Company Inc | D47: 01/01/2024 | E47: 7889 | F47: 0 | G47: 13363 | H47: 0 | I47: 7889 | J47: 0 | K47: 0 | L47: 2024-01-01 | M47: 2024-12-31 | N47: 366 | O47: 0 | P47: 7889 | Q47: 7889 | R47: 0 | S47: 0 | T47: 0 | U47: 7889
A48: 0151300N | B48: 0151300 | C48: Bethlehem Commons Care Center | D48: 01/01/2024 | E48: 22161 | F48: 155 | G48: 42068 | H48: 4 | I48: 20277 | J48: 1725 | K48: 4131 | L48: 2024-01-01 | M48: 2024-12-31 | N48: 366 | O48: 1729 | P48: 20432 | Q48: 22161 | R48: 322 | S48: 3809 | T48: 4131 | U48: 26292
A49: 3201312N | B49: 3201312 | C49: Betsy Ross Rehabilitation and Nursing | D49: 01/01/2024 | E49: 22688 | F49: 0 | G49: 36384 | H49: 0 | I49: 21986 | J49: 702 | K49: 1819 | L49: 2024-01-01 | M49: 2024-12-31 | N49: 366 | O49: 702 | P49: 21986 | Q49: 22688 | R49: 56 | S49: 1763 | T49: 1819 | U49: 24507
A50: 7003352N | B50: 7003352 | C50: Bezalel Rehabilitation and Nursing Center | D50: 01/01/2024 | E50: 29840 | F50: 366 | G50: 40856 | H50: 566 | I50: 26519 | J50: 2389 | K50: 3449 | L50: 2024-01-01 | M50: 2024-12-31 | N50: 366 | O50: 2955 | P50: 26885 | Q50: 29840 | R50: 342 | S50: 3107 | T50: 3449 | U50: 33289
A51: 3301330N | B51: 3301330 | C51: Bishop Rehabilitation and Nursing Center | D51: 01/01/2024 | E51: 71244 | F51: 211 | G51: 94534 | H51: 452 | I51: 61717 | J51: 8864 | K51: 14552 | L51: 2024-01-01 | M51: 2024-12-31 | N51: 366 | O51: 9316 | P51: 61928 | Q51: 71244 | R51: 1903 | S51: 12649 | T51: 14552 | U51: 85796
A52: 2701354N | B52: 2701354 | C52: Blossom Health Care Center | D52: 01/01/2024 | E52: 18856 | F52: 18639 | G52: 27650 | H52: 217 | I52: 0 | J52: 0 | K52: 2344 | L52: 2024-01-01 | M52: 2024-12-31 | N52: 366 | O52: 217 | P52: 18639 | Q52: 18856 | R52: 27 | S52: 2317 | T52: 2344 | U52: 21200
A53: 7001394N | B53: 7001394 | C53: Boro Park Center for Rehabilitation and Healthcare | D53: 01/01/2024 | E53: 89257 | F53: 775 | G53: 176981 | H53: 91 | I53: 83870 | J53: 4521 | K53: 22243 | L53: 2024-01-01 | M53: 2024-12-31 | N53: 366 | O53: 4612 | P53: 84645 | Q53: 89257 | R53: 1149 | S53: 21094 | T53: 22243 | U53: 111500
A54: 5931302N | B54: 5931302 | C54: Briarcliff Manor Center for Rehabilitation and Nursing Care | D54: 01/01/2024 | E54: 23320 | F54: 0 | G54: 40187 | H54: 0 | I54: 21279 | J54: 2041 | K54: 2622 | L54: 2024-01-01 | M54: 2024-12-31 | N54: 366 | O54: 2041 | P54: 21279 | Q54: 23320 | R54: 229 | S54: 2393 | T54: 2622 | U54: 25942
A55: 7003309N | B55: 7003309 | C55: Bridge View Nursing Home | D55: 01/01/2024 | E55: 54076 | F55: 0 | G55: 72432 | H55: 0 | I55: 53670 | J55: 406 | K55: 6754 | L55: 2024-01-01 | M55: 2024-12-31 | N55: 366 | O55: 406 | P55: 53670 | Q55: 54076 | R55: 51 | S55: 6703 | T55: 6754 | U55: 60830
A56: 0301308N | B56: 0301308 | C56: Bridgewater Center for Rehabilitation & Nursing LLC | D56: 01/01/2024 | E56: 81224 | F56: 264 | G56: 108755 | H56: 881 | I56: 73256 | J56: 6823 | K56: 10775 | L56: 2024-01-01 | M56: 2024-12-31 | N56: 366 | O56: 7704 | P56: 73520 | Q56: 81224 | R56: 1022 | S56: 9753 | T56: 10775 | U56: 91999
A57: 7000381N | B57: 7000381 | C57: Bronx Center For Rehabilitation and Health | D57: 01/01/2024 | E57: 45836 | F57: 15 | G57: 71773 | H57: 0 | I57: 42816 | J57: 3005 | K57: 12518 | L57: 2024-01-01 | M57: 2024-12-31 | N57: 366 | O57: 3005 | P57: 42831 | Q57: 45836 | R57: 821 | S57: 11697 | T57: 12518 | U57: 58354
A58: 7000397N | B58: 7000397 | C58: Bronx Gardens Rehabilitation and Nursing Center | D58: 01/01/2024 | E58: 31969 | F58: 246 | G58: 55451 | H58: 1071 | I58: 27615 | J58: 3037 | K58: 10483 | L58: 2024-01-01 | M58: 2024-12-31 | N58: 366 | O58: 4108 | P58: 27861 | Q58: 31969 | R58: 1347 | S58: 9136 | T58: 10483 | U58: 42452
A59: 7000380N | B59: 7000380 | C59: Bronx Park Rehabilitation & Nursing Center | D59: 01/01/2024 | E59: 54869 | F59: 0 | G59: 83778 | H59: 0 | I59: 43414 | J59: 11455 | K59: 23787 | L59: 2024-01-01 | M59: 2024-12-31 | N59: 366 | O59: 11455 | P59: 43414 | Q59: 54869 | R59: 4966 | S59: 18821 | T59: 23787 | U59: 78656
A60: 7000364N | B60: 7000364 | C60: BronxCare Special Care Center | D60: 01/01/2024 | E60: 25679 | F60: 1380 | G60: 42955 | H60: 382 | I60: 19109 | J60: 4808 | K60: 7780 | L60: 2024-01-01 | M60: 2024-12-31 | N60: 366 | O60: 5190 | P60: 20489 | Q60: 25679 | R60: 1572 | S60: 6208 | T60: 7780 | U60: 33459
A61: 5123304N | B61: 5123304 | C61: Brookhaven Health Care Facility LLC | D61: 01/01/2024 | E61: 18060 | F61: 0 | G61: 51833 | H61: 0 | I61: 18060 | J61: 0 | K61: 1750 | L61: 2024-01-01 | M61: 2024-12-31 | N61: 366 | O61: 0 | P61: 18060 | Q61: 18060 | R61: 0 | S61: 1750 | T61: 1750 | U61: 19810
A62: 7003399N | B62: 7003399 | C62: Brookhaven Rehabilitation & Health Care Center | D62: 01/01/2024 | E62: 70173 | F62: 0 | G62: 104991 | H62: 204 | I62: 51376 | J62: 18593 | K62: 28587 | L62: 2024-01-01 | M62: 2024-12-31 | N62: 366 | O62: 18797 | P62: 51376 | Q62: 70173 | R62: 7658 | S62: 20929 | T62: 28587 | U62: 98760
A63: 7001388N | B63: 7001388 | C63: Brooklyn Center for Rehabilitation and Residential Hea | D63: 01/01/2024 | E63: 52056 | F63: 389 | G63: 99255 | H63: 592 | I63: 44664 | J63: 6411 | K63: 16586 | L63: 2024-01-01 | M63: 2024-12-31 | N63: 366 | O63: 7003 | P63: 45053 | Q63: 52056 | R63: 2231 | S63: 14355 | T63: 16586 | U63: 68642
A64: 7001800N | B64: 7001800 | C64: Brooklyn Gardens Nursing & Rehabilitation Center | D64: 01/01/2024 | E64: 47683 | F64: 63 | G64: 83447 | H64: 365 | I64: 35291 | J64: 11964 | K64: 21165 | L64: 2024-01-01 | M64: 2024-12-31 | N64: 366 | O64: 12329 | P64: 35354 | Q64: 47683 | R64: 5472 | S64: 15693 | T64: 21165 | U64: 68848
A65: 7001308N | B65: 7001308 | C65: Brooklyn United Methodist Church Home | D65: 01/01/2024 | E65: 31727 | F65: 0 | G65: 42615 | H65: 12 | I65: 25001 | J65: 6714 | K65: 4212 | L65: 2024-01-01 | M65: 2024-12-31 | N65: 366 | O65: 6726 | P65: 25001 | Q65: 31727 | R65: 893 | S65: 3319 | T65: 4212 | U65: 35939
A66: 7001382N | B66: 7001382 | C66: Brooklyn-Queens Nursing Home | D66: 01/01/2024 | E66: 28001 | F66: 36 | G66: 50201 | H66: 432 | I66: 23982 | J66: 3551 | K66: 8236 | L66: 2024-01-01 | M66: 2024-12-31 | N66: 366 | O66: 3983 | P66: 24018 | Q66: 28001 | R66: 1172 | S66: 7064 | T66: 8236 | U66: 36237
A67: 5157318N | B67: 5157318 | C67: Brookside Multicare Nursing Center | D67: 01/01/2024 | E67: 74934 | F67: 575 | G67: 102486 | H67: 1662 | I67: 62161 | J67: 10536 | K67: 10626 | L67: 2024-01-01 | M67: 2024-12-31 | N67: 366 | O67: 12198 | P67: 62736 | Q67: 74934 | R67: 1730 | S67: 8896 | T67: 10626 | U67: 85560
A68: 1456300N | B68: 1456300 | C68: Brothers Of Mercy Nursing & Rehabilitation Center | D68: 01/01/2024 | E68: 33505 | F68: 0 | G68: 67774 | H68: 0 | I68: 33505 | J68: 0 | K68: 719 | L68: 2024-01-01 | M68: 2024-12-31 | N68: 366 | O68: 0 | P68: 33505 | Q68: 33505 | R68: 0 | S68: 719 | T68: 719 | U68: 34224
A69: 7001035N | B69: 7001035 | C69: Buena Vida Continuing Care & Rehab Ctr | D69: 01/01/2024 | E69: 48008 | F69: 0 | G69: 84649 | H69: 0 | I69: 46992 | J69: 1016 | K69: 16450 | L69: 2024-01-01 | M69: 2024-12-31 | N69: 366 | O69: 1016 | P69: 46992 | Q69: 48008 | R69: 348 | S69: 16102 | T69: 16450 | U69: 64458
A70: 1401341N | B70: 1401341 | C70: Buffalo Center for Rehabilitation and Nursing | D70: 01/01/2024 | E70: 46620 | F70: 739 | G70: 70627 | H70: 395 | I70: 40653 | J70: 4833 | K70: 12267 | L70: 2024-01-01 | M70: 2024-12-31 | N70: 366 | O70: 5228 | P70: 41392 | Q70: 46620 | R70: 1376 | S70: 10891 | T70: 12267 | U70: 58887
A71: 7001364N | B71: 7001364 | C71: Bushwick Center for Rehabilitation and Health Care | D71: 01/01/2024 | E71: 53675 | F71: 133 | G71: 79502 | H71: 164 | I71: 44399 | J71: 8979 | K71: 10541 | L71: 2024-01-01 | M71: 2024-12-31 | N71: 366 | O71: 9143 | P71: 44532 | Q71: 53675 | R71: =IFERROR(ROUND((O71/E71)*K71,0),0) -> 1796 | S71: =IFERROR(ROUND((P71/E71)*K71,0),0) -> 8745 | T71: 10541 | U71: 64216
A72: =B72&"N" -> 3557302N | B72: 3557302 | C72: Campbell Hall Rehabilitation Center Inc | D72: 01/01/2024 | E72: 30726 | F72: 0 | G72: 39444 | H72: 667 | I72: 28679 | J72: 1380 | K72: 2126 | L72: 2024-01-01 | M72: 2024-12-31 | N72: =(M72-L72)+1 -> 366 | O72: =IF(N72=366,(H72+J72),ROUND((H72+J72)/N72*366,0)) -> 2047 | P72: =IF(N72=365,(F72+I72),ROUND((F72+I72)/N72*366,0)) -> 28679 | Q72: =O72+P72 -> 30726 | R72: 142 | S72: 1984 | T72: =R72+S72 -> 2126 | U72: =Q72+T72 -> 32852
A73: 1421305N | B73: 1421305 | C73: Canterbury Woods | D73: 01/01/2024 | E73: 0 | F73: 0 | G73: 16407 | H73: 0 | I73: 0 | J73: 0 | K73: 16 | L73: 2024-01-01 | M73: 2024-12-31 | N73: 366 | O73: 0 | P73: 0 | Q73: 0 | R73: 0 | S73: 0 | T73: 0 | U73: 0
A74: 2850301N | B74: 2850301 | C74: Capstone Center for Rehabilitation and Nursing | D74: 01/01/2024 | E74: 33920 | F74: 402 | G74: 41898 | H74: 1034 | I74: 31486 | J74: 998 | K74: 2011 | L74: 2024-01-01 | M74: 2024-12-31 | N74: 366 | O74: 2032 | P74: 31888 | Q74: 33920 | R74: 120 | S74: 1891 | T74: 2011 | U74: 35931
A75: 5153306N | B75: 5153306 | C75: Carillon Nursing and Rehabilitation Center | D75: 01/01/2024 | E75: 56243 | F75: 0 | G75: 97062 | H75: 0 | I75: 56243 | J75: 0 | K75: 5087 | L75: 2024-01-01 | M75: 2024-12-31 | N75: 366 | O75: 0 | P75: 56243 | Q75: 56243 | R75: 0 | S75: 5087 | T75: 5087 | U75: 61330
A76: 7003373N | B76: 7003373 | C76: Caring Family Nursing and Rehabilitation Center | D76: 01/01/2024 | E76: 58880 | F76: 336 | G76: 64338 | H76: 252 | I76: 41281 | J76: 17011 | K76: 22 | L76: 2024-01-01 | M76: 2024-12-31 | N76: 366 | O76: 17263 | P76: 41617 | Q76: 58880 | R76: 6 | S76: 16 | T76: 22 | U76: 58902
A77: 7004310N | B77: 7004310 | C77: Carmel Richmond Healthcare and Rehabilitation Center | D77: 01/01/2024 | E77: 67603 | F77: 732 | G77: 107672 | H77: 307 | I77: 66534 | J77: 30 | K77: 7807 | L77: 2024-01-01 | M77: 2024-12-31 | N77: 366 | O77: 337 | P77: 67266 | Q77: 67603 | R77: 39 | S77: 7768 | T77: 7807 | U77: 75410
A78: 2238304N | B78: 2238304 | C78: Carthage Center for Rehabilitation and Nursing | D78: 01/01/2024 | E78: 19916 | F78: 0 | G78: 30913 | H78: 177 | I78: 19739 | J78: 0 | K78: 2052 | L78: 2024-01-01 | M78: 2024-12-31 | N78: 366 | O78: 177 | P78: 19739 | Q78: 19916 | R78: 18 | S78: 2034 | T78: 2052 | U78: 21968
A79: 7001366N | B79: 7001366 | C79: Caton Park Nursing Home | D79: 01/01/2024 | E79: 24058 | F79: 0 | G79: 41458 | H79: 541 | I79: 19761 | J79: 3756 | K79: 10654 | L79: 2024-01-01 | M79: 2024-12-31 | N79: 366 | O79: 4297 | P79: 19761 | Q79: 24058 | R79: 1903 | S79: 8751 | T79: 10654 | U79: 34712
A80: 5401311N | B80: 5401311 | C80: Cayuga Ridge Extended Care | D80: 01/01/2024 | E80: 27204 | F80: 53 | G80: 43105 | H80: 0 | I80: 26555 | J80: 596 | K80: 738 | L80: 2024-01-01 | M80: 2024-12-31 | N80: 366 | O80: 596 | P80: 26608 | Q80: 27204 | R80: 16 | S80: 722 | T80: 738 | U80: 27942
A81: 5905309N | B81: 5905309 | C81: Cedar Manor Nursing & Rehabilitation Center | D81: 01/01/2024 | E81: 25747 | F81: 0 | G81: 51019 | H81: 0 | I81: 25747 | J81: 0 | K81: 3226 | L81: 2024-01-01 | M81: 2024-12-31 | N81: 366 | O81: 0 | P81: 25747 | Q81: 25747 | R81: 0 | S81: 3226 | T81: 3226 | U81: 28973
A82: 2952308N | B82: 2952308 | C82: Central Island Healthcare | D82: 01/01/2024 | E82: 34084 | F82: 0 | G82: 58561 | H82: 0 | I82: 33973 | J82: 111 | K82: 3008 | L82: 2024-01-01 | M82: 2024-12-31 | N82: 366 | O82: 111 | P82: 33973 | Q82: 34084 | R82: 10 | S82: 2998 | T82: 3008 | U82: 37092
A83: 3301326N | B83: 3301326 | C83: Central Park Rehabilitation and Nursing Center | D83: 01/01/2024 | E83: 41775 | F83: 841 | G83: 57164 | H83: 461 | I83: 38259 | J83: 2214 | K83: 9963 | L83: 2024-01-01 | M83: 2024-12-31 | N83: 366 | O83: 2675 | P83: 39100 | Q83: 41775 | R83: 638 | S83: 9325 | T83: 9963 | U83: 51738
A84: 0901001N | B84: 0901001 | C84: Champlain Valley Physicians Hospital Medical Center Snf | D84: 01/01/2024 | E84: 7492 | F84: 0 | G84: 12201 | H84: 0 | I84: 7165 | J84: 327 | K84: 373 | L84: 2023-10-01 | M84: 2024-09-30 | N84: 366 | O84: 327 | P84: 7165 | Q84: 7492 | R84: 16 | S84: 357 | T84: 373 | U84: 7865
A85: 7003351N | B85: 7003351 | C85: Chapin Home For The Aging | D85: 01/01/2024 | E85: 42158 | F85: 1181 | G85: 54218 | H85: 256 | I85: 36141 | J85: 4580 | K85: 7583 | L85: 2024-01-01 | M85: 2024-12-31 | N85: 366 | O85: 4836 | P85: 37322 | Q85: 42158 | R85: 870 | S85: 6713 | T85: 7583 | U85: 49741
A86: 3227304N | B86: 3227304 | C86: Charles T Sitrin Health Care Center Inc | D86: 01/01/2024 | E86: 31139 | F86: 3804 | G86: 50748 | H86: 0 | I86: 26969 | J86: 366 | K86: 467 | L86: 2024-01-01 | M86: 2024-12-31 | N86: 366 | O86: 366 | P86: 30773 | Q86: 31139 | R86: 5 | S86: 462 | T86: 467 | U86: 31606
A87: 0823300N | B87: 0823300 | C87: ChaseHealth Rehab and Residential Care | D87: 01/01/2024 | E87: 20879 | F87: 0 | G87: 27230 | H87: 0 | I87: 20879 | J87: 0 | K87: 481 | L87: 2024-01-01 | M87: 2024-12-31 | N87: 366 | O87: 0 | P87: 20879 | Q87: 20879 | R87: 0 | S87: 481 | T87: 481 | U87: 21360
A88: 0601304N | B88: 0601304 | C88: Chautauqua Nursing and Rehabilitation Center | D88: 01/01/2024 | E88: 51079 | F88: 0 | G88: 72008 | H88: 21 | I88: 50346 | J88: 712 | K88: 4670 | L88: 2024-01-01 | M88: 2024-12-31 | N88: 366 | O88: 733 | P88: 50346 | Q88: 51079 | R88: 67 | S88: 4603 | T88: 4670 | U88: 55749
A89: 0701301N | B89: 0701301 | C89: Chemung County Health Center-nursing Facility | D89: 01/01/2024 | E89: 32498 | F89: 325 | G89: 49453 | H89: 0 | I89: 30548 | J89: 1625 | K89: 1321 | L89: 2024-01-01 | M89: 2024-12-31 | N89: 366 | O89: 1625 | P89: 30873 | Q89: 32498 | R89: 66 | S89: 1255 | T89: 1321 | U89: 33819
A90: 0824000N | B90: 0824000 | C90: Chenango Memorial Hospital Inc Snf | D90: 01/01/2024 | E90: 2 | F90: 2 | G90: 2 | H90: 0 | I90: 0 | J90: 0 | K90: 0 | L90: 2024-01-01 | M90: 2024-01-31 | N90: 31 | O90: 0 | P90: =IF(N90=365,(F90+I90),ROUND((F90+I90)/N90*366,0)) -> 24 | Q90: 24 | R90: =IFERROR(ROUND((O90/Q90)*K90,0),0) -> 0 | S90: 0 | T90: 0 | U90: 24 | V90: closed 1/2/2024
A91: 3801304N | B91: 3801304 | C91: Chestnut Park Rehabilitation and Nursing Center | D91: 01/01/2024 | E91: 15128 | F91: 0 | G91: 27589 | H91: 0 | I91: 15067 | J91: 61 | K91: 2007 | L91: 2024-01-01 | M91: 2024-12-31 | N91: 366 | O91: 61 | P91: =IF(N91=365,(F91+I91),ROUND((F91+I91)/N91*366,0)) -> 15067 | Q91: 15128 | R91: 8 | S91: 1999 | T91: 2007 | U91: 17135
A92: 2701339N | B92: 2701339 | C92: Church Home Of The Protestant Episcopal Church | D92: 01/01/2024 | E92: 28469 | F92: 729 | G92: 52639 | H92: 0 | I92: 27740 | J92: 0 | K92: 392 | L92: 2024-01-01 | M92: 2024-12-31 | N92: 366 | O92: 0 | P92: 28469 | Q92: 28469 | R92: 0 | S92: 392 | T92: 392 | U92: 28861
A93: 7003380N | B93: 7003380 | C93: Cliffside Rehabilitation and Residential Health Care Center | D93: 01/01/2024 | E93: 38110 | F93: 0 | G93: 64324 | H93: 0 | I93: 32211 | J93: 5899 | K93: 14211 | L93: 2024-01-01 | M93: 2024-12-31 | N93: 366 | O93: 5899 | P93: 32211 | Q93: 38110 | R93: 2200 | S93: 12011 | T93: 14211 | U93: 52321
A94: 3421000N | B94: 3421000 | C94: Clifton Springs Hospital And Clinic Extended Care | D94: 01/01/2024 | E94: 21755 | F94: 731 | G94: 33498 | H94: 873 | I94: 18729 | J94: 1422 | K94: 4225 | L94: 2024-01-01 | M94: 2024-12-31 | N94: 366 | O94: 2295 | P94: 19460 | Q94: 21755 | R94: 446 | S94: 3779 | T94: 4225 | U94: 25980
A95: 0952300N | B95: 0952300 | C95: Clinton County Nursing Home | D95: 01/01/2024 | E95: 12677 | F95: 0 | G95: 13899 | H95: 0 | I95: 11945 | J95: 732 | K95: 187 | L95: 2024-01-01 | M95: 2024-12-31 | N95: 366 | O95: 732 | P95: 11945 | Q95: 12677 | R95: 11 | S95: 176 | T95: 187 | U95: 12864
A96: 7004321N | B96: 7004321 | C96: Clove Lakes Health Care and Rehabilitation Center | D96: 01/01/2024 | E96: 77054 | F96: 0 | G96: 146722 | H96: 0 | I96: 72571 | J96: 4483 | K96: 22061 | L96: 2024-01-01 | M96: 2024-12-31 | N96: 366 | O96: 4483 | P96: 72571 | Q96: 77054 | R96: 1284 | S96: 20777 | T96: 22061 | U96: 99115
A97: 7001323N | B97: 7001323 | C97: Cobble Hill Health Center Inc | D97: 01/01/2024 | E97: 80319 | F97: 0 | G97: 127746 | H97: 0 | I97: 76618 | J97: 3701 | K97: 29152 | L97: 2024-01-01 | M97: 2024-12-31 | N97: 366 | O97: 3701 | P97: 76618 | Q97: 80319 | R97: 1343 | S97: 27809 | T97: 29152 | U97: 109471
A98: 2952310N | B98: 2952310 | C98: Cold Spring Hills Center for Nursing and Rehabilitation | D98: 01/01/2024 | E98: 125257 | F98: 1891 | G98: 134629 | H98: 6163 | I98: 99535 | J98: 17668 | K98: 346 | L98: 2024-01-01 | M98: 2024-12-31 | N98: 366 | O98: 23831 | P98: 101426 | Q98: 125257 | R98: 66 | S98: 280 | T98: 346 | U98: 125603
A99: 7002336N | B99: 7002336 | C99: Coler Rehabilitation and Nursing Care Center | D99: 01/01/2024 | E99: 93733 | F99: 0 | G99: 174883 | H99: 366 | I99: 40532 | J99: 52835 | K99: 24349 | L99: 2023-07-01 | M99: 2024-06-30 | N99: 366 | O99: 53201 | P99: 40532 | Q99: 93733 | R99: 13820 | S99: 10529 | T99: 24349 | U99: 118082
A100: 3201311N | B100: 3201311 | C100: Colonial Park Rehabilitation and Nursing Center | D100: 01/01/2024 | E100: 18081 | F100: 0 | G100: 27193 | H100: 0 | I100: 16609 | J100: 1472 | K100: 2289 | L100: 2024-01-01 | M100: 2024-12-31 | N100: 366 | O100: 1472 | P100: 16609 | Q100: 18081 | R100: 186 | S100: 2103 | T100: 2289 | U100: 20370
A101: 7001348N | B101: 7001348 | C101: Concord Nursing and Rehabilitation Center | D101: 01/01/2024 | E101: 32750 | F101: 265 | G101: 43924 | H101: 0 | I101: 22175 | J101: 10310 | K101: 6183 | L101: 2024-01-01 | M101: 2024-12-31 | N101: 366 | O101: 10310 | P101: 22440 | Q101: 32750 | R101: 1946 | S101: 4237 | T101: 6183 | U101: 38933
A102: 7000375N | B102: 7000375 | C102: Concourse Rehabilitation and Nursing Center | D102: 01/01/2024 | E102: 44787 | F102: 412 | G102: 78677 | H102: 1185 | I102: 39958 | J102: 3232 | K102: 14004 | L102: 2024-01-01 | M102: 2024-12-31 | N102: 366 | O102: 4417 | P102: 40370 | Q102: 44787 | R102: 1381 | S102: 12623 | T102: 14004 | U102: 58791
A103: 2525301N | B103: 2525301 | C103: Conesus Lake Nursing Home LLC | D103: 01/01/2024 | E103: 10372 | F103: 0 | G103: 16556 | H103: 0 | I103: 10372 | J103: 0 | K103: 339 | L103: 2024-01-01 | M103: 2024-12-31 | N103: 366 | O103: 0 | P103: 10372 | Q103: 10372 | R103: 0 | S103: 339 | T103: 339 | U103: 10711
A104: 3824301N | B104: 3824301 | C104: Cooperstown Center for Rehabilitation and Nursing | D104: 01/01/2024 | E104: 41541 | F104: 100 | G104: 60343 | H104: 0 | I104: 41317 | J104: 124 | K104: 5175 | L104: 2024-01-01 | M104: 2024-12-31 | N104: 366 | O104: 124 | P104: 41417 | Q104: 41541 | R104: 15 | S104: 5160 | T104: 5175 | U104: 46716
A105: 5001300N | B105: 5001300 | C105: Corning Center for Rehabilitation and Healthcare | D105: 01/01/2024 | E105: 31796 | F105: 87 | G105: 42328 | H105: 116 | I105: 30634 | J105: 959 | K105: 3538 | L105: 2024-01-01 | M105: 2024-12-31 | N105: 366 | O105: 1075 | P105: 30721 | Q105: 31796 | R105: 120 | S105: 3418 | T105: 3538 | U105: 35334
A106: 1101310N | B106: 1101310 | C106: Cortland Park Rehabilitation and Nursing Center | D106: 01/01/2024 | E106: 30749 | F106: 533 | G106: 40016 | H106: 302 | I106: 28598 | J106: 1316 | K106: 2740 | L106: 2024-01-01 | M106: 2024-12-31 | N106: 366 | O106: 1618 | P106: 29131 | Q106: 30749 | R106: 144 | S106: 2596 | T106: 2740 | U106: 33489
A107: 1101306N | B107: 1101306 | C107: Cortland Regional Nursing and Rehabilitation Center | D107: 01/01/2024 | E107: 15638 | F107: 0 | G107: 25039 | H107: 0 | I107: 15087 | J107: 551 | K107: 0 | L107: 2023-07-01 | M107: 2024-06-30 | N107: 366 | O107: 551 | P107: 15087 | Q107: 15638 | R107: 0 | S107: 0 | T107: 0 | U107: 15638
A108: 5901307N | B108: 5901307 | C108: Cortlandt Healthcare | D108: 01/01/2024 | E108: 23428 | F108: 0 | G108: 40960 | H108: 0 | I108: 23428 | J108: 0 | K108: 1379 | L108: 2024-01-01 | M108: 2024-12-31 | N108: 366 | O108: 0 | P108: 23428 | Q108: =O108+P108 -> 23428 | R108: 0 | S108: 1379 | T108: =R108+S108 -> 1379 | U108: 24807
A109: 2762302N | B109: 2762302 | C109: Crest Manor Living and Rehabilitation Center | D109: 01/01/2024 | E109: 14443 | F109: 0 | G109: 26665 | H109: 0 | I109: 14395 | J109: 48 | K109: 1103 | L109: 2024-01-01 | M109: 2024-12-31 | N109: 366 | O109: 48 | P109: 14395 | Q109: 14443 | R109: 4 | S109: 1099 | T109: 1103 | U109: 15546
A110: 2623300N | B110: 2623300 | C110: Crouse Community Center Inc | D110: 01/01/2024 | E110: 23523 | F110: 0 | G110: 40452 | H110: 0 | I110: 23523 | J110: 0 | K110: 1673 | L110: 2024-01-01 | M110: 2024-12-31 | N110: 366 | O110: 0 | P110: 23523 | Q110: 23523 | R110: 0 | S110: 1673 | T110: 1673 | U110: 25196
A111: 7001398N | B111: 7001398 | C111: Crown Heights Center for Nursing and Rehabilitation | D111: 01/01/2024 | E111: 72459 | F111: 691 | G111: 104949 | H111: 1822 | I111: 62301 | J111: 7645 | K111: 10910 | L111: 2024-01-01 | M111: 2024-12-31 | N111: 366 | O111: 9467 | P111: 62992 | Q111: 72459 | R111: 1425 | S111: 9485 | T111: 10910 | U111: 83369
A112: 1101312N | B112: 1101312 | C112: Crown Park Rehabilitation and Nursing Center | D112: 01/01/2024 | E112: 48915 | F112: 1309 | G112: 63700 | H112: 513 | I112: 45424 | J112: 1669 | K112: 6917 | L112: 2024-01-01 | M112: 2024-12-31 | N112: 366 | O112: 2182 | P112: 46733 | Q112: 48915 | R112: 309 | S112: 6608 | T112: 6917 | U112: 55832
A113: 0226000N | B113: 0226000 | C113: Cuba Memorial Hospital Inc Snf | D113: 01/01/2024 | E113: 13384 | F113: 0 | G113: 16111 | H113: 0 | I113: 13070 | J113: 314 | K113: 350 | L113: 2024-01-01 | M113: 2024-12-31 | N113: 366 | O113: 314 | P113: 13070 | Q113: 13384 | R113: 8 | S113: 342 | T113: 350 | U113: 13734
A114: 7003413N | B114: 7003413 | C114: Cypress Garden Center for Nursing and Rehabilitation | D114: 01/01/2024 | E114: 56558 | F114: 0 | G114: 95014 | H114: 0 | I114: 54152 | J114: 2406 | K114: 14986 | L114: 2024-01-01 | M114: 2024-12-31 | N114: 366 | O114: 2406 | P114: 54152 | Q114: 56558 | R114: 638 | S114: 14348 | T114: 14986 | U114: 71544
A115: 5150302N | B115: 5150302 | C115: Daleview Care Center | D115: 01/01/2024 | E115: 28077 | F115: 0 | G115: 46509 | H115: 0 | I115: 27905 | J115: 172 | K115: 1143 | L115: 2024-01-01 | M115: 2024-12-31 | N115: 366 | O115: 172 | P115: 27905 | Q115: 28077 | R115: 7 | S115: 1136 | T115: 1143 | U115: 29220
A116: 0101312N | B116: 0101312 | C116: Daughters Of Sarah Nursing Center | D116: 01/01/2024 | E116: 37766 | F116: 0 | G116: 72044 | H116: 0 | I116: 37399 | J116: 367 | K116: 797 | L116: 2024-01-01 | M116: 2024-12-31 | N116: 366 | O116: 367 | P116: 37399 | Q116: 37766 | R116: 8 | S116: 789 | T116: 797 | U116: 38563
A117: 3103000N | B117: 3103000 | C117: Degraff Memorial Hospital-skilled Nursing Facility | D117: 01/01/2024 | E117: 18353 | F117: 366 | G117: 26249 | H117: 0 | I117: 17621 | J117: 366 | K117: 105 | L117: 2024-01-01 | M117: 2024-12-31 | N117: 366 | O117: 366 | P117: 17987 | Q117: 18353 | R117: 2 | S117: 103 | T117: 105 | U117: 18458
A118: 1401343N | B118: 1401343 | C118: Delaware Oaks Center For Rehabilitation and Nursing | D118: 01/01/2024 | E118: 23083 | F118: 17 | G118: 32855 | H118: 0 | I118: 22515 | J118: 551 | K118: 2850 | L118: 2024-01-01 | M118: 2024-12-31 | N118: 366 | O118: 551 | P118: 22532 | Q118: 23083 | R118: 68 | S118: 2782 | T118: 2850 | U118: 25933
A119: 1254302N | B119: 1254302 | C119: Delhi Rehabilitation and Nursing Center | D119: 01/01/2024 | E119: 48054 | F119: 213 | G119: 58761 | H119: 807 | I119: 43808 | J119: 3226 | K119: 4647 | L119: 2024-01-01 | M119: 2024-12-31 | N119: 366 | O119: 4033 | P119: 44021 | Q119: 48054 | R119: 390 | S119: 4257 | T119: 4647 | U119: 52701
A120: 7001393N | B120: 7001393 | C120: Ditmas Park Care Center | D120: 01/01/2024 | E120: 18837 | F120: 0 | G120: 59570 | H120: 0 | I120: 18827 | J120: 10 | K120: 0 | L120: 2024-01-01 | M120: 2024-12-31 | N120: 366 | O120: 10 | P120: 18827 | Q120: 18837 | R120: 0 | S120: 0 | T120: 0 | U120: 18837
A121: 7001809N | B121: 7001809 | C121: Downtown Brooklyn Nursing & Rehabilitation Center | D121: 01/01/2024 | E121: 65929 | F121: 0 | G121: 107369 | H121: 0 | I121: 65929 | J121: 0 | K121: 17556 | L121: 2024-01-01 | M121: 2024-12-31 | N121: 366 | O121: 0 | P121: 65929 | Q121: 65929 | R121: 0 | S121: 17556 | T121: 17556 | U121: 83485
A122: 7001380N | B122: 7001380 | C122: Dr Susan Smith Mckinney Nursing and Rehabilitation Center | D122: 01/01/2024 | E122: 66429 | F122: 0 | G122: 112228 | H122: 732 | I122: 44927 | J122: 20770 | K122: 26131 | L122: 2023-07-01 | M122: 2024-06-30 | N122: 366 | O122: 21502 | P122: 44927 | Q122: 66429 | R122: 8458 | S122: 17673 | T122: 26131 | U122: 92560
A123: 7003359N | B123: 7003359 | C123: Dry Harbor Nursing Home | D123: 01/01/2024 | E123: 67609 | F123: 752 | G123: 125681 | H123: 1505 | I123: 65335 | J123: 17 | K123: 10970 | L123: 2024-01-01 | M123: 2024-12-31 | N123: 366 | O123: 1522 | P123: 66087 | Q123: 67609 | R123: 247 | S123: 10723 | T123: 10970 | U123: 78579
A124: 5904321N | B124: 5904321 | C124: Dumont Center for Rehabilitation and Nursing Care | D124: 01/01/2024 | E124: 31705 | F124: 376 | G124: 63509 | H124: 0 | I124: 30225 | J124: 1104 | K124: 2023 | L124: 2024-01-01 | M124: 2024-12-31 | N124: 366 | O124: 1104 | P124: 30601 | Q124: 31705 | R124: 70 | S124: 1953 | T124: 2023 | U124: 33728
A125: 0601305N | B125: 0601305 | C125: Dunkirk Rehabilitation & Nursing Center | D125: 01/01/2024 | E125: 10546 | F125: 11 | G125: 13694 | H125: 589 | I125: 9824 | J125: 122 | K125: 1459 | L125: 2024-01-01 | M125: 2024-12-31 | N125: 366 | O125: 711 | P125: 9835 | Q125: 10546 | R125: 98 | S125: 1361 | T125: 1459 | U125: 12005
A126: 5902319N | B126: 5902319 | C126: EPIC Rehabilitation and Nursing at White Plains | D126: 01/01/2024 | E126: 26288 | F126: 0 | G126: 53848 | H126: 0 | I126: 26288 | J126: 0 | K126: 1867 | L126: 2024-01-01 | M126: 2024-12-31 | N126: 366 | O126: 0 | P126: 26288 | Q126: 26288 | R126: 0 | S126: 1867 | T126: 1867 | U126: 28155
A127: 7000360N | B127: 7000360 | C127: East Haven Nursing And Rehabilitation Center | D127: 01/01/2024 | E127: 50649 | F127: 231 | G127: 71105 | H127: 249 | I127: 37183 | J127: 12986 | K127: 12776 | L127: 2024-01-01 | M127: 2024-12-31 | N127: 366 | O127: 13235 | P127: 37414 | Q127: 50649 | R127: 3338 | S127: 9438 | T127: 12776 | U127: 63425
A128: 5150303N | B128: 5150303 | C128: East Neck Nursing and Rehabilitation Center | D128: 01/01/2024 | E128: 53649 | F128: 0 | G128: 92227 | H128: 0 | I128: 53649 | J128: 0 | K128: 9325 | L128: 2024-01-01 | M128: 2024-12-31 | N128: 366 | O128: 0 | P128: 53649 | Q128: 53649 | R128: 0 | S128: 9325 | T128: 9325 | U128: 62974
A129: 6027304N | B129: 6027304 | C129: East Side Nursing Home | D129: 01/01/2024 | E129: 18815 | F129: 141 | G129: 27781 | H129: 364 | I129: 18306 | J129: 4 | K129: 1484 | L129: 2024-01-01 | M129: 2024-12-31 | N129: 366 | O129: 368 | P129: 18447 | Q129: 18815 | R129: 29 | S129: 1455 | T129: 1484 | U129: 20299
A130: 7000383N | B130: 7000383 | C130: Eastchester Rehabilitation and Health Care Center | D130: 01/01/2024 | E130: 31528 | F130: 0 | G130: 52662 | H130: 0 | I130: 25729 | J130: 5799 | K130: 7060 | L130: 2024-01-01 | M130: 2024-12-31 | N130: 366 | O130: 5799 | P130: 25729 | Q130: 31528 | R130: 1299 | S130: 5761 | T130: 7060 | U130: 38588
A131: 4102311N | B131: 4102311 | C131: Eddy Heritage House Nursing and Rehabilitation Ctr | D131: 01/01/2024 | E131: 19686 | F131: 545 | G131: 38849 | H131: 883 | I131: 18188 | J131: 70 | K131: 756 | L131: 2024-01-01 | M131: 2024-12-31 | N131: 366 | O131: 953 | P131: 18733 | Q131: 19686 | R131: 37 | S131: 719 | T131: 756 | U131: 20442
A132: 4102309N | B132: 4102309 | C132: Eddy Memorial Geriatric Center | D132: 01/01/2024 | E132: 18883 | F132: 732 | G132: 28302 | H132: 255 | I132: 17530 | J132: 366 | K132: 0 | L132: 2024-01-01 | M132: 2024-12-31 | N132: 366 | O132: 621 | P132: 18262 | Q132: 18883 | R132: 0 | S132: 0 | T132: 0 | U132: 18883
A133: 0102001N | B133: 0102001 | C133: Eddy Village Green | D133: 01/01/2024 | E133: 41966 | F133: 794 | G133: 66112 | H133: 564 | I133: 39510 | J133: 1098 | K133: 632 | L133: 2024-01-01 | M133: 2024-12-31 | N133: 366 | O133: 1662 | P133: 40304 | Q133: 41966 | R133: 25 | S133: 607 | T133: 632 | U133: 42598
A134: 0151301N | B134: 0151301 | C134: Eddy Village Green at Beverwyck | D134: 01/01/2024 | E134: 3615 | F134: 0 | G134: 8640 | H134: 0 | I134: 3615 | J134: 0 | K134: 0 | L134: 2024-01-01 | M134: 2024-12-31 | N134: 366 | O134: 0 | P134: 3615 | Q134: 3615 | R134: 0 | S134: 0 | T134: 0 | U134: 3615
A135: 1461303N | B135: 1461303 | C135: Eden Rehabilitation & Nursing Center | D135: 01/01/2024 | E135: 9701 | F135: 0 | G135: 13489 | H135: 0 | I135: 9341 | J135: 360 | K135: 14 | L135: 2024-01-01 | M135: 2024-12-31 | N135: 366 | O135: 360 | P135: 9341 | Q135: 9701 | R135: =IFERROR(ROUND((O135/E135)*K135,0),0) -> 1 | S135: =IFERROR(ROUND((P135/E135)*K135,0),0) -> 13 | T135: 14 | U135: 9715
A136: =B136&"N" -> 2754304N | B136: 2754304 | C136: Edna Tina Wilson Living Center | D136: 01/01/2024 | E136: 33792 | F136: 693 | G136: 43460 | H136: 727 | I136: 32372 | J136: 0 | K136: 274 | L136: 2024-01-01 | M136: 2024-12-31 | N136: =(M136-L136)+1 -> 366 | O136: =IF(N136=366,(H136+J136),ROUND((H136+J136)/N136*366,0)) -> 727 | P136: 33065 | Q136: =O136+P136 -> 33792 | R136: 6 | S136: 268 | T136: =R136+S136 -> 274 | U136: =Q136+T136 -> 34066
A137: 7004303N | B137: 7004303 | C137: Eger Health Care and Rehabilitation Center | D137: 01/01/2024 | E137: 62476 | F137: 808 | G137: 116899 | H137: 548 | I137: 60035 | J137: 1085 | K137: 13834 | L137: 2024-01-01 | M137: 2024-12-31 | N137: 366 | O137: 1633 | P137: 60843 | Q137: 62476 | R137: 362 | S137: 13472 | T137: 13834 | U137: 76310
A138: 0722304N | B138: 0722304 | C138: Elcor Nursing and Rehabilitation Center | D138: 01/01/2024 | E138: 77269 | F138: 0 | G138: 99293 | H138: 1263 | I138: 71466 | J138: 4540 | K138: 9247 | L138: 2024-01-01 | M138: 2024-12-31 | N138: 366 | O138: 5803 | P138: 71466 | Q138: 77269 | R138: 694 | S138: 8553 | T138: 9247 | U138: 86516
A139: 1451307N | B139: 1451307 | C139: Elderwood at Amherst | D139: 01/01/2024 | E139: 17023 | F139: 0 | G139: 29028 | H139: 0 | I139: 17023 | J139: 0 | K139: 1635 | L139: 2024-01-01 | M139: 2024-12-31 | N139: 366 | O139: 0 | P139: 17023 | Q139: 17023 | R139: 0 | S139: 1635 | T139: 1635 | U139: 18658
A140: 1455303N | B140: 1455303 | C140: Elderwood at Cheektowaga | D140: 01/01/2024 | E140: 36326 | F140: 0 | G140: 56410 | H140: 0 | I140: 35937 | J140: 389 | K140: 1637 | L140: 2024-01-01 | M140: 2024-12-31 | N140: 366 | O140: 389 | P140: 35937 | Q140: 36326 | R140: 18 | S140: 1619 | T140: 1637 | U140: 37963
A141: 1464302N | B141: 1464302 | C141: Elderwood at Grand Island | D141: 01/01/2024 | E141: 13834 | F141: 0 | G141: 30058 | H141: 189 | I141: 13645 | J141: 0 | K141: 183 | L141: 2024-01-01 | M141: 2024-12-31 | N141: 366 | O141: 189 | P141: 13645 | Q141: 13834 | R141: 3 | S141: 180 | T141: 183 | U141: 14017
A142: 1430303N | B142: 1430303 | C142: Elderwood at Hamburg | D142: 01/01/2024 | E142: 30502 | F142: 0 | G142: 50603 | H142: 0 | I142: 30502 | J142: 0 | K142: 809 | L142: 2024-01-01 | M142: 2024-12-31 | N142: 366 | O142: 0 | P142: 30502 | Q142: 30502 | R142: 0 | S142: 809 | T142: 809 | U142: 31311
A143: 5034300N | B143: 5034300 | C143: Elderwood at Hornell | D143: 01/01/2024 | E143: 20739 | F143: 0 | G143: 36609 | H143: 0 | I143: 20739 | J143: 0 | K143: 1213 | L143: 2024-01-01 | M143: 2024-12-31 | N143: 366 | O143: 0 | P143: 20739 | Q143: 20739 | R143: 0 | S143: 1213 | T143: 1213 | U143: 21952
A144: 1406303N | B144: 1406303 | C144: Elderwood at Lancaster | D144: 01/01/2024 | E144: 13579 | F144: 0 | G144: 30841 | H144: 0 | I144: 13579 | J144: 0 | K144: 342 | L144: 2024-01-01 | M144: 2024-12-31 | N144: 366 | O144: 0 | P144: 13579 | Q144: 13579 | R144: 0 | S144: 342 | T144: 342 | U144: 13921
A145: 3331301N | B145: 3331301 | C145: Elderwood at Liverpool | D145: 01/01/2024 | E145: 22179 | F145: 0 | G145: 52600 | H145: 0 | I145: 22179 | J145: 0 | K145: 258 | L145: 2024-01-01 | M145: 2024-12-31 | N145: 366 | O145: 0 | P145: 22179 | Q145: 22179 | R145: 0 | S145: 258 | T145: 258 | U145: 22437
A146: 3101308N | B146: 3101308 | C146: Elderwood at Lockport | D146: 01/01/2024 | E146: 23661 | F146: 0 | G146: 37674 | H146: 0 | I146: 23661 | J146: 0 | K146: 469 | L146: 2024-01-01 | M146: 2024-12-31 | N146: 366 | O146: 0 | P146: 23661 | Q146: 23661 | R146: 0 | S146: 469 | T146: 469 | U146: 24130
A147: 5655303N | B147: 5655303 | C147: Elderwood at North Creek | D147: 01/01/2024 | E147: 16964 | F147: 0 | G147: 24572 | H147: 0 | I147: 16962 | J147: 2 | K147: 1398 | L147: 2024-01-01 | M147: 2024-12-31 | N147: 366 | O147: 2 | P147: 16962 | Q147: 16964 | R147: 0 | S147: 1398 | T147: 1398 | U147: 18362
A148: 1527301N | B148: 1527301 | C148: Elderwood at Ticonderoga | D148: 01/01/2024 | E148: 20626 | F148: 0 | G148: 26882 | H148: 0 | I148: 20626 | J148: 0 | K148: 863 | L148: 2024-01-01 | M148: 2024-12-31 | N148: 366 | O148: 0 | P148: 20626 | Q148: 20626 | R148: 0 | S148: 863 | T148: 863 | U148: 21489
A149: 5320302N | B149: 5320302 | C149: Elderwood at Waverly | D149: 01/01/2024 | E149: 44354 | F149: 0 | G149: 65525 | H149: 0 | I149: 44354 | J149: 0 | K149: 766 | L149: 2024-01-01 | M149: 2024-12-31 | N149: 366 | O149: 0 | P149: 44354 | Q149: 44354 | R149: 0 | S149: 766 | T149: 766 | U149: 45120
A150: 3121304N | B150: 3121304 | C150: Elderwood at Wheatfield | D150: 01/01/2024 | E150: 22559 | F150: 0 | G150: 39528 | H150: 0 | I150: 22559 | J150: 0 | K150: 925 | L150: 2024-01-01 | M150: 2024-12-31 | N150: 366 | O150: 0 | P150: 22559 | Q150: 22559 | R150: 0 | S150: 925 | T150: 925 | U150: 23484
A151: 1421307N | B151: 1421307 | C151: Elderwood at Williamsville | D151: 01/01/2024 | E151: 30553 | F151: 0 | G151: 47168 | H151: 306 | I151: 30247 | J151: 0 | K151: 1452 | L151: 2024-01-01 | M151: 2024-12-31 | N151: 366 | O151: 306 | P151: 30247 | Q151: 30553 | R151: 15 | S151: 1437 | T151: 1452 | U151: 32005
A152: 2728300N | B152: 2728300 | C152: Elderwood of Lakeside at Brockport | D152: 01/01/2024 | E152: 23006 | F152: 0 | G152: 39067 | H152: 0 | I152: 23006 | J152: 0 | K152: 349 | L152: 2024-01-01 | M152: 2024-12-31 | N152: 366 | O152: 0 | P152: 23006 | Q152: 23006 | R152: 0 | S152: 349 | T152: 349 | U152: 23355
A153: 1560302N | B153: 1560302 | C153: Elderwood of Uihlein at Lake Placid | D153: 01/01/2024 | E153: 34812 | F153: 0 | G153: 46959 | H153: 0 | I153: 34812 | J153: 0 | K153: 1036 | L153: 2024-01-01 | M153: 2024-12-31 | N153: 366 | O153: 0 | P153: 34812 | Q153: 34812 | R153: 0 | S153: 1036 | T153: 1036 | U153: 35848
A154: 0301307N | B154: 0301307 | C154: Elizabeth Church Manor Nursing Home | D154: 01/01/2024 | E154: 26623 | F154: 0 | G154: 39996 | H154: 0 | I154: 26623 | J154: 0 | K154: 0 | L154: 2024-01-01 | M154: 2024-12-31 | N154: 366 | O154: 0 | P154: 26623 | Q154: 26623 | R154: 0 | S154: 0 | T154: 0 | U154: 26623
A155: 7002346N | B155: 7002346 | C155: Elizabeth Seton Childrens Center | D155: 01/01/2024 | E155: 0 | F155: 0 | G155: 0 | H155: 0 | I155: 0 | J155: 0 | K155: 0 | L155: 2024-01-01 | M155: 2024-12-31 | N155: 366 | O155: 0 | P155: =IF(N155=365,(F155+I155),ROUND((F155+I155)/N155*366,0)) -> 0 | Q155: 0 | R155: 0 | S155: 0 | T155: 0 | U155: 0
A156: 1401337N | B156: 1401337 | C156: Ellicott Center for Rehabilitation and Nursing for Waterfront Operations | D156: 01/01/2024 | E156: 35014 | F156: 26 | G156: 56397 | H156: 530 | I156: 27653 | J156: 6805 | K156: 13818 | L156: 2024-01-01 | M156: 2024-12-31 | N156: 366 | O156: 7335 | P156: 27679 | Q156: 35014 | R156: 2895 | S156: 10923 | T156: 13818 | U156: 48832
A157: 4601001N | B157: 4601001 | C157: Ellis Residential & Rehabilitation Center | D157: 01/01/2024 | E157: 5678 | F157: 0 | G157: 11876 | H157: 0 | I157: 0 | J157: 5678 | K157: 123 | L157: 2024-01-01 | M157: 2024-12-31 | N157: 366 | O157: 5678 | P157: 0 | Q157: 5678 | R157: 123 | S157: 0 | T157: 123 | U157: 5801
A158: 3429305N | B158: 3429305 | C158: Elm Manor Nursing and Rehabilitation Center | D158: 01/01/2024 | E158: 8782 | F158: 0 | G158: 15448 | H158: 0 | I158: 8715 | J158: 67 | K158: 22 | L158: 2024-01-01 | M158: 2024-12-31 | N158: 366 | O158: 67 | P158: 8715 | Q158: 8782 | R158: 0 | S158: 22 | T158: 22 | U158: 8804
A159: 7003396N | B159: 7003396 | C159: Elmhurst Care Center Inc | D159: 01/01/2024 | E159: 59554 | F159: 1073 | G159: 82359 | H159: 908 | I159: 52376 | J159: 5197 | K159: 8418 | L159: 2024-01-01 | M159: 2024-12-31 | N159: 366 | O159: 6105 | P159: 53449 | Q159: 59554 | R159: 863 | S159: 7555 | T159: 8418 | U159: 67972
A160: 2901304N | B160: 2901304 | C160: Emerge Nursing and Rehabilitation at Glen Cove | D160: 01/01/2024 | E160: 12361 | F160: 0 | G160: 32802 | H160: 0 | I160: 12361 | J160: 0 | K160: 171 | L160: 2024-01-01 | M160: 2024-12-31 | N160: 366 | O160: 0 | P160: 12361 | Q160: 12361 | R160: 0 | S160: 171 | T160: 171 | U160: 12532
A161: 1552300N | B161: 1552300 | C161: Essex Center for Rehabilitation and Healthcare | D161: 01/01/2024 | E161: 23486 | F161: 414 | G161: 34439 | H161: 97 | I161: 22582 | J161: 393 | K161: 5626 | L161: 2024-01-01 | M161: 2024-12-31 | N161: 366 | O161: 490 | P161: 22996 | Q161: 23486 | R161: 117 | S161: 5509 | T161: 5626 | U161: 29112
A162: 4152305N | B162: 4152305 | C162: Evergreen Commons Rehabilitation and Nursing Center | D162: 01/01/2024 | E162: 66506 | F162: 595 | G162: 85452 | H162: 2556 | I162: 62019 | J162: 1336 | K162: 4840 | L162: 2024-01-01 | M162: 2024-12-31 | N162: 366 | O162: 3892 | P162: 62614 | Q162: 66506 | R162: 283 | S162: 4557 | T162: 4840 | U162: 71346
A163: 2952309N | B163: 2952309 | C163: Excel at Woodbury for Rehabilitation and Nursing LLC | D163: 01/01/2024 | E163: 12405 | F163: 68 | G163: 39407 | H163: 0 | I163: 12099 | J163: 238 | K163: 18 | L163: 2024-01-01 | M163: 2024-12-31 | N163: 366 | O163: 238 | P163: 12167 | Q163: 12405 | R163: 0 | S163: 18 | T163: 18 | U163: 12423
A164: 2725303N | B164: 2725303 | C164: Fairport Skilled Nursing Home | D164: 01/01/2024 | E164: 15363 | F164: 0 | G164: 29270 | H164: 0 | I164: 15363 | J164: 0 | K164: 481 | L164: 2024-05-17 | M164: 2024-12-31 | N164: 229 | O164: =IF(N164=366,(H164+J164),ROUND((H164+J164)/N164*366,0)) -> 0 | P164: =IF(N164=365,(F164+I164),ROUND((F164+I164)/N164*366,0)) -> 24554 | Q164: 24554 | R164: =IFERROR(ROUND((O164/Q164)*K164,0),0) -> 0 | S164: =IFERROR(ROUND((P164/Q164)*K164,0),0) -> 481 | T164: 481 | U164: 25035 | V164: change of name and opcert
A165: 7003375N | B165: 7003375 | C165: Fairview Nursing Care Center Inc | D165: 01/01/2024 | E165: 23577 | F165: 225 | G165: 71524 | H165: 513 | I165: 22199 | J165: 640 | K165: 10946 | L165: 2024-01-01 | M165: 2024-12-31 | N165: 366 | O165: =IF(N165=366,(H165+J165),ROUND((H165+J165)/N165*366,0)) -> 1153 | P165: =IF(N165=365,(F165+I165),ROUND((F165+I165)/N165*366,0)) -> 22424 | Q165: 23577 | R165: 535 | S165: 10411 | T165: 10946 | U165: 34523
A166: 7003416N | B166: 7003416 | C166: Far Rockaway Center for Rehabilitation and Nursing | D166: 01/01/2024 | E166: 27029 | F166: 0 | G166: 35602 | H166: 366 | I166: 16996 | J166: 9667 | K166: 6257 | L166: 2024-01-01 | M166: 2024-12-31 | N166: 366 | O166: 10033 | P166: 16996 | Q166: 27029 | R166: 2323 | S166: 3934 | T166: 6257 | U166: 33286
A167: 1435302N | B167: 1435302 | C167: Father Baker Manor | D167: 01/01/2024 | E167: 30574 | F167: 488 | G167: 54438 | H167: 366 | I167: 29328 | J167: 392 | K167: 295 | L167: 2024-01-01 | M167: 2024-12-31 | N167: 366 | O167: 758 | P167: 29816 | Q167: 30574 | R167: 7 | S167: 288 | T167: 295 | U167: 30869
A168: 1327300N | B168: 1327300 | C168: Ferncliff Nursing Home Co Inc | D168: 01/01/2024 | E168: 56540 | F168: 804 | G168: 79409 | H168: 0 | I168: 53754 | J168: 1982 | K168: 7083 | L168: 2024-01-01 | M168: 2024-12-31 | N168: 366 | O168: 1982 | P168: 54558 | Q168: 56540 | R168: 248 | S168: 6835 | T168: 7083 | U168: 63623
A169: 1427303N | B169: 1427303 | C169: Fiddlers Green Manor Rehabilitation and Nursing Center | D169: 01/01/2024 | E169: 20068 | F169: 1098 | G169: 27095 | H169: 0 | I169: 18232 | J169: 738 | K169: 1158 | L169: 2024-01-01 | M169: 2024-12-31 | N169: 366 | O169: 738 | P169: 19330 | Q169: 20068 | R169: 43 | S169: 1115 | T169: 1158 | U169: 21226
A170: 7000385N | B170: 7000385 | C170: Fieldston Lodge Care Center | D170: 01/01/2024 | E170: 42897 | F170: 0 | G170: 63014 | H170: 124 | I170: 30207 | J170: 12566 | K170: 15042 | L170: 2024-01-01 | M170: 2024-12-31 | N170: 366 | O170: 12690 | P170: 30207 | Q170: 42897 | R170: 4450 | S170: 10592 | T170: 15042 | U170: 57939
A171: 0501000N | B171: 0501000 | C171: Finger Lakes Center for Living | D171: 01/01/2024 | E171: 14354 | F171: 0 | G171: 27403 | H171: 0 | I171: 14218 | J171: 136 | K171: 0 | L171: 2024-01-01 | M171: 2024-12-31 | N171: 366 | O171: 136 | P171: 14218 | Q171: 14354 | R171: 0 | S171: 0 | T171: 0 | U171: 14354
A172: 1301302N | B172: 1301302 | C172: Fishkill Center for Rehabilitation and Nursing | D172: 01/01/2024 | E172: 37661 | F172: 434 | G172: 54004 | H172: 2283 | I172: 33505 | J172: 1439 | K172: 3485 | L172: 2024-01-01 | M172: 2024-12-31 | N172: 366 | O172: 3722 | P172: 33939 | Q172: 37661 | R172: 344 | S172: 3141 | T172: 3485 | U172: 41146
A173: 2124300N | B173: 2124300 | C173: Foltsbrook Center for Nursing and Rehabilitation | D173: 01/01/2024 | E173: 30892 | F173: 0 | G173: 47701 | H173: 0 | I173: 30892 | J173: 0 | K173: 3675 | L173: 2024-01-01 | M173: 2024-12-31 | N173: 366 | O173: 0 | P173: 30892 | Q173: 30892 | R173: 0 | S173: 3675 | T173: 3675 | U173: 34567
A174: 7000395N | B174: 7000395 | C174: Fordham Nursing and Rehabilitation Center | D174: 01/01/2024 | E174: 50224 | F174: 0 | G174: 82699 | H174: 0 | I174: 50224 | J174: 0 | K174: 16506 | L174: 2024-01-01 | M174: 2024-12-31 | N174: 366 | O174: 0 | P174: 50224 | Q174: 50224 | R174: 0 | S174: 16506 | T174: 16506 | U174: 66730
A175: 7003394N | B175: 7003394 | C175: Forest Hills Care Center | D175: 01/01/2024 | E175: 19411 | F175: 0 | G175: 32523 | H175: 535 | I175: 18876 | J175: 0 | K175: 965 | L175: 2024-01-01 | M175: 2024-12-31 | N175: 366 | O175: 535 | P175: 18876 | Q175: 19411 | R175: 27 | S175: 938 | T175: 965 | U175: 20376
A176: 7003387N | B176: 7003387 | C176: Forest View Center for Rehabilitation & Nursing | D176: 01/01/2024 | E176: 30652 | F176: 396 | G176: 56761 | H176: 11 | I176: 28933 | J176: 1312 | K176: 5391 | L176: 2024-01-01 | M176: 2024-12-31 | N176: 366 | O176: 1323 | P176: 29329 | Q176: 30652 | R176: 233 | S176: 5158 | T176: 5391 | U176: 36043
A177: 5724302N | B177: 5724302 | C177: Fort Hudson Nursing Center Inc | D177: 01/01/2024 | E177: 47819 | F177: 0 | G177: 66256 | H177: 0 | I177: 47707 | J177: 112 | K177: 642 | L177: 2024-01-01 | M177: 2024-12-31 | N177: 366 | O177: 112 | P177: 47707 | Q177: 47819 | R177: 2 | S177: 640 | T177: 642 | U177: 48461
A178: 7002359N | B178: 7002359 | C178: Fort Tryon Center for Rehabilitation and Nursing | D178: 01/01/2024 | E178: 43664 | F178: 0 | G178: 72386 | H178: 608 | I178: 38348 | J178: 4708 | K178: 17400 | L178: 2024-01-01 | M178: 2024-12-31 | N178: 366 | O178: 5316 | P178: 38348 | Q178: 43664 | R178: 2118 | S178: 15282 | T178: 17400 | U178: 61064
A179: 7001808N | B179: 7001808 | C179: Four Seasons Nursing and Rehabilitation Center | D179: 01/01/2024 | E179: 50808 | F179: 0 | G179: 87049 | H179: 0 | I179: 45939 | J179: 4869 | K179: 14884 | L179: 2024-01-01 | M179: 2024-12-31 | N179: 366 | O179: 4869 | P179: 45939 | Q179: 50808 | R179: 1426 | S179: 13458 | T179: 14884 | U179: 65692
A180: 1435304N | B180: 1435304 | C180: Fox Run at Orchard Park | D180: 01/01/2024 | E180: 2170 | F180: 0 | G180: 17651 | H180: 0 | I180: 2170 | J180: 0 | K180: 0 | L180: 2024-01-01 | M180: 2024-12-31 | N180: 366 | O180: 0 | P180: 2170 | Q180: 2170 | R180: 0 | S180: 0 | T180: 0 | U180: 2170
A181: 7003402N | B181: 7003402 | C181: Franklin Center for Rehabilitation and Nursing | D181: 01/01/2024 | E181: 72394 | F181: 0 | G181: 110684 | H181: 1092 | I181: 47968 | J181: 23334 | K181: 24787 | L181: 2024-01-01 | M181: 2024-12-31 | N181: 366 | O181: 24426 | P181: 47968 | Q181: 72394 | R181: 8363 | S181: 16424 | T181: 24787 | U181: 97181
A182: 4350305N | B182: 4350305 | C182: Friedwald Center for Rehabilitation & Nursing LLC | D182: 01/01/2024 | E182: 25250 | F182: 0 | G182: 55122 | H182: 0 | I182: 24369 | J182: 881 | K182: 5208 | L182: 2024-01-01 | M182: 2024-12-31 | N182: 366 | O182: 881 | P182: 24369 | Q182: 25250 | R182: 182 | S182: 5026 | T182: 5208 | U182: 30458
A183: 1754301N | B183: 1754301 | C183: Fulton Center for Rehabilitation and Healthcare | D183: 01/01/2024 | E183: 43939 | F183: 56 | G183: 61523 | H183: 28 | I183: 42216 | J183: 1639 | K183: 8823 | L183: 2024-01-01 | M183: 2024-12-31 | N183: 366 | O183: 1667 | P183: 42272 | Q183: 43939 | R183: 335 | S183: 8488 | T183: 8823 | U183: 52762
A184: 2950317N | B184: 2950317 | C184: Fulton Commons Care Center Inc | D184: 01/01/2024 | E184: 61196 | F184: 0 | G184: 98479 | H184: 0 | I184: 60103 | J184: 1093 | K184: 1873 | L184: 2024-01-01 | M184: 2024-12-31 | N184: 366 | O184: 1093 | P184: 60103 | Q184: 61196 | R184: 33 | S184: 1840 | T184: 1873 | U184: 63069
A185: 2950316N | B185: 2950316 | C185: Garden Care Center | D185: 01/01/2024 | E185: 32454 | F185: 244 | G185: 48733 | H185: 177 | I185: 30501 | J185: 1532 | K185: 4076 | L185: 2024-01-01 | M185: 2024-12-31 | N185: 366 | O185: 1709 | P185: 30745 | Q185: 32454 | R185: 215 | S185: 3861 | T185: 4076 | U185: 36530
A186: 1455300N | B186: 1455300 | C186: Garden Gate Health Care Facility | D186: 01/01/2024 | E186: 35642 | F186: 139 | G186: 62441 | H186: 0 | I186: 35503 | J186: 0 | K186: 5110 | L186: 2024-01-01 | M186: 2024-12-31 | N186: 366 | O186: 0 | P186: 35642 | Q186: 35642 | R186: 0 | S186: 5110 | T186: 5110 | U186: 40752
A187: 1059302N | B187: 1059302 | C187: Ghent Rehabilitation & Nursing Center | D187: 01/01/2024 | E187: 27807 | F187: 652 | G187: 41157 | H187: 425 | I187: 26698 | J187: 32 | K187: 2838 | L187: 2024-01-01 | M187: 2024-12-31 | N187: 366 | O187: 457 | P187: 27350 | Q187: 27807 | R187: 47 | S187: 2791 | T187: 2838 | U187: 30645
A188: 3523303N | B188: 3523303 | C188: Glen Arden Inc | D188: 01/01/2024 | E188: 1086 | F188: 0 | G188: 12564 | H188: 0 | I188: 1086 | J188: 0 | K188: 0 | L188: 2024-01-01 | M188: 2024-12-31 | N188: 366 | O188: 0 | P188: 1086 | Q188: 1086 | R188: 0 | S188: 0 | T188: 0 | U188: 1086
A189: 2901305N | B189: 2901305 | C189: Glen Cove Center for Nursing and Rehabilitation | D189: 01/01/2024 | E189: 20606 | F189: 0 | G189: 50611 | H189: 122 | I189: 20484 | J189: 0 | K189: 74 | L189: 2024-01-01 | M189: 2024-12-31 | N189: 366 | O189: 122 | P189: 20484 | Q189: 20606 | R189: 0 | S189: 74 | T189: 74 | U189: 20680
A190: 5904318N | B190: 5904318 | C190: Glen Island Center for Nursing and Rehabilitation | D190: 01/01/2024 | E190: 37688 | F190: 644 | G190: 64894 | H190: 732 | I190: 29050 | J190: 7262 | K190: 7314 | L190: 2024-01-01 | M190: 2024-12-31 | N190: 366 | O190: 7994 | P190: 29694 | Q190: 37688 | R190: 1551 | S190: 5763 | T190: 7314 | U190: 45002
A191: 4651300N | B191: 4651300 | C191: Glendale Home-Schdy Cnty Dept Social Services | D191: 01/01/2024 | E191: 42223 | F191: 0 | G191: 69507 | H191: 0 | I191: 42223 | J191: 0 | K191: 0 | L191: 2024-01-01 | M191: 2024-12-31 | N191: 366 | O191: 0 | P191: 42223 | Q191: 42223 | R191: 0 | S191: 0 | T191: 0 | U191: 42223
A192: 2901306N | B192: 2901306 | C192: Glengariff Rehabilitation and Health Care Center | D192: 01/01/2024 | E192: 46626 | F192: 0 | G192: 89664 | H192: 366 | I192: 44257 | J192: 2003 | K192: 6179 | L192: 2024-01-01 | M192: 2024-12-31 | N192: 366 | O192: 2369 | P192: 44257 | Q192: 46626 | R192: 314 | S192: 5865 | T192: 6179 | U192: 52805
A193: 5601308N | B193: 5601308 | C193: Glens Falls Center for Rehabilitation and Nursing | D193: 01/01/2024 | E193: 26699 | F193: 139 | G193: 40744 | H193: 761 | I193: 25799 | J193: 0 | K193: 2465 | L193: 2024-01-01 | M193: 2024-12-31 | N193: 366 | O193: 761 | P193: 25938 | Q193: 26699 | R193: 70 | S193: 2395 | T193: 2465 | U193: 29164
A194: 7000376N | B194: 7000376 | C194: Gold Crest Care Center | D194: 01/01/2024 | E194: 40825 | F194: 0 | G194: 61352 | H194: 0 | I194: 35254 | J194: 5571 | K194: 12630 | L194: 2024-01-01 | M194: 2024-12-31 | N194: 366 | O194: 5571 | P194: 35254 | Q194: 40825 | R194: 1723 | S194: 10907 | T194: 12630 | U194: 53455
A195: 7004322N | B195: 7004322 | C195: Golden Gate Rehabilitation and Health Care Center | D195: 01/01/2024 | E195: 52510 | F195: 8 | G195: 82766 | H195: 367 | I195: 48051 | J195: 4084 | K195: 14834 | L195: 2024-01-01 | M195: 2024-12-31 | N195: 366 | O195: 4451 | P195: 48059 | Q195: 52510 | R195: 1257 | S195: 13577 | T195: 14834 | U195: 67344
A196: 5501311N | B196: 5501311 | C196: Golden Hill Nursing and Rehabilitation Center | D196: 01/01/2024 | E196: 60696 | F196: 0 | G196: 91756 | H196: 0 | I196: 59510 | J196: 1186 | K196: 4175 | L196: 2024-01-01 | M196: 2024-12-31 | N196: 366 | O196: 1186 | P196: 59510 | Q196: 60696 | R196: 82 | S196: 4093 | T196: 4175 | U196: 64871
A197: 5154310N | B197: 5154310 | C197: Good Samaritan Nursing and Rehabilitaiton Care Center | D197: 01/01/2024 | E197: 20554 | F197: 0 | G197: 27984 | H197: 0 | I197: 20188 | J197: 366 | K197: 0 | L197: 2024-01-01 | M197: 2024-12-31 | N197: 366 | O197: 366 | P197: 20188 | Q197: 20554 | R197: 0 | S197: 0 | T197: 0 | U197: 20554
A198: 0363301N | B198: 0363301 | C198: Good Shepherd Village at Endwell | D198: 01/01/2024 | E198: 2458 | F198: 2458 | G198: 11426 | H198: 0 | I198: 0 | J198: 0 | K198: 0 | L198: 2024-01-01 | M198: 2024-12-31 | N198: 366 | O198: 0 | P198: 2458 | Q198: 2458 | R198: 0 | S198: 0 | T198: 0 | U198: 2458
A199: 0301305N | B199: 0301305 | C199: Good Shepherd-Fairview Home Inc | D199: 01/01/2024 | E199: 7448 | F199: 0 | G199: 18440 | H199: 0 | I199: 7448 | J199: 0 | K199: 0 | L199: 2024-01-01 | M199: 2024-12-31 | N199: 366 | O199: 0 | P199: 7448 | Q199: 7448 | R199: =IFERROR(ROUND((O199/E199)*K199,0),0) -> 0 | S199: =IFERROR(ROUND((P199/E199)*K199,0),0) -> 0 | T199: 0 | U199: 7448
A200: =B200&"N" -> 0427303N | B200: 0427303 | C200: Gowanda Rehabilitation and Nursing Center | D200: 01/01/2024 | E200: 38975 | F200: 377 | G200: 52507 | H200: 390 | I200: 35725 | J200: 2483 | K200: 4673 | L200: 2024-01-01 | M200: 2024-12-31 | N200: =(M200-L200)+1 -> 366 | O200: 2873 | P200: 36102 | Q200: =O200+P200 -> 38975 | R200: 344 | S200: 4329 | T200: =R200+S200 -> 4673 | U200: =Q200+T200 -> 43648
... 408 more rows

Sheet 2024 Cost report days-SPEC (hidden)
R1: =SUM(R6:R94) -> 713194
F2: A | G2: B | H2: C | I2: D | J2: E | K2: F | L2: G | M2: H | N2: I | O2: J | P2: K | Q2: L | R2: M | S2: N | T2: O
C3: Opsert | D3: Name | E3: Date | F3: 410/9 N | G3: 410/10 N | H3: 410/17 N | I3: 410/22 N | J3: 410/23 N | K3: 410/24 N | L3: 410/32 N | M3: 437/1 N | N3: 437/2 N | P3: (D+F) | Q3: (J+G) | R3: (P+Q) | S3: (P / F) * L | T3: (Q / F) * L
P4: FFS | S4: MC
F5: Total Medicaid FFS | G5: Part B | H5: Total ALL Days | I5: Part D | J5: Part B&D | K5: Ineligible | L5: MC | M5: CR Begin Date | N5: CR End Date | O5: Days in CR | P5: Ineligible + Part D | Q5: Part B + Part B&D | R5: Total FFS | S5: Ineligible + Part D | T5: Part B + Part B&D | U5: Total Days
A6: =LEFT(C6,7) -> 2950302 | B6: =RIGHT(C6,1) -> A | C6: 2950302A | D6: A Holly Patterson Extended Care Facility | E6: 01/01/2024 | F6: 4185 | G6: 0 | H6: 4852 | I6: 0 | J6: 3124 | K6: 1061 | L6: 652 | M6: 2024-01-01 | N6: 2024-12-31 | O6: 366 | P6: =K6+I6 -> 1061 | Q6: =J6+G6 -> 3124 | R6: =Q6+P6 -> 4185 | S6: =IFERROR(ROUND((P6/F6)*L6,0),0) -> 165 | T6: =IFERROR(ROUND((Q6/F6)*L6,0),0) -> 487 | U6: =R6+S6+T6 -> 4837
A7: =LEFT(C7,7) -> 2950302 | B7: =RIGHT(C7,1) -> V | C7: 2950302V | D7: A Holly Patterson Extended Care Facility | E7: 01/01/2024 | F7: 1258 | G7: 0 | H7: 2215 | I7: 0 | J7: 507 | K7: 751 | L7: 645 | M7: 2024-01-01 | N7: 2024-12-31 | O7: 366 | P7: =K7+I7 -> 751 | Q7: =J7+G7 -> 507 | R7: =Q7+P7 -> 1258 | S7: =IFERROR(ROUND((P7/F7)*L7,0),0) -> 385 | T7: =IFERROR(ROUND((Q7/F7)*L7,0),0) -> 260 | U7: =R7+S7+T7 -> 1903
A8: 5907318 | B8: V | C8: 5907318V | D8: Adira at Riverside Rehabilitation and Nursing | E8: 01/01/2024 | F8: 1832 | G8: 59 | H8: 3378 | I8: 295 | J8: 1270 | K8: 208 | L8: 671 | M8: 2024-01-01 | N8: 2024-12-31 | O8: 366 | P8: 503 | Q8: 1329 | R8: 1832 | S8: 184 | T8: 487 | U8: 2503
A9: 5154323 | B9: V | C9: 5154323V | D9: Affinity Skilled Living and Rehabilitation Center | E9: 01/01/2024 | F9: 2515 | G9: 0 | H9: 2914 | I9: 0 | J9: 2051 | K9: 464 | L9: 399 | M9: 2024-01-01 | N9: 2024-12-31 | O9: 366 | P9: 464 | Q9: 2051 | R9: 2515 | S9: 74 | T9: 325 | U9: 2914
A10: 3301330 | B10: V | C10: 3301330V | D10: Bishop Rehabilitation and Nursing Center | E10: 01/01/2024 | F10: 0 | G10: 0 | H10: 0 | I10: 0 | J10: 0 | K10: 0 | L10: 0 | M10: 2024-01-01 | N10: 2024-12-31 | O10: 366 | P10: 0 | Q10: 0 | R10: 0 | S10: 0 | T10: 0 | U10: 0
A11: 0301308 | B11: V | C11: 0301308V | D11: Bridgewater Center for Rehabilitation & Nursing LLC | E11: 01/01/2024 | F11: 2054 | G11: 18 | H11: 3317 | I11: 0 | J11: 1314 | K11: 722 | L11: 943 | M11: 2024-01-01 | N11: 2024-12-31 | O11: 366 | P11: 722 | Q11: 1332 | R11: 2054 | S11: 331 | T11: 612 | U11: 2997
A12: 7000397 | B12: A | C12: 7000397A | D12: Bronx Gardens Rehabilitation and Nursing Center | E12: 01/01/2024 | F12: 4153 | G12: 0 | H12: 9793 | I12: 0 | J12: 1934 | K12: 2219 | L12: 4403 | M12: 2024-01-01 | N12: 2024-12-31 | O12: 366 | P12: 2219 | Q12: 1934 | R12: 4153 | S12: 2353 | T12: 2050 | U12: 8556
A13: 7000397 | B13: V | C13: 7000397V | D13: Bronx Gardens Rehabilitation and Nursing Center | E13: 01/01/2024 | F13: 2636 | G13: 0 | H13: 5792 | I13: 0 | J13: 2163 | K13: 473 | L13: 1762 | M13: 2024-01-01 | N13: 2024-12-31 | O13: 366 | P13: 473 | Q13: 2163 | R13: 2636 | S13: 316 | T13: 1446 | U13: 4398
A14: 7000364 | B14: A | C14: 7000364A | D14: BronxCare Special Care Center | E14: 01/01/2024 | F14: 18089 | G14: 417 | H14: 39180 | I14: 7 | J14: 9644 | K14: 8021 | L14: 18901 | M14: 2024-01-01 | N14: 2024-12-31 | O14: 366 | P14: 8028 | Q14: 10061 | R14: 18089 | S14: 8388 | T14: 10513 | U14: 36990
A15: 5157318 | B15: S | C15: 5157318S | D15: Brookside Multicare Nursing Center | E15: 01/01/2024 | F15: 11447 | G15: 0 | H15: 11968 | I15: 0 | J15: 0 | K15: 11447 | L15: 0 | M15: 2024-01-01 | N15: 2024-12-31 | O15: 366 | P15: =K15+I15 -> 11447 | Q15: 0 | R15: 11447 | S15: 0 | T15: 0 | U15: 11447
A16: 7000373 | B16: A | C16: 7000373A | D16: Casa Promesa | E16: 01/01/2023 | F16: 13097 | G16: 0 | H16: 24787 | I16: 0 | J16: 8773 | K16: 4324 | L16: 9063 | M16: 2023-01-01 | N16: 2023-12-31 | O16: 365 | P16: =K16+I16 -> 4324 | Q16: 8773 | R16: 13097 | S16: 2992 | T16: 6071 | U16: 22160
A17: 3227304 | B17: D | C17: 3227304D | D17: Charles T Sitrin Health Care Center Inc | E17: 01/01/2024 | F17: 6957 | G17: 366 | H17: 10652 | I17: 0 | J17: 5608 | K17: 983 | L17: 1727 | M17: 2024-01-01 | N17: 2024-12-31 | O17: 366 | P17: 983 | Q17: 5974 | R17: 6957 | S17: 244 | T17: 1483 | U17: 8684
A18: 7003380 | B18: V | C18: 7003380V | D18: Cliffside Rehabilitation and Residential Health Care Center | E18: 01/01/2024 | F18: 5237 | G18: 0 | H18: 10713 | I18: 0 | J18: 3785 | K18: 1452 | L18: 3341 | M18: 2024-01-01 | N18: 2024-12-31 | O18: 366 | P18: 1452 | Q18: 3785 | R18: 5237 | S18: 926 | T18: 2415 | U18: 8578
A19: 3421000 | B19: V | C19: 3421000V | D19: Clifton Springs Hospital And Clinic Extended Care | E19: 01/01/2024 | F19: 3719 | G19: 0 | H19: 4663 | I19: 0 | J19: 3116 | K19: 603 | L19: 255 | M19: 2024-01-01 | N19: 2024-12-31 | O19: 366 | P19: 603 | Q19: 3116 | R19: 3719 | S19: 41 | T19: 214 | U19: 3974
A20: 2952310 | B20: V | C20: 2952310V | D20: Cold Spring Hills Center for Nursing and Rehabilitation | E20: 01/01/2024 | F20: 3329 | G20: 332 | H20: 3393 | I20: 0 | J20: 1624 | K20: 1373 | L20: 30 | M20: 2024-01-01 | N20: 2024-12-31 | O20: 366 | P20: 1373 | Q20: 1956 | R20: 3329 | S20: 12 | T20: 18 | U20: 3359
A21: 7001348 | B21: V | C21: 7001348V | D21: Concord Nursing and Rehabilitation Center | E21: 01/01/2024 | F21: 3336 | G21: 689 | H21: 4934 | I21: 0 | J21: 2213 | K21: 434 | L21: 773 | M21: 2024-01-01 | N21: 2024-12-31 | O21: 366 | P21: 434 | Q21: 2902 | R21: 3336 | S21: 101 | T21: 672 | U21: 4109
A22: 7000375 | B22: V | C22: 7000375V | D22: Concourse Rehabilitation and Nursing Center | E22: 01/01/2024 | F22: 4754 | G22: 0 | H22: 6992 | I22: 12 | J22: 3286 | K22: 1456 | L22: 2027 | M22: 2024-01-01 | N22: 2024-12-31 | O22: 366 | P22: 1468 | Q22: 3286 | R22: 4754 | S22: 626 | T22: 1401 | U22: 6781
A23: 7001393 | B23: V | C23: 7001393V | D23: Ditmas Park Care Center | E23: 01/01/2024 | F23: 6992 | G23: 0 | H23: 7183 | I23: 0 | J23: 6932 | K23: 60 | L23: 0 | M23: 2024-01-01 | N23: 2024-12-31 | O23: 366 | P23: 60 | Q23: 6932 | R23: 6992 | S23: 0 | T23: 0 | U23: 6992
A24: 7001393 | B24: S | C24: 7001393S | D24: Ditmas Park Care Center | E24: 01/01/2024 | F24: 5176 | G24: 0 | H24: 7106 | I24: 0 | J24: 0 | K24: 5176 | L24: 1647 | M24: 2024-01-01 | N24: 2024-12-31 | O24: 366 | P24: =K24+I24 -> 5176 | Q24: 0 | R24: 5176 | S24: 1647 | T24: 0 | U24: 6823
A25: 5904321 | B25: V | C25: 5904321V | D25: Dumont Center for Rehabilitation and Nursing Care | E25: 01/01/2024 | F25: 4364 | G25: 45 | H25: 5053 | I25: 0 | J25: 4041 | K25: 278 | L25: 325 | M25: 2024-01-01 | N25: 2024-12-31 | O25: 366 | P25: 278 | Q25: 4086 | R25: 4364 | S25: 21 | T25: 304 | U25: 4689
A26: 7000383 | B26: V | C26: 7000383V | D26: Eastchester Rehabilitation and Health Care Center | E26: 01/01/2024 | F26: 5734 | G26: 0 | H26: 5816 | I26: 95 | J26: 3942 | K26: 1697 | L26: 0 | M26: 2024-01-01 | N26: 2024-12-31 | O26: 366 | P26: 1792 | Q26: 3942 | R26: 5734 | S26: 0 | T26: 0 | U26: 5734
A27: 5034300 | B27: V | C27: 5034300V | D27: Elderwood at Hornell | E27: 01/01/2024 | F27: 0 | G27: 0 | H27: 0 | I27: 0 | J27: 0 | K27: 0 | L27: 0 | M27: 2024-01-01 | N27: 2024-12-31 | O27: 366 | P27: 0 | Q27: 0 | R27: 0 | S27: 0 | T27: 0 | U27: 0
A28: 1421307 | B28: V | C28: 1421307V | D28: Elderwood at Williamsville | E28: 01/01/2024 | F28: 2653 | G28: 0 | H28: 5128 | I28: 0 | J28: 2653 | K28: 0 | L28: 786 | M28: 2024-01-01 | N28: 2024-12-31 | O28: 366 | P28: 0 | Q28: 2653 | R28: 2653 | S28: 0 | T28: 786 | U28: 3439
A29: 7002346 | B29: S | C29: 7002346S | D29: Elizabeth Seton Childrens Center | E29: 01/01/2024 | F29: 58378 | G29: 0 | H29: 61530 | I29: 0 | J29: 1092 | K29: 57286 | L29: 202 | M29: 2024-01-01 | N29: 2024-12-31 | O29: 366 | P29: 57286 | Q29: 1092 | R29: 58378 | S29: 198 | T29: 4 | U29: 58580
A30: 1327300 | B30: D | C30: 1327300D | D30: Ferncliff Nursing Home Co Inc | E30: 01/01/2024 | F30: 13901 | G30: 1098 | H30: 19210 | I30: 0 | J30: 10406 | K30: 2397 | L30: 4158 | M30: 2024-01-01 | N30: 2024-12-31 | O30: 366 | P30: 2397 | Q30: 11504 | R30: 13901 | S30: 717 | T30: 3441 | U30: 18059
A31: 7000385 | B31: V | C31: 7000385V | D31: Fieldston Lodge Care Center | E31: 01/01/2024 | F31: 1156 | G31: 0 | H31: 1156 | I31: 0 | J31: 901 | K31: 255 | L31: 0 | M31: 2024-01-01 | N31: 2024-12-31 | O31: 366 | P31: 255 | Q31: 901 | R31: 1156 | S31: 0 | T31: 0 | U31: 1156
A32: 7001808 | B32: V | C32: 7001808V | D32: Four Seasons Nursing and Rehabilitation Center | E32: 01/01/2024 | F32: 4790 | G32: 0 | H32: 6296 | I32: 0 | J32: 3919 | K32: 871 | L32: 292 | M32: 2024-01-01 | N32: 2024-12-31 | O32: 366 | P32: 871 | Q32: 3919 | R32: 4790 | S32: 53 | T32: 239 | U32: 5082
A33: 7003402 | B33: V | C33: 7003402V | D33: Franklin Center for Rehabilitation and Nursing | E33: 01/01/2024 | F33: 3451 | G33: 0 | H33: 4146 | I33: 0 | J33: 2742 | K33: 709 | L33: 302 | M33: 2024-01-01 | N33: 2024-12-31 | O33: 366 | P33: 709 | Q33: 2742 | R33: 3451 | S33: 62 | T33: 240 | U33: 3753
A34: 4350305 | B34: V | C34: 4350305V | D34: Friedwald Center for Rehabilitation & Nursing LLC | E34: 01/01/2024 | F34: 2844 | G34: 0 | H34: 5599 | I34: 0 | J34: 2745 | K34: 99 | L34: 333 | M34: 2024-01-01 | N34: 2024-12-31 | O34: 366 | P34: 99 | Q34: 2745 | R34: 2844 | S34: 12 | T34: 321 | U34: 3177
A35: 5153307 | B35: V | C35: 5153307V | D35: Gurwin Jewish Nursing and Rehabilitation Center | E35: 01/01/2024 | F35: 5567 | G35: 0 | H35: 8629 | I35: 0 | J35: 5394 | K35: 173 | L35: 690 | M35: 2024-01-01 | N35: 2024-12-31 | O35: 366 | P35: 173 | Q35: 5394 | R35: 5567 | S35: 21 | T35: 669 | U35: 6257
A36: 7002337 | B36: V | C36: 7002337V | D36: Henry J Carter Skilled Nursing Facility | E36: 01/01/2024 | F36: 4403 | G36: 2200 | H36: 7065 | I36: 0 | J36: 88 | K36: 2115 | L36: 2293 | M36: 2023-07-01 | N36: 2024-06-30 | O36: 366 | P36: 2115 | Q36: 2288 | R36: 4403 | S36: 1101 | T36: 1192 | U36: 6696
A37: 7000801 | B37: A | C37: 7000801A | D37: Highbridge-Woodycrest Center Inc | E37: 01/01/2024 | F37: 17885 | G37: 0 | H37: 32326 | I37: 6976 | J37: 10909 | K37: 0 | L37: 14 | M37: 2024-01-01 | N37: 2024-12-31 | O37: 366 | P37: 6976 | Q37: 10909 | R37: 17885 | S37: 5 | T37: 9 | U37: 17899
A38: 1401001 | B38: V | C38: 1401001V | D38: Highpointe on Michigan Health Care Facility | E38: 01/01/2024 | F38: 5713 | G38: 384 | H38: 7687 | I38: 0 | J38: 2993 | K38: 2336 | L38: 1543 | M38: 2024-01-01 | N38: 2024-12-31 | O38: 366 | P38: 2336 | Q38: 3377 | R38: 5713 | S38: 631 | T38: 912 | U38: 7256
A39: 1401001 | B39: S | C39: 1401001S | D39: Highpointe on Michigan Health Care Facility | E39: 01/01/2024 | F39: 6832 | G39: 0 | H39: 6875 | I39: 0 | J39: 6832 | K39: 0 | L39: 43 | M39: 2024-01-01 | N39: 2024-12-31 | O39: 366 | P39: 0 | Q39: 6832 | R39: 6832 | S39: 0 | T39: 43 | U39: 6875
A40: 7000392 | B40: A | C40: 7000392A | D40: Hope Center for HIV and Nursing Care | E40: 01/01/2024 | F40: 9568 | G40: 0 | H40: 23219 | I40: 0 | J40: 5295 | K40: 4273 | L40: 12518 | M40: 2024-01-01 | N40: 2024-12-31 | O40: 366 | P40: 4273 | Q40: 5295 | R40: 9568 | S40: 5590 | T40: 6928 | U40: 22086
A41: 7002352 | B41: V | C41: 7002352V | D41: Isabella Geriatric Center Inc | E41: 01/01/2024 | F41: 6492 | G41: 0 | H41: 10125 | I41: 0 | J41: 6297 | K41: 195 | L41: 2145 | M41: 2024-01-01 | N41: 2024-12-31 | O41: 366 | P41: 195 | Q41: 6297 | R41: 6492 | S41: 64 | T41: 2081 | U41: 8637
A42: 2750304 | B42: B | C42: 2750304B | D42: Jewish Home of Rochester | E42: 01/01/2024 | F42: 3135 | G42: 0 | H42: 6131 | I42: 0 | J42: 3135 | K42: 0 | L42: 0 | M42: 2024-01-01 | N42: 2024-12-31 | O42: 366 | P42: 0 | Q42: 3135 | R42: 3135 | S42: 0 | T42: 0 | U42: 3135
A43: 7003377 | B43: V | C43: 7003377V | D43: Long Island Care Center Inc | E43: 01/01/2024 | F43: 3151 | G43: 182 | H43: 3151 | I43: 0 | J43: 2429 | K43: 540 | L43: 0 | M43: 2024-01-01 | N43: 2024-12-31 | O43: 366 | P43: 540 | Q43: 2611 | R43: 3151 | S43: 0 | T43: 0 | U43: 3151
A44: 2904301 | B44: V | C44: 2904301V | D44: Meadowbrook Care Center Inc | E44: 01/01/2024 | F44: 2537 | G44: 0 | H44: 3568 | I44: 0 | J44: 2285 | K44: 252 | L44: 0 | M44: 2024-01-01 | N44: 2024-12-31 | O44: 366 | P44: 252 | Q44: 2285 | R44: 2537 | S44: 0 | T44: 0 | U44: 2537
A45: 5151319 | B45: V | C45: 5151319V | D45: Medford Multicare Center for Living | E45: 01/01/2024 | F45: 5769 | G45: 0 | H45: 7097 | I45: 320 | J45: 4750 | K45: 699 | L45: 920 | M45: 2024-01-01 | N45: 2024-12-31 | O45: 366 | P45: 1019 | Q45: 4750 | R45: 5769 | S45: 163 | T45: 757 | U45: 6689
A46: 2701006 | B46: V | C46: 2701006V | D46: Monroe Community Hospital | E46: 01/01/2024 | F46: 3267 | G46: 0 | H46: 4760 | I46: 0 | J46: 1733 | K46: 1534 | L46: 579 | M46: 2024-01-01 | N46: 2024-12-31 | O46: 366 | P46: 1534 | Q46: 1733 | R46: 3267 | S46: 272 | T46: 307 | U46: 3846
A47: 2701006 | B47: S | C47: 2701006S | D47: Monroe Community Hospital | E47: 01/01/2024 | F47: 1448 | G47: 86 | H47: 1676 | I47: 0 | J47: 1362 | K47: 0 | L47: 228 | M47: 2024-01-01 | N47: 2024-12-31 | O47: 366 | P47: 0 | Q47: 1448 | R47: 1448 | S47: 0 | T47: 228 | U47: 1676
A48: 7004316 | B48: V | C48: 7004316V | D48: New Vanderbilt Rehabilitation and Care Center Inc | E48: 01/01/2024 | F48: 4090 | G48: 4 | H48: 4090 | I48: 0 | J48: 2584 | K48: 1502 | L48: 0 | M48: 2024-01-01 | N48: 2024-12-31 | O48: 366 | P48: 1502 | Q48: 2588 | R48: 4090 | S48: 0 | T48: 0 | U48: 4090
A49: 5567302 | B49: B | C49: 5567302B | D49: Northeast Center for Rehabilitation and Brain Injury | E49: 01/01/2024 | F49: 6201 | G49: 100 | H49: 6860 | I49: 275 | J49: 4080 | K49: 1746 | L49: 600 | M49: 2024-01-01 | N49: 2024-12-31 | O49: 366 | P49: 2021 | Q49: 4180 | R49: 6201 | S49: 196 | T49: 404 | U49: 6801
A50: 5567302 | B50: T | C50: 5567302T | D50: Northeast Center for Rehabilitation and Brain Injury | E50: 01/01/2024 | F50: 40675 | G50: 411 | H50: 52944 | I50: 486 | J50: 23868 | K50: 15910 | L50: 11053 | M50: 2024-01-01 | N50: 2024-12-31 | O50: 366 | P50: 16396 | Q50: 24279 | R50: 40675 | S50: 4455 | T50: 6598 | U50: 51728
A51: 5567302 | B51: V | C51: 5567302V | D51: Northeast Center for Rehabilitation and Brain Injury | E51: 01/01/2024 | F51: 3959 | G51: 31 | H51: 6862 | I51: 87 | J51: 2063 | K51: 1778 | L51: 1352 | M51: 2024-01-01 | N51: 2024-12-31 | O51: 366 | P51: 1865 | Q51: 2094 | R51: 3959 | S51: 637 | T51: 715 | U51: 5311
A52: 4350304 | B52: V | C52: 4350304V | D52: Northern Manor Geriatric Center Inc | E52: 01/01/2024 | F52: 3953 | G52: 366 | H52: 6629 | I52: 0 | J52: 2419 | K52: 1168 | L52: 1950 | M52: 2024-01-01 | N52: 2024-12-31 | O52: 366 | P52: 1168 | Q52: 2785 | R52: 3953 | S52: 576 | T52: 1374 | U52: 5903
A53: 2601001 | B53: V | C53: 2601001V | D53: Oneida Health Rehabilitation and Extended Care | E53: 01/01/2024 | F53: 1568 | G53: 0 | H53: 3636 | I53: 356 | J53: 1212 | K53: 0 | L53: 1197 | M53: 2024-01-01 | N53: 2024-12-31 | O53: 366 | P53: 356 | Q53: 1212 | R53: 1568 | S53: 272 | T53: 925 | U53: 2765
A54: 7001391 | B54: V | C54: 7001391V | D54: Palm Gardens Care Center LLC | E54: 01/01/2024 | F54: 11059 | G54: 0 | H54: 17667 | I54: 0 | J54: 8697 | K54: 2362 | L54: 150 | M54: 2024-01-01 | N54: 2024-12-31 | O54: 366 | P54: 2362 | Q54: 8697 | R54: 11059 | S54: 32 | T54: 118 | U54: 11209
A55: 7003374 | B55: T | C55: 7003374T | D55: Park Terrace Care Center | E55: 01/01/2024 | F55: 6491 | G55: 0 | H55: 14097 | I55: 17 | J55: 484 | K55: 5990 | L55: 0 | M55: 2024-01-01 | N55: 2024-12-31 | O55: 366 | P55: 6007 | Q55: 484 | R55: 6491 | S55: 0 | T55: 0 | U55: 6491
A56: 4652302 | B56: T | C56: 4652302T | D56: Pathways Nursing and Rehabilitation Center | E56: 01/01/2024 | F56: 9667 | G56: 0 | H56: 10622 | I56: 9667 | J56: 0 | K56: 0 | L56: 0 | M56: 2024-01-01 | N56: 2024-12-31 | O56: 366 | P56: 9667 | Q56: 0 | R56: 9667 | S56: 0 | T56: 0 | U56: 9667
A57: 4652302 | B57: V | C57: 4652302V | D57: Pathways Nursing and Rehabilitation Center | E57: 01/01/2024 | F57: 8677 | G57: 0 | H57: 8778 | I57: 8677 | J57: 0 | K57: 0 | L57: 0 | M57: 2024-01-01 | N57: 2024-12-31 | O57: 366 | P57: 8677 | Q57: 0 | R57: 8677 | S57: 0 | T57: 0 | U57: 8677
A58: 4652302 | B58: S | C58: 4652302S | D58: Pathways Nursing and Rehabilitation Center | E58: 01/01/2024 | F58: 14904 | G58: 0 | H58: 15826 | I58: 14904 | J58: 0 | K58: 0 | L58: 0 | M58: 2024-01-01 | N58: 2024-12-31 | O58: 366 | P58: 14904 | Q58: 0 | R58: 14904 | S58: 0 | T58: 0 | U58: 14904
A59: 7003386 | B59: V | C59: 7003386V | D59: Promenade Rehabilitation and Health Care Center | E59: 01/01/2024 | F59: 4294 | G59: 0 | H59: 8332 | I59: 366 | J59: 2279 | K59: 1649 | L59: 3112 | M59: 2024-01-01 | N59: 2024-12-31 | O59: 366 | P59: 2015 | Q59: 2279 | R59: 4294 | S59: 1460 | T59: 1652 | U59: 7406
A60: 7003361 | B60: T | C60: 7003361T | D60: Queens Nassau Rehabilitation and Nursing Center | E60: 01/01/2024 | F60: 3690 | G60: 165 | H60: 6911 | I60: 0 | J60: 649 | K60: 2876 | L60: 1959 | M60: 2024-01-01 | N60: 2024-12-31 | O60: 366 | P60: 2876 | Q60: 814 | R60: 3690 | S60: 1527 | T60: 432 | U60: 5649
A61: 7003330 | B61: V | C61: 7003330V | D61: Resort Nursing Home | E61: 01/01/2024 | F61: 2426 | G61: 0 | H61: 2465 | I61: 0 | J61: 1579 | K61: 847 | L61: 32 | M61: 2024-01-01 | N61: 2024-12-31 | O61: 366 | P61: 847 | Q61: 1579 | R61: 2426 | S61: 11 | T61: 21 | U61: 2458
A62: 7004324 | B62: T | C62: 7004324T | D62: Richmond Center for Rehabilitation and Specialty Healthcare | E62: 01/01/2024 | F62: 0 | G62: 0 | H62: 0 | I62: 0 | J62: 0 | K62: 0 | L62: 0 | M62: 2024-01-01 | N62: 2024-12-31 | O62: 366 | P62: 0 | Q62: 0 | R62: 0 | S62: 0 | T62: 0 | U62: 0
A63: 7004324 | B63: A | C63: 7004324A | D63: Richmond Center for Rehabilitation and Specialty Healthcare | E63: 01/01/2024 | F63: 15565 | G63: 180 | H63: 26727 | I63: 366 | J63: 10824 | K63: 4195 | L63: 7408 | M63: 2024-01-01 | N63: 2024-12-31 | O63: 366 | P63: 4561 | Q63: 11004 | R63: 15565 | S63: 2171 | T63: 5237 | U63: 22973
A64: 7004324 | B64: B | C64: 7004324B | D64: Richmond Center for Rehabilitation and Specialty Healthcare | E64: 01/01/2024 | F64: 37524 | G64: 92 | H64: 52381 | I64: 1447 | J64: 18769 | K64: 17216 | L64: 14845 | M64: 2024-01-01 | N64: 2024-12-31 | O64: 366 | P64: 18663 | Q64: 18861 | R64: 37524 | S64: 7383 | T64: 7462 | U64: 52369
A65: 7004324 | B65: V | C65: 7004324V | D65: Richmond Center for Rehabilitation and Specialty Healthcare | E65: 01/01/2024 | F65: 4298 | G65: 0 | H65: 7816 | I65: 20 | J65: 2317 | K65: 1961 | L65: 1343 | M65: 2024-01-01 | N65: 2024-12-31 | O65: 366 | P65: 1981 | Q65: 2317 | R65: 4298 | S65: 619 | T65: 724 | U65: 5641
A66: 7003362 | B66: V | C66: 7003362V | D66: Rockaway Care Center | E66: 01/01/2024 | F66: 1985 | G66: 0 | H66: 4413 | I66: 0 | J66: 1208 | K66: 777 | L66: 1934 | M66: 2024-01-01 | N66: 2024-12-31 | O66: 366 | P66: =K66+I66 -> 777 | Q66: 1208 | R66: =Q66+P66 -> 1985 | S66: 757 | T66: 1177 | U66: 3919
A67: 7001033 | B67: S | C67: 7001033S | D67: Rutland Nursing Home Co Inc | E67: 01/01/2024 | F67: 10247 | G67: 0 | H67: 11200 | I67: 0 | J67: 0 | K67: 10247 | L67: 953 | M67: 2024-01-01 | N67: 2024-12-31 | O67: 366 | P67: =K67+I67 -> 10247 | Q67: =J67+G67 -> 0 | R67: 10247 | S67: 953 | T67: 0 | U67: 11200
A68: 7001033 | B68: V | C68: 7001033V | D68: Rutland Nursing Home Co Inc | E68: 01/01/2024 | F68: 5464 | G68: 0 | H68: 7507 | I68: 169 | J68: 2384 | K68: 2911 | L68: 1640 | M68: 2024-01-01 | N68: 2024-12-31 | O68: 366 | P68: 3080 | Q68: 2384 | R68: 5464 | S68: 924 | T68: 716 | U68: 7104
A69: 7001318 | B69: A | C69: 7001318A | D69: Schulman and Schachne Institute for Nursing and Rehabilitat | E69: 01/01/2024 | F69: 20394 | G69: 0 | H69: 27277 | I69: 0 | J69: 13453 | K69: 6941 | L69: 6459 | M69: 2024-01-01 | N69: 2024-12-31 | O69: 366 | P69: 6941 | Q69: 13453 | R69: 20394 | S69: 2198 | T69: 4261 | U69: 26853
A70: 7001318 | B70: V | C70: 7001318V | D70: Schulman and Schachne Institute for Nursing and Rehabilitat | E70: 01/01/2024 | F70: 5372 | G70: 99 | H70: 8395 | I70: 0 | J70: 5230 | K70: 43 | L70: 2628 | M70: 2024-01-01 | N70: 2024-12-31 | O70: 366 | P70: =K70+I70 -> 43 | Q70: =J70+G70 -> 5329 | R70: 5372 | S70: 21 | T70: 2607 | U70: 8000
A71: =LEFT(C71,7) -> 7004304 | B71: =RIGHT(C71,1) -> T | C71: 7004304T | D71: Sea View Hospital Rehabilitation Center And Home | E71: 01/01/2024 | F71: 0 | G71: 0 | H71: 219 | I71: 0 | J71: 0 | K71: 0 | L71: 92 | M71: 2023-07-01 | N71: 2024-06-30 | O71: 366 | P71: =K71+I71 -> 0 | Q71: =J71+G71 -> 0 | R71: =Q71+P71 -> 0 | S71: =IFERROR(ROUND((P71/F71)*L71,0),0) -> 0 | T71: =IFERROR(ROUND((Q71/F71)*L71,0),0) -> 0 | U71: =R71+S71+T71 -> 0
A72: 7004323 | B72: V | C72: 7004323V | D72: Silver Lake Specialized Rehabilitation and Care Cente | E72: 01/01/2024 | F72: 5692 | G72: 0 | H72: 8906 | I72: 182 | J72: 4063 | K72: 1447 | L72: 1501 | M72: 2024-01-01 | N72: 2024-12-31 | O72: 366 | P72: 1629 | Q72: 4063 | R72: 5692 | S72: 430 | T72: 1071 | U72: 7193
A73: 7003372 | B73: V | C73: 7003372V | D73: Silvercrest | E73: 01/01/2024 | F73: 14283 | G73: 0 | H73: 24296 | I73: 355 | J73: 8063 | K73: 5865 | L73: 5572 | M73: 2024-01-01 | N73: 2024-12-31 | O73: 366 | P73: 6220 | Q73: 8063 | R73: 14283 | S73: 2427 | T73: 3145 | U73: 19855
A74: 6120000 | B74: B | C74: 6120000B | D74: Soldiers And Sailors Memorial Hospital Extended Care Unit | E74: 01/01/2024 | F74: 6388 | G74: 0 | H74: 7272 | I74: 175 | J74: 5828 | K74: 385 | L74: 145 | M74: 2024-01-01 | N74: 2024-12-31 | O74: 366 | P74: 560 | Q74: 5828 | R74: 6388 | S74: 13 | T74: 132 | U74: 6533
A75: 2904302 | B75: V | C75: 2904302V | D75: South Shore Rehabilitation and Nursing Center | E75: 01/01/2024 | F75: 2824 | G75: 0 | H75: 7906 | I75: 380 | J75: 2079 | K75: 365 | L75: 3354 | M75: 2024-01-01 | N75: 2024-12-31 | O75: 366 | P75: 745 | Q75: 2079 | R75: 2824 | S75: 885 | T75: 2469 | U75: 6178
A76: 7000384 | B76: V | C76: 7000384V | D76: Split Rock Rehabilitation and Health Care Center | E76: 01/01/2024 | F76: 4256 | G76: 0 | H76: 8387 | I76: 123 | J76: 1724 | K76: 2409 | L76: 3109 | M76: 2024-01-01 | N76: 2024-12-31 | O76: 366 | P76: 2532 | Q76: 1724 | R76: 4256 | S76: 1850 | T76: 1259 | U76: 7365
A77: 3301321 | B77: T | C77: 3301321T | D77: St Camillus Residential Health Care Facility | E77: 01/01/2024 | F77: 1571 | G77: 0 | H77: 5649 | I77: 0 | J77: 1304 | K77: 267 | L77: 560 | M77: 2024-01-01 | N77: 2024-12-31 | O77: 366 | P77: 267 | Q77: 1304 | R77: 1571 | S77: 95 | T77: 465 | U77: 2131
A78: 5157311 | B78: T | C78: 5157311T | D78: St Johnland Nursing Center Inc | E78: 01/01/2024 | F78: 1040 | G78: 0 | H78: 5859 | I78: 0 | J78: 434 | K78: 606 | L78: 849 | M78: 2024-01-01 | N78: 2024-12-31 | O78: 366 | P78: 606 | Q78: 434 | R78: 1040 | S78: 495 | T78: 354 | U78: 1889
A79: 0101307 | B79: S | C79: 0101307S | D79: St Margarets Center | E79: 01/01/2024 | F79: 18388 | G79: 0 | H79: 20733 | I79: 0 | J79: 732 | K79: 17656 | L79: 0 | M79: 2024-01-01 | N79: 2024-12-31 | O79: 366 | P79: =K79+I79 -> 17656 | Q79: 732 | R79: 18388 | S79: 0 | T79: 0 | U79: 18388
A80: 0101307 | B80: N | C80: 0101307N | D80: St Margarets Center | E80: 01/01/2024 | F80: 6276 | G80: 0 | H80: 7109 | I80: 0 | J80: 732 | K80: 5544 | L80: 0 | M80: 2024-01-01 | N80: 2024-12-31 | O80: 366 | P80: =K80+I80 -> 5544 | Q80: 732 | R80: =P80+Q80 -> 6276 | S80: 0 | T80: 0 | U80: 6276
A81: 7002349 | B81: A | C81: 7002349A | D81: St Marys Center Inc | E81: 01/01/2024 | F81: 7916 | G81: 0 | H81: 12352 | I81: 0 | J81: 4539 | K81: 3377 | L81: 4198 | M81: 2024-01-01 | N81: 2024-12-31 | O81: 366 | P81: 3377 | Q81: 4539 | R81: 7916 | S81: 1791 | T81: 2407 | U81: 12114
A82: 7003300 | B82: S | C82: 7003300S | D82: St Marys Hospital For Children Inc | E82: 01/01/2024 | F82: 35029 | G82: 0 | H82: 44728 | I82: 0 | J82: 0 | K82: 35029 | L82: 8544 | M82: 2024-01-01 | N82: 2024-12-31 | O82: 366 | P82: 35029 | Q82: 0 | R82: 35029 | S82: 8544 | T82: 0 | U82: 43573
A83: 5961303 | B83: S | C83: 5961303S | D83: Sunshine Childrens Home and Rehab Center | E83: 01/01/2024 | F83: 35781 | G83: 0 | H83: 38194 | I83: 0 | J83: 0 | K83: 35781 | L83: 1458 | M83: 2024-01-01 | N83: 2024-12-31 | O83: 366 | P83: 35781 | Q83: 0 | R83: 35781 | S83: 1458 | T83: 0 | U83: 37239
A84: 7002345 | B84: D | C84: 7002345D | D84: Terence Cardinal Cooke Health Care Ctr | E84: 01/01/2024 | F84: 13256 | G84: 366 | H84: 16572 | I84: 0 | J84: 9729 | K84: 3161 | L84: 3182 | M84: 2024-01-01 | N84: 2024-12-31 | O84: 366 | P84: 3161 | Q84: 10095 | R84: 13256 | S84: 759 | T84: 2423 | U84: 16438
A85: 7002345 | B85: A | C85: 7002345A | D85: Terence Cardinal Cooke Health Care Ctr | E85: 01/01/2024 | F85: 22832 | G85: 0 | H85: 37462 | I85: 0 | J85: 14707 | K85: 8125 | L85: 12202 | M85: 2024-01-01 | N85: 2024-12-31 | O85: 366 | P85: 8125 | Q85: 14707 | R85: 22832 | S85: 4342 | T85: 7860 | U85: 35034
A86: 1401005 | B86: B | C86: 1401005B | D86: Terrace View Long Term Care Facility | E86: 01/01/2024 | F86: 5134 | G86: 366 | H86: 5779 | I86: 358 | J86: 3991 | K86: 419 | L86: 645 | M86: 2024-01-01 | N86: 2024-12-31 | O86: 366 | P86: 777 | Q86: 4357 | R86: 5134 | S86: 98 | T86: 547 | U86: 5779
A87: 1401005 | B87: V | C87: 1401005V | D87: Terrace View Long Term Care Facility | E87: 01/01/2024 | F87: 1838 | G87: 0 | H87: 3456 | I87: 0 | J87: 990 | K87: 848 | L87: 964 | M87: 2024-01-01 | N87: 2024-12-31 | O87: 366 | P87: 848 | Q87: 990 | R87: 1838 | S87: 445 | T87: 519 | U87: 2802
A88: 2950315 | B88: V | C88: 2950315V | D88: The Five Towns Premier Rehabilitation & Nursing Center | E88: 01/01/2024 | F88: 4092 | G88: 0 | H88: 5373 | I88: 0 | J88: 3081 | K88: 1011 | L88: 806 | M88: 2024-01-01 | N88: 2024-12-31 | O88: 366 | P88: 1011 | Q88: 3081 | R88: 4092 | S88: 199 | T88: 607 | U88: 4898
A89: 2750306 | B89: B | C89: 2750306B | D89: The Highlands at Brighton | E89: 01/01/2024 | F89: 4418 | G89: 248 | H89: 5184 | I89: 0 | J89: 4170 | K89: 0 | L89: 112 | M89: 2024-01-01 | N89: 2024-12-31 | O89: 366 | P89: 0 | Q89: 4418 | R89: 4418 | S89: 0 | T89: 112 | U89: 4530
A90: 2750306 | B90: V | C90: 2750306V | D90: The Highlands at Brighton | E90: 01/01/2024 | F90: 4181 | G90: 492 | H90: 6649 | I90: 0 | J90: 3197 | K90: 492 | L90: 1809 | M90: 2024-01-01 | N90: 2024-12-31 | O90: 366 | P90: 492 | Q90: 3689 | R90: 4181 | S90: 213 | T90: 1596 | U90: 5990
A91: 7003417 | B91: V | C91: 7003417V | D91: The Pavilion at Queens for Rehabilitation & Nursing | E91: 01/01/2024 | F91: 3997 | G91: 0 | H91: 6490 | I91: 0 | J91: 2642 | K91: 1355 | L91: 1732 | M91: 2024-01-01 | N91: 2024-12-31 | O91: 366 | P91: 1355 | Q91: 2642 | R91: 3997 | S91: 587 | T91: 1145 | U91: 5729
A92: 5957305 | B92: S | C92: 5957305S | D92: The Steven and Alexandra Cohen Pediatric Long Term Care Pavilion | E92: 01/01/2024 | F92: 8395 | G92: 0 | H92: 8761 | I92: 0 | J92: 0 | K92: 8395 | L92: 0 | M92: 2024-01-01 | N92: 2024-12-31 | O92: 366 | P92: 8395 | Q92: 0 | R92: 8395 | S92: 0 | T92: 0 | U92: 8395
A93: 2950318 | B93: V | C93: 2950318V | D93: Townhouse Center for Rehabilitation & Nursing | E93: 01/01/2024 | F93: 5059 | G93: 0 | H93: 5883 | I93: 278 | J93: 2521 | K93: 2260 | L93: 428 | M93: 2024-01-01 | N93: 2024-12-31 | O93: 366 | P93: 2538 | Q93: 2521 | R93: 5059 | S93: 215 | T93: 213 | U93: 5487
A94: 7000398 | B94: V | C94: 7000398V | D94: Triboro Center for Rehabilitation and Nursing (Bronx County) | E94: 01/01/2024 | F94: 4241 | G94: 93 | H94: 7005 | I94: 0 | J94: 2710 | K94: 1438 | L94: 2443 | M94: 2024-01-01 | N94: 2024-12-31 | O94: 366 | P94: 1438 | Q94: 2803 | R94: 4241 | S94: 828 | T94: 1615 | U94: 6684
A95: 2701358 | B95: V | C95: 2701358V | D95: Unity Living Center | E95: 01/01/2024 | F95: 1780 | G95: 0 | H95: 3116 | I95: 0 | J95: 909 | K95: 871 | L95: 918 | M95: 2024-01-01 | N95: 2024-12-31 | O95: 366 | P95: 871 | Q95: 909 | R95: 1780 | S95: 449 | T95: 469 | U95: 2698
A96: 7000350 | B96: V | C96: 7000350V | D96: Wayne Center For Nursing And Rehabilitation | E96: 01/01/2024 | F96: 7334 | G96: 0 | H96: 14198 | I96: 0 | J96: 3773 | K96: 3561 | L96: 5172 | M96: 2024-01-01 | N96: 2024-12-31 | O96: 366 | P96: 3561 | Q96: 3773 | R96: 7334 | S96: 2511 | T96: 2661 | U96: 12506
A97: 5820000 | B97: V | C97: 5820000V | D97: Wayne Health Care | E97: 01/01/2024 | F97: 0 | G97: 0 | H97: 0 | I97: 0 | J97: 0 | K97: 0 | L97: 0 | M97: 2024-01-01 | N97: 2024-12-31 | O97: 366 | P97: 0 | Q97: 0 | R97: 0 | S97: 0 | T97: 0 | U97: 0
A98: 5820000 | B98: B | C98: 5820000B | D98: Wayne Health Care | E98: 01/01/2024 | F98: 37546 | G98: 1029 | H98: 56589 | I98: 289 | J98: 35040 | K98: 1188 | L98: 5663 | M98: 2024-01-01 | N98: 2024-12-31 | O98: 366 | P98: =K98+I98 -> 1477 | Q98: 36069 | R98: 37546 | S98: 223 | T98: 5440 | U98: 43209
A99: 1301303 | B99: V | C99: 1301303V | D99: Wingate at Beacon | E99: 01/01/2024 | F99: 0 | G99: 0 | H99: 0 | I99: 0 | J99: 0 | K99: 0 | L99: 0 | M99: 2024-01-01 | N99: 2024-12-31 | O99: 366 | P99: =K99+I99 -> 0 | Q99: 0 | R99: 0 | S99: 0 | T99: 0 | U99: 0
A100: 1320302 | B100: V | C100: 1320302V | D100: Wingate of Dutchess | E100: 01/01/2024 | F100: 0 | G100: 0 | H100: 0 | I100: 0 | J100: 0 | K100: 0 | L100: 0 | M100: 2024-01-01 | N100: 2024-12-31 | O100: 366 | P100: =K100+I100 -> 0 | Q100: 0 | R100: 0 | S100: 0 | T100: 0 | U100: 0
A101: 5556303 | B101: V | C101: 5556303V | D101: Wingate of Ulster | E101: 01/01/2024 | F101: 2089 | G101: 0 | H101: 3127 | I101: 0 | J101: 2089 | K101: 0 | L101: 995 | M101: 2024-01-01 | N101: 2024-12-31 | O101: 366 | P101: =K101+I101 -> 0 | Q101: 2089 | R101: =Q101+P101 -> 2089 | S101: 0 | T101: 995 | U101: 3084
F102: 761943 | G102: 9918 | H102: 1088764 | I102: 46682 | J102: 366433 | K102: 338910 | L102: 199678 | M102: 4347299 | N102: 4382338 | O102: 35135 | P102: =SUM(P6:P101) -> 385592 | Q102: =SUM(Q6:Q101) -> 376351 | R102: =SUM(R6:R101) -> 761943 | S102: =SUM(S6:S101) -> 80744 | T102: =SUM(T6:T101) -> 118842 | U102: 961529

Sheet 4-1-24- NH-SPEC-non-op. rate (hidden)
B1: OPCERT | C1: NAME | D1: DCN | E1: APPROVED | F1: RATE SET NAME | G1: C 71900/1500 | H1: C 71902/1500 | I1: capital | J1: 71900 1400 | K1: 71902 1400
A2: =LEFT(B2,9) -> 295030230 | B2: 295030230N | C2: A Holly Patterson Extended Care Facility | D2: 82041531V1 | E2: 2024-12-16 | F2: 2024 Nursing Home April 10% Reduction Rates | G2: 316.61 | H2: 314.28 | I2: 25.74 | J2: 290.87 | K2: 288.54
A3: =LEFT(B3,9) -> 272530110 | B3: 272530110N | C3: Aaron Manor Rehabilitation and Nursing Center | D3: 81561330V1 | E3: 2024-12-16 | F3: 2024 Nursing Home April 10% Reduction Rates | G3: 246.1 | H3: 244.16 | I3: 31.73 | J3: 214.37 | K3: 212.43
A4: 042030210 | B4: 042030210N | C4: Absolut Center for Nursing and Rehabilitation at Allega | D4: NO BASE V1 | E4: 2024-12-16 | F4: 2024 Nursing Home April 10% Reduction Rates | G4: 212.42 | H4: 210.57 | I4: 12.97 | J4: 199.45 | K4: 197.6
A5: 142230310 | B5: 142230310N | C5: Absolut Center for Nursing and Rehabilitation at Auror | D5: 90901515V1 | E5: 2024-12-16 | F5: 2024 Nursing Home April 10% Reduction Rates | G5: 239.95 | H5: 238 | I5: 19.55 | J5: 220.4 | K5: 218.45
A6: 030230310 | B6: 030230310N | C6: Absolut Center for Nursing and Rehabilitation at Endic | D6: 90901523V1 | E6: 2024-12-16 | F6: 2024 Nursing Home April 10% Reduction Rates | G6: 225.86 | H6: 223.98 | I6: 16.11 | J6: 209.75 | K6: 207.87
A7: 315830210 | B7: 315830210N | C7: Absolut Center for Nursing and Rehabilitation at Gaspo | D7: 90901733V1 | E7: 2024-12-16 | F7: 2024 Nursing Home April 10% Reduction Rates | G7: 231.22 | H7: 229.13 | I7: 13.18 | J7: 218.04 | K7: 215.95
A8: 502630110 | B8: 502630110N | C8: Absolut Center for Nursing and Rehabilitation at Three | D8: 90901520V1 | E8: 2024-12-16 | F8: 2024 Nursing Home April 10% Reduction Rates | G8: 231.17 | H8: 229.16 | I8: 17.91 | J8: 213.26 | K8: 211.25
A9: 067530210 | B9: 067530210N | C9: Absolut Center for Nursing and Rehabilitation at Westfi | D9: 90901521V1 | E9: 2024-12-16 | F9: 2024 Nursing Home April 10% Reduction Rates | G9: 228.33 | H9: 226.34 | I9: 16.2 | J9: 212.13 | K9: 210.14
A10: 515530110 | B10: 515530110N | C10: Acadia Center for Nursing and Rehabilitation | D10: 81551244V1 | E10: 2024-12-16 | F10: 2024 Nursing Home April 10% Reduction Rates | G10: 255.4 | H10: 253.06 | I10: 13.4 | J10: 242 | K10: 239.66
A11: 522030310 | B11: 522030310N | C11: Achieve Rehab and Nursing Facility | D11: 81551219V1 | E11: 2024-12-16 | F11: 2024 Nursing Home April 10% Reduction Rates | G11: 280.11 | H11: 277.62 | I11: 24.89 | J11: 255.22 | K11: 252.73
A12: 590731810 | B12: 590731810N | C12: Adira at Riverside Rehabilitation and Nursing | D12: 81301644V1 | E12: 2024-12-16 | F12: 2024 Nursing Home April 10% Reduction Rates | G12: 448.1 | H12: 443.43 | I12: 24.43 | J12: 423.67 | K12: 419
A13: 515432310 | B13: 515432310N | C13: Affinity Skilled Living and Rehabilitation Center | D13: 81571058V1 | E13: 2024-12-16 | F13: 2024 Nursing Home April 10% Reduction Rates | G13: 367.98 | H13: 364.44 | I13: 30.68 | J13: 337.3 | K13: 333.76
A14: 162400030 | B14: 162400030N | C14: Alice Hyde Medical Center | D14: 81821727V1 | E14: 2024-12-16 | F14: 2024 Nursing Home April 10% Reduction Rates | G14: 232.13 | H14: 230.72 | I14: 46.07 | J14: 186.06 | K14: 184.65
A15: 212930310 | B15: 212930310N | C15: Alpine Rehabilitation and Nursing Center | D15: 81571049V1 | E15: 2024-12-16 | F15: 2024 Nursing Home April 10% Reduction Rates | G15: 253.01 | H15: 250.97 | I15: 32.63 | J15: 220.38 | K15: 218.34
A16: 700235610 | B16: 700235610N | C16: Amsterdam Nursing Home Corp (amsterdam House) | D16: 81901538V1 | E16: 2024-12-16 | F16: 2024 Nursing Home April 10% Reduction Rates | G16: 332.15 | H16: 329.22 | I16: 17.74 | J16: 314.41 | K16: 311.48
A17: 592630010 | B17: 592630010N | C17: Andrus On Hudson | D17: 81570956V1 | E17: 2024-12-16 | F17: 2024 Nursing Home April 10% Reduction Rates | G17: 281.49 | H17: 279.01 | I17: 20.77 | J17: 260.72 | K17: 258.24
A18: 515331110 | B18: 515331110N | C18: Apex Rehabilitation & Care Center | D18: 82071603V1 | E18: 2024-12-16 | F18: 2024 Nursing Home April 10% Reduction Rates | G18: 316.22 | H18: 313.23 | I18: 15.87 | J18: 300.35 | K18: 297.36
A19: 700137810 | B19: 700137810N | C19: Atrium Center for Rehabilitation and Nursing | D19: 81431513V1 | E19: 2024-12-16 | F19: 2024 Nursing Home April 10% Reduction Rates | G19: 359.5 | H19: 356.11 | I19: 23.79 | J19: 335.71 | K19: 332.32
A20: 050131010 | B20: 050131010N | C20: Auburn Rehabilitation and Nursing Center | D20: 81561549V1 | E20: 2024-12-16 | F20: 2024 Nursing Home April 10% Reduction Rates | G20: 203.79 | H20: 202.02 | I20: 10.5 | J20: 193.29 | K20: 191.52
A21: 380100030 | B21: 380100030N | C21: Aurelia Osborn Fox Memorial Hospital | D21: 81511318V1 | E21: 2024-12-16 | F21: 2024 Nursing Home April 10% Reduction Rates | G21: 202.32 | H21: 200.8 | I21: 9.31 | J21: 193.01 | K21: 191.49
A22: 143030110 | B22: 143030110N | C22: Autumn View Health Care Facility LLC | D22: 81511341V1 | E22: 2024-12-16 | F22: 2024 Nursing Home April 10% Reduction Rates | G22: 248.14 | H22: 246 | I22: 21.42 | J22: 226.72 | K22: 224.58
A23: 252030110 | B23: 252030110N | C23: Avon Nursing Home LLC | D23: 83191617V1 | E23: 2024-12-16 | F23: 2024 Nursing Home April 10% Reduction Rates | G23: 221.47 | H23: 219.53 | I23: 9.76 | J23: 211.71 | K23: 209.77
A24: 700031910 | B24: 700031910N | C24: Bainbridge Nursing And Rehabilitation Center | D24: 81571348V1 | E24: 2024-12-16 | F24: 2024 Nursing Home April 10% Reduction Rates | G24: 277.12 | H24: 274.55 | I24: 16.11 | J24: 261.01 | K24: 258.44
A25: 462030010 | B25: 462030010N | C25: Baptist Health Nursing And Rehabilitation Center Inc | D25: 81400837V1 | E25: 2024-12-16 | F25: 2024 Nursing Home April 10% Reduction Rates | G25: 213.49 | H25: 211.69 | I25: 10.6 | J25: 202.89 | K25: 201.09
A26: 590431710 | B26: 590431710N | C26: Bayberry Nursing Home | D26: 81601427V1 | E26: 2024-12-16 | F26: 2024 Nursing Home April 10% Reduction Rates | G26: 217.79 | H26: 216 | I26: 8.72 | J26: 209.07 | K26: 207.28
A27: 700341210 | B27: 700341210N | C27: Beach Gardens Rehab and Nursing Center | D27: 81561505V1 | E27: 2024-12-16 | F27: 2024 Nursing Home April 10% Reduction Rates | G27: 339.26 | H27: 335.98 | I27: 21.24 | J27: 318.02 | K27: 314.74
A28: 290230310 | B28: 290230310N | C28: Beach Terrace Care Center | D28: 81491440V1 | E28: 2024-12-16 | F28: 2024 Nursing Home April 10% Reduction Rates | G28: 286.18 | H28: 283.5 | I28: 13.15 | J28: 273.03 | K28: 270.35
A29: 700340110 | B29: 700340110N | C29: Beacon Rehabilitation and Nursing Center | D29: 81401416V1 | E29: 2024-12-16 | F29: 2024 Nursing Home April 10% Reduction Rates | G29: 326.6 | H29: 323.4 | I29: 17.87 | J29: 308.73 | K29: 305.53
A30: 700180510 | B30: 700180510N | C30: Bedford Center for Nursing and Rehabilitation | D30: 81561033V1 | E30: 2024-12-16 | F30: 2024 Nursing Home April 10% Reduction Rates | G30: 352.27 | H30: 349.18 | I30: 29.87 | J30: 322.4 | K30: 319.31
A31: 540131210 | B31: 540131210N | C31: Beechtree Center for Rehabilitation and Nursing | D31: 81511303V1 | E31: 2024-12-16 | F31: 2024 Nursing Home April 10% Reduction Rates | G31: 251.17 | H31: 249.08 | I31: 29.13 | J31: 222.04 | K31: 219.95
A32: 145130610 | B32: 145130610N | C32: Beechwood Homes | D32: 81561226V1 | E32: 2024-12-16 | F32: 2024 Nursing Home April 10% Reduction Rates | G32: 214.85 | H32: 213.05 | I32: 16.64 | J32: 198.21 | K32: 196.41
A33: 295030110 | B33: 295030110N | C33: Belair Care Center Inc | D33: 81441040V1 | E33: 2024-12-16 | F33: 2024 Nursing Home April 10% Reduction Rates | G33: 283.02 | H33: 280.65 | I33: 37.45 | J33: 245.57 | K33: 243.2
A34: 515132110 | B34: 515132110N | C34: Bellhaven Center For Rehabilitation and Nursing Care | D34: 81491237V2 | E34: 2024-12-16 | F34: 2024 Nursing Home April 10% Reduction Rates | G34: 364.99 | H34: 361.25 | I34: 18.18 | J34: 346.81 | K34: 343.07
A35: 700139610 | B35: 700139610N | C35: Bensonhurst Center for Rehabilitation and Healthcare | D35: NO BASE V1 | E35: 2024-12-16 | F35: 2024 Nursing Home April 10% Reduction Rates | G35: 442.14 | H35: 437.55 | I35: 29.07 | J35: 413.07 | K35: 408.48
A36: 510130110 | B36: 510130110N | C36: Berkshire Nursing & Rehabilitation Center | D36: 81391216V1 | E36: 2024-12-16 | F36: 2024 Nursing Home April 10% Reduction Rates | G36: 327.56 | H36: 324.34 | I36: 22.56 | J36: 305 | K36: 301.78
A37: 700039910 | B37: 700039910N | C37: Beth Abraham Center for Rehabilitation and Nursing | D37: 81781856V1 | E37: 2024-12-16 | F37: 2024 Nursing Home April 10% Reduction Rates | G37: 390.76 | H37: 387.78 | I37: 68.29 | J37: 322.47 | K37: 319.49
A38: 320130810 | B38: 320130810N | C38: Bethany Gardens Skilled Living Center | D38: 81561534V1 | E38: 2024-12-16 | F38: 2024 Nursing Home April 10% Reduction Rates | G38: 255.14 | H38: 252.86 | I38: 17.49 | J38: 237.65 | K38: 235.37
A39: 072230110 | B39: 072230110N | C39: Bethany Nursing Home & Health Related Facility Inc | D39: 81581002V1 | E39: 2024-12-16 | F39: 2024 Nursing Home April 10% Reduction Rates | G39: 194.71 | H39: 193.05 | I39: 7.85 | J39: 186.86 | K39: 185.2
A40: 590530310 | B40: 590530310N | C40: Bethel Nursing Home Company Inc | D40: 81480856V1 | E40: 2024-12-16 | F40: 2024 Nursing Home April 10% Reduction Rates | G40: 305.93 | H40: 302.91 | I40: 12.55 | J40: 293.38 | K40: 290.36
A41: 015130010 | B41: 015130010N | C41: Bethlehem Commons Care Center | D41: 81571313V1 | E41: 2024-12-16 | F41: 2024 Nursing Home April 10% Reduction Rates | G41: 250.64 | H41: 248.39 | I41: 14.66 | J41: 235.98 | K41: 233.73
A42: 320130710 | B42: 320130710N | C42: Betsy Ross Rehabilitation Center Inc | D42: 81561735V1 | E42: 2024-12-16 | F42: 2024 Nursing Home April 10% Reduction Rates | G42: 246.09 | H42: 243.76 | I42: 8.63 | J42: 237.46 | K42: 235.13
A43: 700335210 | B43: 700335210N | C43: Bezalel Rehabilitation and Nursing Center | D43: 81471015V1 | E43: 2024-12-16 | F43: 2024 Nursing Home April 10% Reduction Rates | G43: 272.22 | H43: 269.83 | I43: 14.88 | J43: 257.34 | K43: 254.95
A44: 330133010 | B44: 330133010N | C44: Bishop Rehabilitation and Nursing Center | D44: 81551344V1 | E44: 2024-12-16 | F44: 2024 Nursing Home April 10% Reduction Rates | G44: 279.43 | H44: 276.99 | I44: 16.24 | J44: 263.19 | K44: 260.75
A45: 700139410 | B45: 700139410N | C45: Boro Park Center for Rehabilitation and Healthcare | D45: 81571254V1 | E45: 2024-12-16 | F45: 2024 Nursing Home April 10% Reduction Rates | G45: 447.69 | H45: 444.19 | I45: 45.16 | J45: 402.53 | K45: 399.03
A46: 593130210 | B46: 593130210N | C46: Briarcliff Manor Center for Rehabilitation and Nursing Care | D46: 01371128V1 | E46: 2024-12-16 | F46: 2024 Nursing Home April 10% Reduction Rates | G46: 306.8 | H46: 303.83 | I46: 31.41 | J46: 275.39 | K46: 272.42
A47: 700330910 | B47: 700330910N | C47: Bridge View Nursing Home | D47: 81581518V1 | E47: 2024-12-16 | F47: 2024 Nursing Home April 10% Reduction Rates | G47: 252.55 | H47: 250.26 | I47: 12.19 | J47: 240.36 | K47: 238.07
A48: 030130810 | B48: 030130810N | C48: Bridgewater Center for Rehabilitation & Nursing LLC | D48: 83581021V1 | E48: 2024-12-16 | F48: 2024 Nursing Home April 10% Reduction Rates | G48: 251.74 | H48: 249.67 | I48: 10.89 | J48: 240.85 | K48: 238.78
A49: 270135410 | B49: 270135410N | C49: Brighton Manor | D49: 81561831V1 | E49: 2024-12-16 | F49: 2024 Nursing Home April 10% Reduction Rates | G49: 214.21 | H49: 212.35 | I49: 10.73 | J49: 203.48 | K49: 201.62
A50: 700038110 | B50: 700038110N | C50: Bronx Center For Rehabilitation and Health | D50: 81531258V1 | E50: 2024-12-16 | F50: 2024 Nursing Home April 10% Reduction Rates | G50: 312.1 | H50: 309.36 | I50: 23.46 | J50: 288.64 | K50: 285.9
A51: 700039710 | B51: 700039710N | C51: Bronx Gardens Rehabilitation and Nursing Center | D51: 81581303V1 | E51: 2024-12-16 | F51: 2024 Nursing Home April 10% Reduction Rates | G51: 388.37 | H51: 384.84 | I51: 37.5 | J51: 350.87 | K51: 347.34
A52: 700038010 | B52: 700038010N | C52: Bronx Park Rehabilitation & Nursing Center | D52: 81552243V1 | E52: 2024-12-16 | F52: 2024 Nursing Home April 10% Reduction Rates | G52: 341.73 | H52: 338.2 | I52: 14.13 | J52: 327.6 | K52: 324.07
A53: 700036410 | B53: 700036410N | C53: BronxCare Special Care Center | D53: 81551614V1 | E53: 2024-12-16 | F53: 2024 Nursing Home April 10% Reduction Rates | G53: 286.42 | H53: 283.85 | I53: 7.15 | J53: 279.27 | K53: 276.7
A54: 512330410 | B54: 512330410N | C54: Brookhaven Health Care Facility LLC | D54: 81511343V1 | E54: 2024-12-16 | F54: 2024 Nursing Home April 10% Reduction Rates | G54: 316.79 | H54: 313.82 | I54: 17.43 | J54: 299.36 | K54: 296.39
A55: 700339910 | B55: 700339910N | C55: Brookhaven Rehabilitation & Health Care Center | D55: 81501159V1 | E55: 2024-12-16 | F55: 2024 Nursing Home April 10% Reduction Rates | G55: 307.97 | H55: 305.26 | I55: 23.4 | J55: 284.57 | K55: 281.86
A56: 700138810 | B56: 700138810N | C56: Brooklyn Center for Rehabilitation and Residential Hea | D56: NO BASE V1 | E56: 2024-12-16 | F56: 2024 Nursing Home April 10% Reduction Rates | G56: 351.11 | H56: 347.97 | I56: 42.76 | J56: 308.35 | K56: 305.21
A57: 700180010 | B57: 700180010N | C57: Brooklyn Gardens Nursing & Rehabilitation Center | D57: 81561456V1 | E57: 2024-12-16 | F57: 2024 Nursing Home April 10% Reduction Rates | G57: 289.28 | H57: 286.64 | I57: 20.62 | J57: 268.66 | K57: 266.02
A58: 700130810 | B58: 700130810N | C58: Brooklyn United Methodist Church Home | D58: 81591913V1 | E58: 2024-12-16 | F58: 2024 Nursing Home April 10% Reduction Rates | G58: 268.44 | H58: 266.08 | I58: 18.72 | J58: 249.72 | K58: 247.36
A59: 700138210 | B59: 700138210N | C59: Brooklyn-Queens Nursing Home | D59: 81541556V1 | E59: 2024-12-16 | F59: 2024 Nursing Home April 10% Reduction Rates | G59: 384.83 | H59: 380.93 | I59: 15.49 | J59: 369.34 | K59: 365.44
A60: 515731810 | B60: 515731810N | C60: Brookside Multicare Nursing Center | D60: 81541629V1 | E60: 2024-12-16 | F60: 2024 Nursing Home April 10% Reduction Rates | G60: 343.2 | H60: 339.83 | I60: 14.55 | J60: 328.65 | K60: 325.28
A61: 145630010 | B61: 145630010N | C61: Brothers Of Mercy Nursing & Rehabilitation Center | D61: 81691351V1 | E61: 2024-12-16 | F61: 2024 Nursing Home April 10% Reduction Rates | G61: 202.34 | H61: 200.45 | I61: 10.69 | J61: 191.65 | K61: 189.76
A62: 700103510 | B62: 700103510N | C62: Buena Vida Continuing Care & Rehab Ctr | D62: 81570007V1 | E62: 2024-12-16 | F62: 2024 Nursing Home April 10% Reduction Rates | G62: 345.18 | H62: 342.23 | I62: 35.96 | J62: 309.22 | K62: 306.27
A63: 140134110 | B63: 140134110N | C63: Buffalo Center for Rehabilitation and Nursing | D63: 90151630V1 | E63: 2024-12-16 | F63: 2024 Nursing Home April 10% Reduction Rates | G63: 341.34 | H63: 339.33 | I63: 21.62 | J63: 319.72 | K63: 317.71
A64: 700136410 | B64: 700136410N | C64: Bushwick Center for Rehabilitation and Health Care | D64: 81790810V1 | E64: 2024-12-16 | F64: 2024 Nursing Home April 10% Reduction Rates | G64: 350.39 | H64: 347.01 | I64: 29.62 | J64: 320.77 | K64: 317.39
A65: 355730210 | B65: 355730210N | C65: Campbell Hall Rehabilitation Center Inc | D65: 81571110V1 | E65: 2024-12-16 | F65: 2024 Nursing Home April 10% Reduction Rates | G65: 219.68 | H65: 217.66 | I65: 12.24 | J65: 207.44 | K65: 205.42
A66: 142130510 | B66: 142130510N | C66: Canterbury Woods | D66: 83651034V1 | E66: 2024-12-16 | F66: 2024 Nursing Home April 10% Reduction Rates | G66: 177.51 | H66: 176.28 | I66: 24.41 | J66: 153.1 | K66: 151.87
A67: =LEFT(B67,9) -> 285030110 | B67: 285030110N | C67: Capstone Center for Rehabilitation and Nursing | D67: 81841613V1 | E67: 2024-12-16 | F67: 2024 Nursing Home April 10% Reduction Rates | G67: 227.32 | H67: 225.6 | I67: 15.32 | J67: 212 | K67: 210.28
A68: 515330610 | B68: 515330610N | C68: Carillon Nursing and Rehabilitation Center | D68: 81571546V1 | E68: 2024-12-16 | F68: 2024 Nursing Home April 10% Reduction Rates | G68: 310.23 | H68: 307.49 | I68: 13.25 | J68: 296.98 | K68: 294.24
A69: 700337310 | B69: 700337310N | C69: Caring Family Nursing and Rehabilitation Center | D69: 81481636V1 | E69: 2024-12-16 | F69: 2024 Nursing Home April 10% Reduction Rates | G69: 313.44 | H69: 310.38 | I69: 20.78 | J69: 292.66 | K69: 289.6
A70: 700431010 | B70: 700431010N | C70: Carmel Richmond Healthcare and Rehabilitation Center | D70: 81821627V1 | E70: 2024-12-16 | F70: 2024 Nursing Home April 10% Reduction Rates | G70: 312.48 | H70: 309.66 | I70: 10.03 | J70: 302.45 | K70: 299.63
A71: 223830410 | B71: 223830410N | C71: Carthage Center for Rehabilitation and Nursing | D71: 81511332V1 | E71: 2024-12-16 | F71: 2024 Nursing Home April 10% Reduction Rates | G71: 215.7 | H71: 213.67 | I71: 12.54 | J71: 203.16 | K71: 201.13
A72: 700136610 | B72: 700136610N | C72: Caton Park Nursing Home | D72: 81421752V1 | E72: 2024-12-16 | F72: 2024 Nursing Home April 10% Reduction Rates | G72: 299.49 | H72: 296.86 | I72: 23.57 | J72: 275.92 | K72: 273.29
A73: 540131110 | B73: 540131110N | C73: Cayuga Ridge Extended Care | D73: NO BASE V1 | E73: 2024-12-16 | F73: 2024 Nursing Home April 10% Reduction Rates | G73: 241.87 | H73: 240.04 | I73: 46.94 | J73: 194.93 | K73: 193.1
A74: 590530910 | B74: 590530910N | C74: Cedar Manor Nursing & Rehabilitation Center | D74: 81651319V1 | E74: 2024-12-16 | F74: 2024 Nursing Home April 10% Reduction Rates | G74: 261.09 | H74: 258.8 | I74: 16.22 | J74: 244.87 | K74: 242.58
A75: 295230810 | B75: 295230810N | C75: Central Island Healthcare | D75: 81480859V1 | E75: 2024-12-16 | F75: 2024 Nursing Home April 10% Reduction Rates | G75: 280.87 | H75: 278.36 | I75: 12.45 | J75: 268.42 | K75: 265.91
A76: 330132610 | B76: 330132610N | C76: Central Park Rehabilitation and Nursing Center | D76: 81551437V1 | E76: 2024-12-16 | F76: 2024 Nursing Home April 10% Reduction Rates | G76: 228.91 | H76: 227 | I76: 19.58 | J76: 209.33 | K76: 207.42
A77: 090100130 | B77: 090100130N | C77: Champlain Valley Physicians Hospital Medical Center Snf | D77: 81821237V1 | E77: 2024-12-16 | F77: 2024 Nursing Home April 10% Reduction Rates | G77: 228 | H77: 226.58 | I77: 35.04 | J77: 192.96 | K77: 191.54
A78: 700335110 | B78: 700335110N | C78: Chapin Home For The Aging | D78: 81541435V1 | E78: 2024-12-16 | F78: 2024 Nursing Home April 10% Reduction Rates | G78: 237.97 | H78: 235.83 | I78: 9.05 | J78: 228.92 | K78: 226.78
A79: 322730410 | B79: 322730410N | C79: Charles T Sitrin Health Care Center Inc | D79: 81501617V1 | E79: 2024-12-16 | F79: 2024 Nursing Home April 10% Reduction Rates | G79: 233.96 | H79: 232.41 | I79: 37.51 | J79: 196.45 | K79: 194.9
A80: 082330010 | B80: 082330010N | C80: ChaseHealth Rehab and Residential Care | D80: 81591601V1 | E80: 2024-12-16 | F80: 2024 Nursing Home April 10% Reduction Rates | G80: 197 | H80: 195.35 | I80: 4.9 | J80: 192.1 | K80: 190.45
A81: 060130410 | B81: 060130410N | C81: Chautauqua Nursing and Rehabilitation Center | D81: 81541336V1 | E81: 2024-12-16 | F81: 2024 Nursing Home April 10% Reduction Rates | G81: 273.78 | H81: 271.43 | I81: 22.74 | J81: 251.04 | K81: 248.69
A82: 070130110 | B82: 070130110N | C82: Chemung County Health Center-nursing Facility | D82: 82671643V1 | E82: 2024-12-16 | F82: 2024 Nursing Home April 10% Reduction Rates | G82: 211.8 | H82: 209.93 | I82: 6.72 | J82: 205.08 | K82: 203.21
A83: 082400030 | B83: 082400030N | C83: Chenango Memorial Hospital Inc Snf | D83: 81780924V1 | E83: 2024-12-16 | F83: 2024 Nursing Home April 10% Reduction Rates | G83: 177.21 | H83: 175.99 | I83: 20.08 | J83: 157.13 | K83: 155.91
A84: 380130410 | B84: 380130410N | C84: Chestnut Park Rehabilitation and Nursing Center | D84: 90151710V1 | E84: 2024-12-16 | F84: 2024 Nursing Home April 10% Reduction Rates | G84: 234.34 | H84: 232.4 | I84: 12.33 | J84: 222.01 | K84: 220.07
A85: 270133910 | B85: 270133910N | C85: Church Home Of The Protestant Episcopal Church | D85: 81581041V1 | E85: 2024-12-16 | F85: 2024 Nursing Home April 10% Reduction Rates | G85: 212.52 | H85: 210.69 | I85: 11.85 | J85: 200.67 | K85: 198.84
A86: 700338010 | B86: 700338010N | C86: Cliffside Rehabilitation and Residential Health Care Center | D86: 81491622V1 | E86: 2024-12-16 | F86: 2024 Nursing Home April 10% Reduction Rates | G86: 267.65 | H86: 265.51 | I86: 18.38 | J86: 249.27 | K86: 247.13
A87: 342100030 | B87: 342100030N | C87: Clifton Springs Hospital And Clinic Extended Care | D87: 81821126V1 | E87: 2024-12-16 | F87: 2024 Nursing Home April 10% Reduction Rates | G87: 255.8 | H87: 254 | I87: 30.28 | J87: 225.52 | K87: 223.72
A88: 095230010 | B88: 095230010N | C88: Clinton County Nursing Home | D88: 81561318V1 | E88: 2024-12-16 | F88: 2024 Nursing Home April 10% Reduction Rates | G88: 185.57 | H88: 183.96 | I88: 4.91 | J88: 180.66 | K88: 179.05
A89: 700432110 | B89: 700432110N | C89: Clove Lakes Health Care and Rehabilitation Center | D89: 81421550V1 | E89: 2024-12-16 | F89: 2024 Nursing Home April 10% Reduction Rates | G89: 334.9 | H89: 332 | I89: 13.92 | J89: 320.98 | K89: 318.08
A90: 700132310 | B90: 700132310N | C90: Cobble Hill Health Center Inc | D90: 81641441V1 | E90: 2024-12-16 | F90: 2024 Nursing Home April 10% Reduction Rates | G90: 364.41 | H90: 361.22 | I90: 32.45 | J90: 331.96 | K90: 328.77
A91: 295231010 | B91: 295231010N | C91: Cold Spring Hills Center for Nursing and Rehabilitation | D91: 81581427V1 | E91: 2024-12-16 | F91: 2024 Nursing Home April 10% Reduction Rates | G91: 335.22 | H91: 332.31 | I91: 27.63 | J91: 307.59 | K91: 304.68
A92: 700233630 | B92: 700233630N | C92: Coler Rehabilitation and Nursing Care Center | D92: 83111044V1 | E92: 2024-12-16 | F92: 2024 Nursing Home April 10% Reduction Rates | G92: 377.7 | H92: 374.97 | I92: 43.99 | J92: 333.71 | K92: 330.98
A93: 320131110 | B93: 320131110N | C93: Colonial Park Rehabilitation and Nursing Center | D93: 90151714V1 | E93: 2024-12-16 | F93: 2024 Nursing Home April 10% Reduction Rates | G93: 222.48 | H93: 220.41 | I93: 12.13 | J93: 210.35 | K93: 208.28
A94: 142130810 | B94: 142130810N | C94: Comprehensive Rehabilitation and Nursing Center at Williamsville | D94: 81581122V1 | E94: 2024-12-16 | F94: 2024 Nursing Home April 10% Reduction Rates | G94: 268.84 | H94: 266.56 | I94: 16.19 | J94: 252.65 | K94: 250.37
A95: 700134810 | B95: 700134810N | C95: Concord Nursing and Rehabilitation Center | D95: 82211324V1 | E95: 2024-12-16 | F95: 2024 Nursing Home April 10% Reduction Rates | G95: 318.54 | H95: 315.51 | I95: 18.59 | J95: 299.95 | K95: 296.92
A96: 700037510 | B96: 700037510N | C96: Concourse Rehabilitation and Nursing Center | D96: 81511306V1 | E96: 2024-12-16 | F96: 2024 Nursing Home April 10% Reduction Rates | G96: 372.43 | H96: 369 | I96: 42.4 | J96: 330.03 | K96: 326.6
A97: 252530110 | B97: 252530110N | C97: Conesus Lake Nursing Home LLC | D97: 91041120V1 | E97: 2024-12-16 | F97: 2024 Nursing Home April 10% Reduction Rates | G97: 245.96 | H97: 243.79 | I97: 27.38 | J97: 218.58 | K97: 216.41
A98: 382430110 | B98: 382430110N | C98: Cooperstown Center for Rehabilitation and Nursing | D98: 81651140V1 | E98: 2024-12-16 | F98: 2024 Nursing Home April 10% Reduction Rates | G98: 298.71 | H98: 296.19 | I98: 25.76 | J98: 272.95 | K98: 270.43
A99: 500130010 | B99: 500130010N | C99: Corning Center for Rehabilitation and Healthcare | D99: 81581400V1 | E99: 2024-12-16 | F99: 2024 Nursing Home April 10% Reduction Rates | G99: 259.03 | H99: 256.89 | I99: 42.12 | J99: 216.91 | K99: 214.77
A100: 110131010 | B100: 110131010N | C100: Cortland Park Rehabilitation and Nursing Center | D100: 90201037V1 | E100: 2024-12-16 | F100: 2024 Nursing Home April 10% Reduction Rates | G100: 196.74 | H100: 195.1 | I100: 11.75 | J100: 184.99 | K100: 183.35
A101: 110130630 | B101: 110130630N | C101: Cortland Regional Nursing and Rehabilitation Center | D101: 81561045V1 | E101: 2024-12-16 | F101: 2024 Nursing Home April 10% Reduction Rates | G101: 240.24 | H101: 238.73 | I101: 34.13 | J101: 206.11 | K101: 204.6
A102: 590130710 | B102: 590130710N | C102: Cortlandt Healthcare | D102: 81440834V1 | E102: 2024-12-16 | F102: 2024 Nursing Home April 10% Reduction Rates | G102: 317.94 | H102: 315.21 | I102: 36.97 | J102: 280.97 | K102: 278.24
A103: 276230210 | B103: 276230210N | C103: Crest Manor Living and Rehabilitation Center | D103: 81641349V1 | E103: 2024-12-16 | F103: 2024 Nursing Home April 10% Reduction Rates | G103: 220.56 | H103: 218.44 | I103: 11.37 | J103: 209.19 | K103: 207.07
A104: 262330010 | B104: 262330010N | C104: Crouse Community Center Inc | D104: 81571339V1 | E104: 2024-12-16 | F104: 2024 Nursing Home April 10% Reduction Rates | G104: 228.62 | H104: 226.82 | I104: 8.11 | J104: 220.51 | K104: 218.71
A105: 700139810 | B105: 700139810N | C105: Crown Heights Center for Nursing and Rehabilitation | D105: 81911545V1 | E105: 2024-12-16 | F105: 2024 Nursing Home April 10% Reduction Rates | G105: 336.6 | H105: 333.66 | I105: 45.29 | J105: 291.31 | K105: 288.37
A106: 110131210 | B106: 110131210N | C106: Crown Park Rehabilitation and Nursing Center | D106: 81822154V1 | E106: 2024-12-16 | F106: 2024 Nursing Home April 10% Reduction Rates | G106: 203.88 | H106: 202.12 | I106: 13.63 | J106: 190.25 | K106: 188.49
A107: 022600030 | B107: 022600030N | C107: Cuba Memorial Hospital Inc Snf | D107: 81571315V1 | E107: 2024-12-16 | F107: 2024 Nursing Home April 10% Reduction Rates | G107: 198.96 | H107: 197.51 | I107: 18.16 | J107: 180.8 | K107: 179.35
A108: 700341310 | B108: 700341310N | C108: Cypress Garden Center for Nursing and Rehabilitation | D108: 81471025V1 | E108: 2024-12-16 | F108: 2024 Nursing Home April 10% Reduction Rates | G108: 316.34 | H108: 313.37 | I108: 19.72 | J108: 296.62 | K108: 293.65
A109: 515030210 | B109: 515030210N | C109: Daleview Care Center | D109: 81440825V1 | E109: 2024-12-16 | F109: 2024 Nursing Home April 10% Reduction Rates | G109: 306.82 | H109: 303.97 | I109: 18.53 | J109: 288.29 | K109: 285.44
A110: 010131210 | B110: 010131210N | C110: Daughters Of Sarah Nursing Center - NF | D110: 81561034V1 | E110: 2024-12-16 | F110: 2024 Nursing Home April 10% Reduction Rates | G110: 215.53 | H110: 213.65 | I110: 17.04 | J110: 198.49 | K110: 196.61
A111: 310300030 | B111: 310300030N | C111: Degraff Memorial Hospital-skilled Nursing Facility | D111: 81770931V1 | E111: 2024-12-16 | F111: 2024 Nursing Home April 10% Reduction Rates | G111: 314.19 | H111: 312 | I111: 59.8 | J111: 254.39 | K111: 252.2
A112: 125430210 | B112: 125430210N | C112: Delhi Rehabilitation and Nursing Center | D112: NO BASE0V1 | E112: 2024-12-16 | F112: 2024 Nursing Home April 10% Reduction Rates | G112: 291.69 | H112: 289.43 | I112: 52.93 | J112: 238.76 | K112: 236.5
A113: 416100010 | B113: 416100010N | C113: Diamond Hill Nursing and Rehabilitation Center | D113: 81821631V1 | E113: 2024-12-16 | F113: 2024 Nursing Home April 10% Reduction Rates | G113: 263.05 | H113: 260.87 | I113: 26.76 | J113: 236.29 | K113: 234.11
A114: 700139310 | B114: 700139310N | C114: Ditmas Park Care Center | D114: 81441315V1 | E114: 2024-12-16 | F114: 2024 Nursing Home April 10% Reduction Rates | G114: 394.97 | H114: 391.41 | I114: 42.8 | J114: 352.17 | K114: 348.61
A115: 700180910 | B115: 700180910N | C115: Downtown Brooklyn Nursing & Rehabilitation Center | D115: 81781936V1 | E115: 2024-12-16 | F115: 2024 Nursing Home April 10% Reduction Rates | G115: 352.93 | H115: 349.74 | I115: 23.26 | J115: 329.67 | K115: 326.48
A116: 700138010 | B116: 700138010N | C116: Dr Susan Smith Mckinney Nursing and Rehabilitation Center | D116: 82141240V1 | E116: 2024-12-16 | F116: 2024 Nursing Home April 10% Reduction Rates | G116: 358.42 | H116: 355.52 | I116: 31.5 | J116: 326.92 | K116: 324.02
A117: 700335910 | B117: 700335910N | C117: Dry Harbor Nursing Home | D117: 92301519V1 | E117: 2024-12-16 | F117: 2024 Nursing Home April 10% Reduction Rates | G117: 350.78 | H117: 347.59 | I117: 24.71 | J117: 326.07 | K117: 322.88
A118: 590432110 | B118: 590432110N | C118: Dumont Center for Rehabilitation and Nursing Care | D118: 81581649V1 | E118: 2024-12-16 | F118: 2024 Nursing Home April 10% Reduction Rates | G118: 400.18 | H118: 396.12 | I118: 31.24 | J118: 368.94 | K118: 364.88
A119: 060130510 | B119: 060130510N | C119: Dunkirk Rehabilitation & Nursing Center | D119: NO BASE V1 | E119: 2024-12-16 | F119: 2024 Nursing Home April 10% Reduction Rates | G119: 234.02 | H119: 231.84 | I119: 12.27 | J119: 221.75 | K119: 219.57
A120: 590231910 | B120: 590231910N | C120: EPIC Rehabilitation and Nursing at White Plains | D120: NO BASE0V1 | E120: 2024-12-16 | F120: 2024 Nursing Home April 10% Reduction Rates | G120: 343.79 | H120: 340.9 | I120: 50.35 | J120: 293.44 | K120: 290.55
A121: 700036010 | B121: 700036010N | C121: East Haven Nursing And Rehabilitation Center | D121: 81571349V1 | E121: 2024-12-16 | F121: 2024 Nursing Home April 10% Reduction Rates | G121: 265.63 | H121: 263.16 | I121: 20.13 | J121: 245.5 | K121: 243.03
A122: 515030310 | B122: 515030310N | C122: East Neck Nursing and Rehabilitation Center | D122: 81551208V1 | E122: 2024-12-16 | F122: 2024 Nursing Home April 10% Reduction Rates | G122: 324.02 | H122: 321.2 | I122: 16.99 | J122: 307.03 | K122: 304.21
A123: 602730410 | B123: 602730410N | C123: East Side Nursing Home | D123: 81521615V1 | E123: 2024-12-16 | F123: 2024 Nursing Home April 10% Reduction Rates | G123: 230.94 | H123: 228.65 | I123: 10.74 | J123: 220.2 | K123: 217.91
A124: 700038310 | B124: 700038310N | C124: Eastchester Rehabilitation and Health Care Center | D124: 81541216V1 | E124: 2024-12-16 | F124: 2024 Nursing Home April 10% Reduction Rates | G124: 329.72 | H124: 326.6 | I124: 16.16 | J124: 313.56 | K124: 310.44
A125: 323930010 | B125: 323930010N | C125: Eastern Star Home & Infirmary | D125: 81571342V1 | E125: 2024-12-16 | F125: 2024 Nursing Home April 10% Reduction Rates | G125: 213.97 | H125: 211.96 | I125: 11.04 | J125: 202.93 | K125: 200.92
A126: 410231110 | B126: 410231110N | C126: Eddy Heritage House Nursing Center | D126: 82051154V1 | E126: 2024-12-16 | F126: 2024 Nursing Home April 10% Reduction Rates | G126: 238.11 | H126: 236.05 | I126: 10.5 | J126: 227.61 | K126: 225.55
A127: 410230910 | B127: 410230910N | C127: Eddy Memorial Geriatric Center | D127: 82051214V1 | E127: 2024-12-16 | F127: 2024 Nursing Home April 10% Reduction Rates | G127: 211.22 | H127: 209.4 | I127: 14.55 | J127: 196.67 | K127: 194.85
A128: 010200110 | B128: 010200110N | C128: Eddy Village Green | D128: 81831244V1 | E128: 2024-12-16 | F128: 2024 Nursing Home April 10% Reduction Rates | G128: 259.84 | H128: 257.89 | I128: 33.9 | J128: 225.94 | K128: 223.99
A129: 015130110 | B129: 015130110N | C129: Eddy Village Green at Beverwyck | D129: NO BASE V1 | E129: 2024-12-16 | F129: 2024 Nursing Home April 10% Reduction Rates | G129: 265.02 | H129: 262.88 | I129: 34.2 | J129: 230.82 | K129: 228.68
A130: 146130310 | B130: 146130310N | C130: Eden Rehabilitation & Nursing Center | D130: 90901524V1 | E130: 2024-12-16 | F130: 2024 Nursing Home April 10% Reduction Rates | G130: 232.44 | H130: 230.37 | I130: 14.22 | J130: 218.22 | K130: 216.15
A131: =LEFT(B131,9) -> 275430410 | B131: 275430410N | C131: Edna Tina Wilson Living Center | D131: 81581621V1 | E131: 2024-12-16 | F131: 2024 Nursing Home April 10% Reduction Rates | G131: 218.76 | H131: 216.89 | I131: 16.23 | J131: 202.53 | K131: 200.66
A132: 700430310 | B132: 700430310N | C132: Eger Health Care and Rehabilitation Center | D132: 81581120V1 | E132: 2024-12-16 | F132: 2024 Nursing Home April 10% Reduction Rates | G132: 338.63 | H132: 335.7 | I132: 13.58 | J132: 325.05 | K132: 322.12
A133: 072230410 | B133: 072230410N | C133: Elcor Nursing and Rehabilitation Center | D133: 81561532V1 | E133: 2024-12-16 | F133: 2024 Nursing Home April 10% Reduction Rates | G133: 296.96 | H133: 295.01 | I133: 86.24 | J133: 210.72 | K133: 208.77
A134: 145130710 | B134: 145130710N | C134: Elderwood at Amherst | D134: 81561543V1 | E134: 2024-12-16 | F134: 2024 Nursing Home April 10% Reduction Rates | G134: 240.8 | H134: 238.72 | I134: 17.4 | J134: 223.4 | K134: 221.32
A135: 145530310 | B135: 145530310N | C135: Elderwood at Cheektowaga | D135: 81561539V1 | E135: 2024-12-16 | F135: 2024 Nursing Home April 10% Reduction Rates | G135: 237.23 | H135: 235.23 | I135: 21.58 | J135: 215.65 | K135: 213.65
A136: 146430210 | B136: 146430210N | C136: Elderwood at Grand Island | D136: 81561538V1 | E136: 2024-12-16 | F136: 2024 Nursing Home April 10% Reduction Rates | G136: 222.64 | H136: 220.7 | I136: 16.49 | J136: 206.15 | K136: 204.21
A137: 143030310 | B137: 143030310N | C137: Elderwood at Hamburg | D137: 81561535V1 | E137: 2024-12-16 | F137: 2024 Nursing Home April 10% Reduction Rates | G137: 239.23 | H137: 237.16 | I137: 18.37 | J137: 220.86 | K137: 218.79
A138: 503430030 | B138: 503430030N | C138: Elderwood at Hornell | D138: 81501433V1 | E138: 2024-12-16 | F138: 2024 Nursing Home April 10% Reduction Rates | G138: 236.21 | H138: 234.27 | I138: 20.05 | J138: 216.16 | K138: 214.22
A139: 140630310 | B139: 140630310N | C139: Elderwood at Lancaster | D139: 81561542V1 | E139: 2024-12-16 | F139: 2024 Nursing Home April 10% Reduction Rates | G139: 239.19 | H139: 237.13 | I139: 20.07 | J139: 219.12 | K139: 217.06
A140: 333130110 | B140: 333130110N | C140: Elderwood at Liverpool | D140: 81561537V1 | E140: 2024-12-16 | F140: 2024 Nursing Home April 10% Reduction Rates | G140: 235.74 | H140: 233.83 | I140: 28.68 | J140: 207.06 | K140: 205.15
A141: 310130810 | B141: 310130810N | C141: Elderwood at Lockport | D141: 81561215V1 | E141: 2024-12-16 | F141: 2024 Nursing Home April 10% Reduction Rates | G141: 247.85 | H141: 245.72 | I141: 20.28 | J141: 227.57 | K141: 225.44
A142: 565530310 | B142: 565530310N | C142: Elderwood at North Creek | D142: 81651142V1 | E142: 2024-12-16 | F142: 2024 Nursing Home April 10% Reduction Rates | G142: 221.47 | H142: 219.52 | I142: 12.64 | J142: 208.83 | K142: 206.88
A143: 152730110 | B143: 152730110N | C143: Elderwood at Ticonderoga | D143: 81551517V1 | E143: 2024-12-16 | F143: 2024 Nursing Home April 10% Reduction Rates | G143: 224.46 | H143: 222.66 | I143: 20.3 | J143: 204.16 | K143: 202.36
A144: 532030210 | B144: 532030210N | C144: Elderwood at Waverly | D144: 92451533V1 | E144: 2024-12-16 | F144: 2024 Nursing Home April 10% Reduction Rates | G144: 241.19 | H144: 239.19 | I144: 22.36 | J144: 218.83 | K144: 216.83
A145: 312130410 | B145: 312130410N | C145: Elderwood at Wheatfield | D145: 81561541V1 | E145: 2024-12-16 | F145: 2024 Nursing Home April 10% Reduction Rates | G145: 231.8 | H145: 229.84 | I145: 21.12 | J145: 210.68 | K145: 208.72
A146: 142130710 | B146: 142130710N | C146: Elderwood at Williamsville | D146: 81561550V1 | E146: 2024-12-16 | F146: 2024 Nursing Home April 10% Reduction Rates | G146: 243.25 | H146: 241.09 | I146: 13.25 | J146: 230 | K146: 227.84
A147: 272830010 | B147: 272830010N | C147: Elderwood of Lakeside at Brockport | D147: 81540634V1 | E147: 2024-12-16 | F147: 2024 Nursing Home April 10% Reduction Rates | G147: 245.7 | H147: 243.68 | I147: 23.98 | J147: 221.72 | K147: 219.7
A148: 156030210 | B148: 156030210N | C148: Elderwood of Uihlein at Lake Placid | D148: 81581123V1 | E148: 2024-12-16 | F148: 2024 Nursing Home April 10% Reduction Rates | G148: 249.96 | H148: 248.18 | I148: 51.27 | J148: 198.69 | K148: 196.91
A149: 030130710 | B149: 030130710N | C149: Elizabeth Church Manor Nursing Home | D149: 81551530V1 | E149: 2024-12-16 | F149: 2024 Nursing Home April 10% Reduction Rates | G149: 198.3 | H149: 197.23 | I149: 11.21 | J149: 187.09 | K149: 186.02
A150: 140133710 | B150: 140133710N | C150: Ellicott Center for Rehabilitation and Nursing for Waterfront Operations | D150: 81561212V1 | E150: 2024-12-16 | F150: 2024 Nursing Home April 10% Reduction Rates | G150: 261.81 | H150: 259.2 | I150: 31.89 | J150: 229.92 | K150: 227.31
A151: 460100130 | B151: 460100130N | C151: Ellis Residential & Rehabilitation Center | D151: 81780819V1 | E151: 2024-12-16 | F151: 2024 Nursing Home April 10% Reduction Rates | G151: 330.24 | H151: 328.37 | I151: 37.38 | J151: 292.86 | K151: 290.99
A152: 342930510 | B152: 342930510N | C152: Elm Manor Nursing and Rehabilitation Center | D152: 81561655V1 | E152: 2024-12-16 | F152: 2024 Nursing Home April 10% Reduction Rates | G152: 243.04 | H152: 240.36 | I152: 11.12 | J152: 231.92 | K152: 229.24
A153: 700339610 | B153: 700339610N | C153: Elmhurst Care Center Inc | D153: 81441227V1 | E153: 2024-12-16 | F153: 2024 Nursing Home April 10% Reduction Rates | G153: 306.18 | H153: 303.63 | I153: 37.49 | J153: 268.69 | K153: 266.14
A154: 290130410 | B154: 290130410N | C154: Emerge Nursing and Rehabilitation at Glen Cove | D154: 81401745V1 | E154: 2024-12-16 | F154: 2024 Nursing Home April 10% Reduction Rates | G154: 283.23 | H154: 280.74 | I154: 28.42 | J154: 254.81 | K154: 252.32
A155: 155230010 | B155: 155230010N | C155: Essex Center for Rehabilitation and Healthcare | D155: 81651421V1 | E155: 2024-12-16 | F155: 2024 Nursing Home April 10% Reduction Rates | G155: 335.49 | H155: 332.89 | I155: 62.4 | J155: 273.09 | K155: 270.49
A156: 415230510 | B156: 415230510N | C156: Evergreen Commons Rehabilitation and Nursing Center | D156: 81561144V1 | E156: 2024-12-16 | F156: 2024 Nursing Home April 10% Reduction Rates | G156: 238.33 | H156: 236.43 | I156: 25.82 | J156: 212.51 | K156: 210.61
A157: 295230910 | B157: 295230910N | C157: Excel at Woodbury for Rehabilitation and Nursing LLC | D157: 81571032V1 | E157: 2024-12-16 | F157: 2024 Nursing Home April 10% Reduction Rates | G157: 277.75 | H157: 275.38 | I157: 25.4 | J157: 252.35 | K157: 249.98
A158: 272530010 | B158: 272530010N | C158: Fairport Baptist Homes | D158: 81410816V1 | E158: 2024-12-16 | F158: 2024 Nursing Home April 10% Reduction Rates | G158: 224.89 | H158: 222.93 | I158: 15.68 | J158: 209.21 | K158: 207.25
A159: 700337510 | B159: 700337510N | C159: Fairview Nursing Care Center Inc | D159: 81631012V1 | E159: 2024-12-16 | F159: 2024 Nursing Home April 10% Reduction Rates | G159: 457.7 | H159: 453.19 | I159: 28.11 | J159: 429.59 | K159: 425.08
A160: 700341610 | B160: 700341610N | C160: Far Rockaway Center for Rehabilitation and Nursing | D160: 81431102V1 | E160: 2024-12-16 | F160: 2024 Nursing Home April 10% Reduction Rates | G160: 275.25 | H160: 272.38 | I160: 13.52 | J160: 261.73 | K160: 258.86
A161: 143530210 | B161: 143530210N | C161: Father Baker Manor | D161: 81650743V1 | E161: 2024-12-16 | F161: 2024 Nursing Home April 10% Reduction Rates | G161: 208.14 | H161: 206.44 | I161: 14.35 | J161: 193.79 | K161: 192.09
A162: 132730010 | B162: 132730010N | C162: Ferncliff Nursing Home Co Inc | D162: 81821628V1 | E162: 2024-12-16 | F162: 2024 Nursing Home April 10% Reduction Rates | G162: 262.72 | H162: 260.48 | I162: 8.92 | J162: 253.8 | K162: 251.56
A163: 142730310 | B163: 142730310N | C163: Fiddlers Green Manor Rehabilitation and Nursing Center | D163: 81551605V1 | E163: 2024-12-16 | F163: 2024 Nursing Home April 10% Reduction Rates | G163: 213.3 | H163: 211.28 | I163: 8.05 | J163: 205.25 | K163: 203.23
A164: 700038510 | B164: 700038510N | C164: Fieldston Lodge Care Center | D164: 81580955V1 | E164: 2024-12-16 | F164: 2024 Nursing Home April 10% Reduction Rates | G164: 353.1 | H164: 349.59 | I164: 12.53 | J164: 340.57 | K164: 337.06
A165: 050100030 | B165: 050100030N | C165: Finger Lakes Center for Living | D165: 81771030V1 | E165: 2024-12-16 | F165: 2024 Nursing Home April 10% Reduction Rates | G165: 235.33 | H165: 233.38 | I165: 25.64 | J165: 209.69 | K165: 207.74
A166: 130130210 | B166: 130130210N | C166: Fishkill Center for Rehabilitation and Nursing | D166: 01200940V1 | E166: 2024-12-16 | F166: 2024 Nursing Home April 10% Reduction Rates | G166: 259.01 | H166: 256.8 | I166: 25.16 | J166: 233.85 | K166: 231.64
A167: 212430010 | B167: 212430010N | C167: Foltsbrook Center for Nursing and Rehabilitation | D167: 91721134V1 | E167: 2024-12-16 | F167: 2024 Nursing Home April 10% Reduction Rates | G167: 210.95 | H167: 209.14 | I167: 10.46 | J167: 200.49 | K167: 198.68
A168: 700039510 | B168: 700039510N | C168: Fordham Nursing and Rehabilitation Center | D168: 81610905V1 | E168: 2024-12-16 | F168: 2024 Nursing Home April 10% Reduction Rates | G168: 295.63 | H168: 293.02 | I168: 20.19 | J168: 275.44 | K168: 272.83
A169: 700339410 | B169: 700339410N | C169: Forest Hills Care Center | D169: 81341001V1 | E169: 2024-12-16 | F169: 2024 Nursing Home April 10% Reduction Rates | G169: 325.96 | H169: 322.77 | I169: 19.45 | J169: 306.51 | K169: 303.32
A170: 700338710 | B170: 700338710N | C170: Forest View Center for Rehabilitation & Nursing | D170: 81531431V1 | E170: 2024-12-16 | F170: 2024 Nursing Home April 10% Reduction Rates | G170: 246.38 | H170: 244.22 | I170: 11.27 | J170: 235.11 | K170: 232.95
A171: 572430210 | B171: 572430210N | C171: Fort Hudson Nursing Center Inc | D171: 81201215V1 | E171: 2024-12-16 | F171: 2024 Nursing Home April 10% Reduction Rates | G171: 220.33 | H171: 218.34 | I171: 14.14 | J171: 206.19 | K171: 204.2
A172: 700235910 | B172: 700235910N | C172: Fort Tryon Center for Rehabilitation and Nursing | D172: 81551046V1 | E172: 2024-12-16 | F172: 2024 Nursing Home April 10% Reduction Rates | G172: 336.46 | H172: 333.43 | I172: 29.11 | J172: 307.35 | K172: 304.32
A173: 700180810 | B173: 700180810N | C173: Four Seasons Nursing and Rehabilitation Center | D173: 81491453V1 | E173: 2024-12-16 | F173: 2024 Nursing Home April 10% Reduction Rates | G173: 329.63 | H173: 326.64 | I173: 29.91 | J173: 299.72 | K173: 296.73
A174: 143530410 | B174: 143530410N | C174: Fox Run at Orchard Park | D174: NO BASE V1 | E174: 2024-12-16 | F174: 2024 Nursing Home April 10% Reduction Rates | G174: 214.92 | H174: 213.48 | I174: 44.6 | J174: 170.32 | K174: 168.88
A175: 700340210 | B175: 700340210N | C175: Franklin Center for Rehabilitation and Nursing | D175: 81581100V1 | E175: 2024-12-16 | F175: 2024 Nursing Home April 10% Reduction Rates | G175: 388.01 | H175: 384.72 | I175: 37.81 | J175: 350.2 | K175: 346.91
A176: 435030510 | B176: 435030510N | C176: Friedwald Center for Rehabilitation & Nursing LLC | D176: 81571137V1 | E176: 2024-12-16 | F176: 2024 Nursing Home April 10% Reduction Rates | G176: 332.36 | H176: 329.1 | I176: 27.24 | J176: 305.12 | K176: 301.86
A177: 175430110 | B177: 175430110N | C177: Fulton Center for Rehabilitation and Healthcare | D177: 82841121V1 | E177: 2024-12-16 | F177: 2024 Nursing Home April 10% Reduction Rates | G177: 265.52 | H177: 263.15 | I177: 24.83 | J177: 240.69 | K177: 238.32
A178: 295031710 | B178: 295031710N | C178: Fulton Commons Care Center Inc | D178: 81581528V1 | E178: 2024-12-16 | F178: 2024 Nursing Home April 10% Reduction Rates | G178: 270.99 | H178: 268.76 | I178: 34.48 | J178: 236.51 | K178: 234.28
A179: 295031610 | B179: 295031610N | C179: Garden Care Center | D179: 81481609V1 | E179: 2024-12-16 | F179: 2024 Nursing Home April 10% Reduction Rates | G179: 363.24 | H179: 359.66 | I179: 21.14 | J179: 342.1 | K179: 338.52
A180: 145530010 | B180: 145530010N | C180: Garden Gate Health Care Facility | D180: 81511344V1 | E180: 2024-12-16 | F180: 2024 Nursing Home April 10% Reduction Rates | G180: 247.45 | H180: 245.16 | I180: 17.08 | J180: 230.37 | K180: 228.08
A181: 105930210 | B181: 105930210N | C181: Ghent Rehabilitation & Nursing Center | D181: 81581539V1 | E181: 2024-12-16 | F181: 2024 Nursing Home April 10% Reduction Rates | G181: 278.98 | H181: 276.76 | I181: 16.96 | J181: 262.02 | K181: 259.8
A182: 352330310 | B182: 352330310N | C182: Glen Arden Inc | D182: 81610659V1 | E182: 2024-12-16 | F182: 2024 Nursing Home April 10% Reduction Rates | G182: 210.49 | H182: 208.8 | I182: 23.42 | J182: 187.07 | K182: 185.38
A183: 290130510 | B183: 290130510N | C183: Glen Cove Center for Nursing and Rehabilitation | D183: 81371434V1 | E183: 2024-12-16 | F183: 2024 Nursing Home April 10% Reduction Rates | G183: 268.69 | H183: 266.45 | I183: 21.24 | J183: 247.45 | K183: 245.21
A184: 590431810 | B184: 590431810N | C184: Glen Island Center for Nursing and Rehabilitation | D184: 81641443V1 | E184: 2024-12-16 | F184: 2024 Nursing Home April 10% Reduction Rates | G184: 277.63 | H184: 274.97 | I184: 14.67 | J184: 262.96 | K184: 260.3
A185: 465130010 | B185: 465130010N | C185: Glendale Home-Schdy Cnty Dept Social Services | D185: 83081531V1 | E185: 2024-12-16 | F185: 2024 Nursing Home April 10% Reduction Rates | G185: 284.14 | H185: 281.94 | I185: 48.01 | J185: 236.13 | K185: 233.93
A186: 290130610 | B186: 290130610N | C186: Glengariff Rehabilitation and Health Care Center | D186: 81591009V1 | E186: 2024-12-16 | F186: 2024 Nursing Home April 10% Reduction Rates | G186: 312.91 | H186: 310.11 | I186: 27.37 | J186: 285.54 | K186: 282.74
A187: 560130810 | B187: 560130810N | C187: Glens Falls Center for Rehabilitation and Nursing | D187: 81511339V1 | E187: 2024-12-16 | F187: 2024 Nursing Home April 10% Reduction Rates | G187: 231.62 | H187: 229.54 | I187: 11.86 | J187: 219.76 | K187: 217.68
A188: 700037610 | B188: 700037610N | C188: Gold Crest Care Center | D188: 81550934V1 | E188: 2024-12-16 | F188: 2024 Nursing Home April 10% Reduction Rates | G188: 320.63 | H188: 317.58 | I188: 14.8 | J188: 305.83 | K188: 302.78
A189: 700432210 | B189: 700432210N | C189: Golden Gate Rehabilitation and Health Care Center | D189: 81481430V1 | E189: 2024-12-16 | F189: 2024 Nursing Home April 10% Reduction Rates | G189: 307.32 | H189: 304.34 | I189: 17.55 | J189: 289.77 | K189: 286.79
A190: 550131110 | B190: 550131110N | C190: Golden Hill Nursing and Rehabilitation Center | D190: 83011144V1 | E190: 2024-12-16 | F190: 2024 Nursing Home April 10% Reduction Rates | G190: 302.53 | H190: 299.67 | I190: 21.49 | J190: 281.04 | K190: 278.18
A191: 515431010 | B191: 515431010N | C191: Good Samaritan Nursing and Rehabilitaiton Care Center | D191: 81581707V1 | E191: 2024-12-16 | F191: 2024 Nursing Home April 10% Reduction Rates | G191: 286.01 | H191: 283.36 | I191: 6.72 | J191: 279.29 | K191: 276.64
A192: 036330110 | B192: 036330110N | C192: Good Shepherd Village at Endwell | D192: NO BASE V1 | E192: 2024-12-16 | F192: 2024 Nursing Home April 10% Reduction Rates | G192: 221.95 | H192: 219.94 | I192: 12.98 | J192: 208.97 | K192: 206.96
A193: 030130510 | B193: 030130510N | C193: Good Shepherd-fairview Home Inc | D193: 81691610V1 | E193: 2024-12-16 | F193: 2024 Nursing Home April 10% Reduction Rates | G193: 216.47 | H193: 214.65 | I193: 13.55 | J193: 202.92 | K193: 201.1
A194: 042730310 | B194: 042730310N | C194: Gowanda Rehabilitation and Nursing Center | D194: 83251628V1 | E194: 2024-12-16 | F194: 2024 Nursing Home April 10% Reduction Rates | G194: 263.25 | H194: 260.97 | I194: 15.5 | J194: 247.75 | K194: 245.47
A195: =LEFT(B195,9) -> 700036110 | B195: 700036110N | C195: Grand Manor Nursing & Rehabilitation Center | D195: 81481527V1 | E195: 2024-12-16 | F195: 2024 Nursing Home April 10% Reduction Rates | G195: 246.26 | H195: 244.02 | I195: 14.66 | J195: 231.6 | K195: 229.36
A196: 290230410 | B196: 290230410N | C196: Grandell Rehabilitation and Nursing Center | D196: 81541311V1 | E196: 2024-12-16 | F196: 2024 Nursing Home April 10% Reduction Rates | G196: 323.92 | H196: 320.96 | I196: 31.49 | J196: 292.43 | K196: 289.47
A197: 572530610 | B197: 572530610N | C197: Granville Center for Rehabilitation and Nursing | D197: 81211500V1 | E197: 2024-12-16 | F197: 2024 Nursing Home April 10% Reduction Rates | G197: 241.18 | H197: 239.2 | I197: 22.26 | J197: 218.92 | K197: 216.94
A198: 195330030 | B198: 195330030N | C198: Greene Meadows Nursing and Rehabilitation Center | D198: 81681305V1 | E198: 2024-12-16 | F198: 2024 Nursing Home April 10% Reduction Rates | G198: 354.31 | H198: 352.14 | I198: 22.02 | J198: 332.29 | K198: 330.12
A199: 146730110 | B199: 146730110N | C199: Greenfield Health and Rehabilitation Center | D199: 81571130V1 | E199: 2024-12-16 | F199: 2024 Nursing Home April 10% Reduction Rates | G199: 240.54 | H199: 238.38 | I199: 23.72 | J199: 216.82 | K199: 214.66
A200: 540130510 | B200: 540130510N | C200: Groton Community Health Care Center Residential Care Facility | D200: 81721840V1 | E200: 2024-12-16 | F200: 2024 Nursing Home April 10% Reduction Rates | G200: 164.52 | H200: 163.22 | I200: 10.87 | J200: 153.65 | K200: 152.35
... 489 more rows
